Council Name,Date,TransNo,Amount � (Excl VAT),Supplier name,Supplier Category,Expense Area,Expense Type,Expense Code
Royal Borough of Kingston,01/06/2023,90245500,"6,214.29",Claremont Care Services Ltd,SOCIAL SERVICES RESIDENTIAL,Adult Social Care & Health,Independent Placements,A56006
Royal Borough of Kingston,01/06/2023,90245501,"-5,785.71",Claremont Care Services Ltd,SOCIAL SERVICES RESIDENTIAL,Adult Social Care & Health,Independent Placements,A56006
Royal Borough of Kingston,01/06/2023,90245502,"6,421.43",Claremont Care Services Ltd,SOCIAL SERVICES RESIDENTIAL,Adult Social Care & Health,Independent Placements,A56006
Royal Borough of Kingston,01/06/2023,90245503,"-5,978.57",Claremont Care Services Ltd,SOCIAL SERVICES RESIDENTIAL,Adult Social Care & Health,Independent Placements,A56006
Royal Borough of Kingston,01/06/2023,90245504,"6,214.29",Claremont Care Services Ltd,SOCIAL SERVICES RESIDENTIAL,Adult Social Care & Health,Independent Placements,A56006
Royal Borough of Kingston,31/05/2023,70047944,"21,638.00",31TEN CONSULTING LIMITED,TEMP STAFF & CONSULTANCY,Corporate & Communities,Consultancy Services,A56007
Royal Borough of Kingston,09/06/2023,70048220,975.00,3SPIRIT ENTERPRISE UK LTD,TRAINING,Adult Social Care & Health,Staff Development And Training,A15022
Royal Borough of Kingston,27/06/2023,90247659,"1,375.00",REDACTED - PERSONAL DATA,PLS LANDLORDS,Place,PSL Payments To Landlords,A22031
Royal Borough of Kingston,27/06/2023,90247711,"1,375.00",REDACTED - PERSONAL DATA,PLS LANDLORDS,Place,PSL Payments To Landlords,A22031
Royal Borough of Kingston,22/05/2023,70047670,"9,826.00",A D WIBDEN LIMITED,CONSTRUCTION INDUSTRY,Corporate & Communities,Grants Given For Capital Purposes,C20004
Royal Borough of Kingston,05/06/2023,70048203,"7,199.00",A D WIBDEN LIMITED,CONSTRUCTION INDUSTRY,Corporate & Communities,Grants Given For Capital Purposes,C20004
Royal Borough of Kingston,13/06/2023,90243485,500.00,REDACTED - PERSONAL DATA,GRANTS & EX GRATIA PAYMENTS,Adult Social Care & Health,"Grants, Contributions & Donations",A47005
Royal Borough of Kingston,27/06/2023,90247553,"1,097.00",REDACTED - PERSONAL DATA,PLS LANDLORDS,Place,PSL Payments To Landlords,A22031
Royal Borough of Kingston,27/06/2023,90247614,"1,125.00",REDACTED - PERSONAL DATA,PLS LANDLORDS,Place,PSL Payments To Landlords,A22031
Royal Borough of Kingston,27/06/2023,90247702,"2,300.00",REDACTED - PERSONAL DATA,PLS LANDLORDS,Place,PSL Payments To Landlords,A22031
Royal Borough of Kingston,27/06/2023,90247703,"2,300.00",REDACTED - PERSONAL DATA,PLS LANDLORDS,Place,PSL Payments To Landlords,A22031
Royal Borough of Kingston,27/06/2023,90247704,"2,300.00",REDACTED - PERSONAL DATA,PLS LANDLORDS,Place,PSL Payments To Landlords,A22031
Royal Borough of Kingston,27/06/2023,90247864,"2,300.00",REDACTED - PERSONAL DATA,PLS LANDLORDS,Place,PSL Payments To Landlords,A22031
Royal Borough of Kingston,27/06/2023,90247655,993.34,REDACTED - PERSONAL DATA,PLS LANDLORDS,Place,PSL Payments To Landlords,A22031
Royal Borough of Kingston,09/06/2023,90243225,"11,349.48",ABACUS PRE-SCHOOL,ACADEMIC INSTNS - OTHER,Schools,PVI Providers,A60014
Royal Borough of Kingston,09/06/2023,90243341,"4,131.00",ABACUS PRE-SCHOOL,ACADEMIC INSTNS - OTHER,Schools,2 Yr Old Place Funding,A60000
Royal Borough of Kingston,01/06/2023,90240880,"2,228.57",ABBEY 14LIMITED,SOCIAL SERVICES RESIDENTIAL,Adult Social Care & Health,Independent Placements,A56006
Royal Borough of Kingston,01/06/2023,90240881,"5,314.29",ABBEY 14LIMITED,SOCIAL SERVICES RESIDENTIAL,Adult Social Care & Health,Independent Placements,A56006
Royal Borough of Kingston,01/06/2023,90240882,"5,314.29",ABBEY 14LIMITED,SOCIAL SERVICES RESIDENTIAL,Adult Social Care & Health,Independent Placements,A56006
Royal Borough of Kingston,01/06/2023,90240883,"4,800.00",ABBEY 14LIMITED,SOCIAL SERVICES RESIDENTIAL,Adult Social Care & Health,Independent Placements,A56006
Royal Borough of Kingston,01/06/2023,90240884,"5,314.29",ABBEY 14LIMITED,SOCIAL SERVICES RESIDENTIAL,Adult Social Care & Health,Independent Placements,A56006
Royal Borough of Kingston,01/06/2023,90240885,"5,142.86",ABBEY 14LIMITED,SOCIAL SERVICES RESIDENTIAL,Adult Social Care & Health,Independent Placements,A56006
Royal Borough of Kingston,01/06/2023,90240886,"5,314.29",ABBEY 14LIMITED,SOCIAL SERVICES RESIDENTIAL,Adult Social Care & Health,Independent Placements,A56006
Royal Borough of Kingston,01/06/2023,90245544,"5,142.86",ABBEY 14LIMITED,SOCIAL SERVICES RESIDENTIAL,Adult Social Care & Health,Independent Placements,A56006
Royal Borough of Kingston,01/06/2023,90240878,"1,745.52",ABBEYFIELD,SOCIAL SERVICES RESIDENTIAL,Adult Social Care & Health,Independent Placements,A56006
Royal Borough of Kingston,01/06/2023,90240879,"3,865.08",ABBEYFIELD,SOCIAL SERVICES RESIDENTIAL,Adult Social Care & Health,Independent Placements,A56006
Royal Borough of Kingston,01/06/2023,90240887,"3,865.08",ABBEYFIELD,SOCIAL SERVICES RESIDENTIAL,Adult Social Care & Health,Independent Placements,A56006
Royal Borough of Kingston,01/06/2023,90240888,"3,491.04",ABBEYFIELD,SOCIAL SERVICES RESIDENTIAL,Adult Social Care & Health,Independent Placements,A56006
Royal Borough of Kingston,01/06/2023,90240889,"3,865.08",ABBEYFIELD,SOCIAL SERVICES RESIDENTIAL,Adult Social Care & Health,Independent Placements,A56006
Royal Borough of Kingston,01/06/2023,90240890,"3,865.08",ABBEYFIELD,SOCIAL SERVICES RESIDENTIAL,Adult Social Care & Health,Independent Placements,A56006
Royal Borough of Kingston,01/06/2023,90245400,"4,027.07",ABBEYFIELD,SOCIAL SERVICES RESIDENTIAL,Adult Social Care & Health,Independent Placements,A56006
Royal Borough of Kingston,01/06/2023,90245401,"4,027.07",ABBEYFIELD,SOCIAL SERVICES RESIDENTIAL,Adult Social Care & Health,Independent Placements,A56006
Royal Borough of Kingston,01/06/2023,90245404,"4,027.07",ABBEYFIELD,SOCIAL SERVICES RESIDENTIAL,Adult Social Care & Health,Independent Placements,A56006
Royal Borough of Kingston,01/06/2023,90245409,"3,740.40",ABBEYFIELD,SOCIAL SERVICES RESIDENTIAL,Adult Social Care & Health,Independent Placements,A56006
Royal Borough of Kingston,01/06/2023,90245410,"3,740.40",ABBEYFIELD,SOCIAL SERVICES RESIDENTIAL,Adult Social Care & Health,Independent Placements,A56006
Royal Borough of Kingston,01/06/2023,90245412,"3,740.40",ABBEYFIELD,SOCIAL SERVICES RESIDENTIAL,Adult Social Care & Health,Independent Placements,A56006
Royal Borough of Kingston,01/06/2023,90245415,"3,740.40",ABBEYFIELD,SOCIAL SERVICES RESIDENTIAL,Adult Social Care & Health,Independent Placements,A56006
Royal Borough of Kingston,01/06/2023,90245418,"4,027.07",ABBEYFIELD,SOCIAL SERVICES RESIDENTIAL,Adult Social Care & Health,Independent Placements,A56006
Royal Borough of Kingston,01/06/2023,90245423,"4,027.07",ABBEYFIELD,SOCIAL SERVICES RESIDENTIAL,Adult Social Care & Health,Independent Placements,A56006
Royal Borough of Kingston,01/06/2023,90245429,"4,027.07",ABBEYFIELD,SOCIAL SERVICES RESIDENTIAL,Adult Social Care & Health,Independent Placements,A56006
Royal Borough of Kingston,01/06/2023,90245444,"4,729.00",ABBEYFIELD,SOCIAL SERVICES RESIDENTIAL,Adult Social Care & Health,Independent Placements,A56006
Royal Borough of Kingston,01/06/2023,90245445,"4,027.07",ABBEYFIELD,SOCIAL SERVICES RESIDENTIAL,Adult Social Care & Health,Independent Placements,A56006
Royal Borough of Kingston,01/06/2023,90245446,"1,122.12",ABBEYFIELD,SOCIAL SERVICES RESIDENTIAL,Adult Social Care & Health,Independent Placements,A56006
Royal Borough of Kingston,01/06/2023,90245451,"4,027.07",ABBEYFIELD,SOCIAL SERVICES RESIDENTIAL,Adult Social Care & Health,Independent Placements,A56006
Royal Borough of Kingston,01/06/2023,90245453,"4,027.07",ABBEYFIELD,SOCIAL SERVICES RESIDENTIAL,Adult Social Care & Health,Independent Placements,A56006
Royal Borough of Kingston,01/06/2023,90245454,"4,027.07",ABBEYFIELD,SOCIAL SERVICES RESIDENTIAL,Adult Social Care & Health,Independent Placements,A56006
Royal Borough of Kingston,01/06/2023,90245455,"4,027.07",ABBEYFIELD,SOCIAL SERVICES RESIDENTIAL,Adult Social Care & Health,Independent Placements,A56006
Royal Borough of Kingston,01/06/2023,90245476,"3,740.40",ABBEYFIELD,SOCIAL SERVICES RESIDENTIAL,Adult Social Care & Health,Independent Placements,A56006
Royal Borough of Kingston,01/06/2023,90245535,"4,027.07",ABBEYFIELD,SOCIAL SERVICES RESIDENTIAL,Adult Social Care & Health,Independent Placements,A56006
Royal Borough of Kingston,01/06/2023,90245550,"4,027.07",ABBEYFIELD,SOCIAL SERVICES RESIDENTIAL,Adult Social Care & Health,Independent Placements,A56006
Royal Borough of Kingston,01/06/2023,90245560,"3,740.40",ABBEYFIELD,SOCIAL SERVICES RESIDENTIAL,Adult Social Care & Health,Independent Placements,A56006
Royal Borough of Kingston,01/06/2023,90245565,"4,027.07",ABBEYFIELD,SOCIAL SERVICES RESIDENTIAL,Adult Social Care & Health,Independent Placements,A56006
Royal Borough of Kingston,01/06/2023,90245569,"2,533.39",ABBEYFIELD,SOCIAL SERVICES RESIDENTIAL,Adult Social Care & Health,Independent Placements,A56006
Royal Borough of Kingston,01/06/2023,90245570,"5,066.79",ABBEYFIELD,SOCIAL SERVICES RESIDENTIAL,Adult Social Care & Health,Independent Placements,A56006
Royal Borough of Kingston,01/06/2023,90245604,"3,740.40",ABBEYFIELD,SOCIAL SERVICES RESIDENTIAL,Adult Social Care & Health,Independent Placements,A56006
Royal Borough of Kingston,01/06/2023,90245606,"3,208.96",ABBEYFIELD,SOCIAL SERVICES RESIDENTIAL,Adult Social Care & Health,Independent Placements,A56006
Royal Borough of Kingston,01/06/2023,90245615,"3,740.40",ABBEYFIELD,SOCIAL SERVICES RESIDENTIAL,Adult Social Care & Health,Independent Placements,A56006
Royal Borough of Kingston,01/06/2023,90245619,"3,040.07",ABBEYFIELD,SOCIAL SERVICES RESIDENTIAL,Adult Social Care & Health,Independent Placements,A56006
Royal Borough of Kingston,01/06/2023,90245620,"-3,546.75",ABBEYFIELD,SOCIAL SERVICES RESIDENTIAL,Adult Social Care & Health,Independent Placements,A56006
Royal Borough of Kingston,01/06/2023,90245745,"-1,013.36",ABBEYFIELD,SOCIAL SERVICES RESIDENTIAL,Adult Social Care & Health,Other Private Contractors - Third Party,A56080
Royal Borough of Kingston,31/05/2023,70047925,662.27,ABBOTT RAPID DIAGNOSTICS LIMITED,OPERATIONAL EQUIPMENT/MATERIAL,Adult Social Care & Health,Other Private Contractors - Third Party,A56080
Royal Borough of Kingston,01/06/2023,90247432,"5,837.74",ABC HILLINGDON LTD,ACCOMMODATION - OTHER,Adult Social Care & Health,Personal Budget - Third Party,A61019
Royal Borough of Kingston,27/06/2023,90247666,990.58,REDACTED - PERSONAL DATA,PLS LANDLORDS,Place,PSL Payments To Landlords,A22031
Royal Borough of Kingston,31/05/2023,70047830,"1,865.00",AC & MS LIMITED,LEGAL & PROFESSIONAL SERVICES,Housing Revenue Account,Asbestos Removal,C10000
Royal Borough of Kingston,09/06/2023,90243310,"25,114.15",ACACIA PRE-SCHOOL,ACADEMIC INSTNS - OTHER,Schools,PVI Providers,A60014
Royal Borough of Kingston,09/06/2023,90243363,"1,749.60",ACACIA PRE-SCHOOL,ACADEMIC INSTNS - OTHER,Schools,2 Yr Old Place Funding,A60000
Royal Borough of Kingston,30/05/2023,70047854,"2,120.00",ACCESS INDEPENDENT LIMITED,SOCIAL SERVICES - OTHER,Adult Social Care & Health,Other Private Contractors - Third Party,A56080
Royal Borough of Kingston,28/02/2023,70048632,"2,562.00",ACCESS INDEPENDENT LIMITED,SOCIAL SERVICES - OTHER,Adult Social Care & Health,Other Private Contractors - Third Party,A56080
Royal Borough of Kingston,31/03/2023,70048633,"3,588.00",ACCESS INDEPENDENT LIMITED,SOCIAL SERVICES - OTHER,Adult Social Care & Health,Other Private Contractors - Third Party,A56080
Royal Borough of Kingston,27/01/2023,70048634,"1,200.00",ACCESS INDEPENDENT LIMITED,SOCIAL SERVICES - OTHER,Adult Social Care & Health,Other Private Contractors - Third Party,A56080
Royal Borough of Kingston,27/01/2023,70048729,"-1,350.00",ACCESS INDEPENDENT LIMITED,SOCIAL SERVICES - OTHER,Adult Social Care & Health,Other Private Contractors - Third Party,A56080
Royal Borough of Kingston,27/06/2023,90247940,"1,047.00",Accountancy Services (New Malden) Limited,PLS LANDLORDS,Place,PSL Payments To Landlords,A22031
Royal Borough of Kingston,01/06/2023,90245639,"7,126.41",Achieve Together Limited,SOCIAL SERVICES - OTHER,Adult Social Care & Health,Independent Placements,A56006
Royal Borough of Kingston,01/06/2023,90245678,"4,816.71",Achieve Together Limited,SOCIAL SERVICES - OTHER,Adult Social Care & Health,Independent Placements,A56006
Royal Borough of Kingston,01/06/2023,90245705,"12,035.49",Achieve Together Limited,SOCIAL SERVICES - OTHER,Adult Social Care & Health,Independent Placements,A56006
Royal Borough of Kingston,08/06/2023,70048353,"6,152,736.36",ACHIEVING FOR CHILDREN LIMITED,LEGAL & PROFESSIONAL SERVICES,Childrens Services,Fixed Childrens Services Contract Strategic,A51019
Royal Borough of Kingston,09/06/2023,90243316,"26,757.84",Acorn to Oak Nursery and Preschool Ltd,CHILDMINDERS START UP GRANT,Schools,PVI Providers,A60014
Royal Borough of Kingston,09/06/2023,90243364,"6,358.50",Acorn to Oak Nursery and Preschool Ltd,CHILDMINDERS START UP GRANT,Schools,2 Yr Old Place Funding,A60000
Royal Borough of Kingston,14/06/2023,70048655,433.16,ACTIVITY WORKWEAR,CLOTHING & UNIFORMS,Housing Revenue Account,Clothing & Uniforms,A42005
Royal Borough of Kingston,02/06/2023,70047891,"1,581.00",ADAM HOTEL MANAGEMENT LTD,ACCOMMODATION BED & BREAKFAST,Place,Bed & Breakfast,A56000
Royal Borough of Kingston,02/06/2023,70047904,"1,085.00",ADAM HOTEL MANAGEMENT LTD,ACCOMMODATION BED & BREAKFAST,Place,Bed & Breakfast,A56000
Royal Borough of Kingston,02/06/2023,70047907,"1,085.00",ADAM HOTEL MANAGEMENT LTD,ACCOMMODATION BED & BREAKFAST,Place,Bed & Breakfast,A56000
Royal Borough of Kingston,02/05/2023,70047913,"1,302.00",ADAM HOTEL MANAGEMENT LTD,ACCOMMODATION BED & BREAKFAST,Place,Bed & Breakfast,A56000
Royal Borough of Kingston,02/06/2023,70047917,"1,085.00",ADAM HOTEL MANAGEMENT LTD,ACCOMMODATION BED & BREAKFAST,Place,Bed & Breakfast,A56000
Royal Borough of Kingston,02/06/2023,70047920,"1,085.00",ADAM HOTEL MANAGEMENT LTD,ACCOMMODATION BED & BREAKFAST,Place,Bed & Breakfast,A56000
Royal Borough of Kingston,02/06/2023,70047923,"1,581.00",ADAM HOTEL MANAGEMENT LTD,ACCOMMODATION BED & BREAKFAST,Place,Bed & Breakfast,A56000
Royal Borough of Kingston,31/05/2023,70047858,"32,032.98",ADAM HTT LIMITED,TAXI AND COACH HIRE,Adult Social Care & Health,Home To School Transport Taxis,A33016
Royal Borough of Kingston,24/05/2023,70048052,"12,737.17",ADAM HTT LIMITED,TAXI AND COACH HIRE,Adult Social Care & Health,Home To School Transport Taxis,A33016
Royal Borough of Kingston,07/06/2023,70048053,"11,829.70",ADAM HTT LIMITED,TAXI AND COACH HIRE,Adult Social Care & Health,Home To School Transport Taxis,A33016
Royal Borough of Kingston,16/06/2023,70048500,"11,829.70",ADAM HTT LIMITED,TAXI AND COACH HIRE,Adult Social Care & Health,Home To School Transport Taxis,A33016
Royal Borough of Kingston,16/06/2023,70048501,"12,737.17",ADAM HTT LIMITED,TAXI AND COACH HIRE,Adult Social Care & Health,Home To School Transport Taxis,A33016
Royal Borough of Kingston,14/06/2023,70048653,"22,432.39",ADAM HTT LIMITED,TAXI AND COACH HIRE,Adult Social Care & Health,Home To School Transport Taxis,A33016
Royal Borough of Kingston,09/06/2023,90243318,"5,234.16",Event Supplies LTD,CHILDMINDERS START UP GRANT,Schools,PVI Providers,A60014
Royal Borough of Kingston,14/06/2023,70048667,"2,600.00",ADVANCED TREE SERVICES LIMITED,CONSTRUCTION INDUSTRY,Corporate & Communities,Maintenance of trees,A28003
Royal Borough of Kingston,14/06/2023,70048667,600.00,ADVANCED TREE SERVICES LIMITED,CONSTRUCTION INDUSTRY,Housing Revenue Account,Tree Works,A56042
Royal Borough of Kingston,15/06/2023,70048668,715.00,ADVANCED TREE SERVICES LIMITED,CONSTRUCTION INDUSTRY,Corporate & Communities,Maintenance of trees,A28003
Royal Borough of Kingston,15/06/2023,70048668,100.00,ADVANCED TREE SERVICES LIMITED,CONSTRUCTION INDUSTRY,Housing Revenue Account,Tree Works,A56042
Royal Borough of Kingston,14/06/2023,70048733,"1,598.00",ADVANCED TREE SERVICES LIMITED,CONSTRUCTION INDUSTRY,Corporate & Communities,Maintenance of trees,A28003
Royal Borough of Kingston,14/06/2023,70048735,"2,559.90",ADVANCED TREE SERVICES LIMITED,CONSTRUCTION INDUSTRY,Corporate & Communities,Maintenance of trees,A28003
Royal Borough of Kingston,14/06/2023,70048735,63.00,ADVANCED TREE SERVICES LIMITED,CONSTRUCTION INDUSTRY,Housing Revenue Account,Tree Works,A56042
Royal Borough of Kingston,14/06/2023,70048735,110.00,ADVANCED TREE SERVICES LIMITED,CONSTRUCTION INDUSTRY,Housing Revenue Account,Tree Works,A56042
Royal Borough of Kingston,14/06/2023,70048735,158.00,ADVANCED TREE SERVICES LIMITED,CONSTRUCTION INDUSTRY,Housing Revenue Account,Tree Works,A56042
Royal Borough of Kingston,09/06/2023,90243195,"94,919.97",ADVANTAGE DAY NURSERY LTD,ACADEMIC INSTNS - OTHER,Schools,PVI Providers,A60014
Royal Borough of Kingston,09/06/2023,90243322,"12,696.75",ADVANTAGE DAY NURSERY LTD,ACADEMIC INSTNS - OTHER,Schools,2 Yr Old Place Funding,A60000
Royal Borough of Kingston,30/04/2023,70047762,"71,718.00",Age Concern Kingston upon Thames,GRANTS & EX GRATIA PAYMENTS,Adult Social Care & Health,Payments to Voluntary Organisations,A54005
Royal Borough of Kingston,28/04/2023,70048032,"23,757.73",Age Concern Kingston upon Thames,GRANTS & EX GRATIA PAYMENTS,Adult Social Care & Health,Building Rents,A22005
Royal Borough of Kingston,28/04/2023,70048624,"45,000.00",Age Concern Kingston upon Thames,GRANTS & EX GRATIA PAYMENTS,Adult Social Care & Health,Payments to Voluntary Organisations,A54005
Royal Borough of Kingston,01/06/2023,90246907,514.29,Age Concern Kingston upon Thames,GRANTS & EX GRATIA PAYMENTS,Adult Social Care & Health,Personal Budget - Third Party,A61019
Royal Borough of Kingston,01/06/2023,90246910,857.14,Age Concern Kingston upon Thames,GRANTS & EX GRATIA PAYMENTS,Adult Social Care & Health,Personal Budget - Third Party,A61019
Royal Borough of Kingston,01/06/2023,90246916,685.71,Age Concern Kingston upon Thames,GRANTS & EX GRATIA PAYMENTS,Adult Social Care & Health,Personal Budget - Third Party,A61019
Royal Borough of Kingston,09/06/2023,90243245,"2,034.00",REDACTED - PERSONAL DATA,CHILDMINDERS START UP GRANT,Schools,PVI Providers,A60014
Royal Borough of Kingston,01/06/2023,90245480,"6,642.86",AIMS CARE LIMITED,SOCIAL SERVICES RESIDENTIAL,Adult Social Care & Health,Independent Placements,A56006
Royal Borough of Kingston,23/05/2023,70047161,825.00,AIR SURVEYS LIMITED,LEGAL & PROFESSIONAL SERVICES,Place,Buildings - Design & Planning,C14001
Royal Borough of Kingston,16/06/2023,70049009,"2,030.00",AIR SURVEYS LIMITED,LEGAL & PROFESSIONAL SERVICES,Place,Payments to Contractors,C14000
Royal Borough of Kingston,30/03/2023,70048700,730.00,Airborne Enviromental Consultant Ltd,SUNDRY SUPPLIER - FINANCE,Corporate & Communities,Staff Development And Training,A15022
Royal Borough of Kingston,13/06/2023,90243507,500.00,REDACTED - PERSONAL DATA,GRANTS & EX GRATIA PAYMENTS,Adult Social Care & Health,"Grants, Contributions & Donations",A47005
Royal Borough of Kingston,06/06/2023,90240802,500.00,REDACTED - PERSONAL DATA,CHARITIES & VOLUNTARY ORGNS,Adult Social Care & Health,"Grants, Contributions & Donations",A47005
Royal Borough of Kingston,27/06/2023,90247738,"1,094.00",REDACTED - PERSONAL DATA,LANDLORDS,Place,PSL Payments To Landlords,A22031
Royal Borough of Kingston,06/06/2023,90242077,"162,395.61",ALEXANDRA SCHOOL,SCHOOL FUNDS,Schools,Miscellaneous Expenses,A49000
Royal Borough of Kingston,09/06/2023,90243242,"24,713.13",ALEXANDRA SCHOOL,SCHOOL FUNDS,Schools,Miscellaneous Expenses,A49000
Royal Borough of Kingston,29/06/2023,90247497,"2,280.70",ALEXANDRA SCHOOL,SCHOOL FUNDS,Place,Payments to Contractors,C14000
Royal Borough of Kingston,29/06/2023,90247950,"4,000.00",ALEXANDRA SCHOOL,SCHOOL FUNDS,Schools,Miscellaneous Expenses,A49000
Royal Borough of Kingston,27/06/2023,90247928,"1,050.00",REDACTED - PERSONAL DATA,PLS LANDLORDS,Place,PSL Payments To Landlords,A22031
Royal Borough of Kingston,27/06/2023,90247564,"1,314.00",REDACTED - PERSONAL DATA,PLS LANDLORDS,Place,PSL Payments To Landlords,A22031
Royal Borough of Kingston,31/05/2023,70048149,893.42,ALLPAY LIMITED,FINANCIAL / INSURANCE INSTNS,Adult Social Care & Health,Bank Fees & Charges,A44250
Royal Borough of Kingston,15/05/2023,90240914,567.24,ALPENBEST LTD,SOCIAL SERVICES DAY CARE,Adult Social Care & Health,Homecare - new framework,A56127
Royal Borough of Kingston,15/05/2023,90240917,576.24,ALPENBEST LTD,SOCIAL SERVICES DAY CARE,Adult Social Care & Health,Homecare - new framework,A56127
Royal Borough of Kingston,15/05/2023,90240930,"1,512.64",ALPENBEST LTD,SOCIAL SERVICES DAY CARE,Adult Social Care & Health,Homecare - new framework,A56127
Royal Borough of Kingston,15/05/2023,90240946,630.27,ALPENBEST LTD,SOCIAL SERVICES DAY CARE,Adult Social Care & Health,Homecare - new framework,A56127
Royal Borough of Kingston,15/05/2023,90241055,567.24,ALPENBEST LTD,SOCIAL SERVICES DAY CARE,Adult Social Care & Health,Homecare - new framework,A56127
Royal Borough of Kingston,15/05/2023,90241069,567.24,ALPENBEST LTD,SOCIAL SERVICES DAY CARE,Adult Social Care & Health,Homecare - new framework,A56127
Royal Borough of Kingston,15/05/2023,90241100,567.24,ALPENBEST LTD,SOCIAL SERVICES DAY CARE,Adult Social Care & Health,Homecare - new framework,A56127
Royal Borough of Kingston,15/05/2023,90241112,819.35,ALPENBEST LTD,SOCIAL SERVICES DAY CARE,Adult Social Care & Health,Homecare - new framework,A56127
Royal Borough of Kingston,15/05/2023,90241169,567.24,ALPENBEST LTD,SOCIAL SERVICES DAY CARE,Adult Social Care & Health,Homecare - new framework,A56127
Royal Borough of Kingston,15/05/2023,90241179,630.27,ALPENBEST LTD,SOCIAL SERVICES DAY CARE,Adult Social Care & Health,Homecare - new framework,A56127
Royal Borough of Kingston,15/05/2023,90241183,567.24,ALPENBEST LTD,SOCIAL SERVICES DAY CARE,Adult Social Care & Health,Homecare - new framework,A56127
Royal Borough of Kingston,15/05/2023,90241191,630.27,ALPENBEST LTD,SOCIAL SERVICES DAY CARE,Adult Social Care & Health,Homecare - new framework,A56127
Royal Borough of Kingston,15/05/2023,90241313,819.35,ALPENBEST LTD,SOCIAL SERVICES DAY CARE,Adult Social Care & Health,Homecare - new framework,A56127
Royal Borough of Kingston,15/05/2023,90241337,567.24,ALPENBEST LTD,SOCIAL SERVICES DAY CARE,Adult Social Care & Health,Homecare - new framework,A56127
Royal Borough of Kingston,15/05/2023,90241338,567.24,ALPENBEST LTD,SOCIAL SERVICES DAY CARE,Adult Social Care & Health,Homecare - new framework,A56127
Royal Borough of Kingston,15/05/2023,90241339,567.24,ALPENBEST LTD,SOCIAL SERVICES DAY CARE,Adult Social Care & Health,Homecare - new framework,A56127
Royal Borough of Kingston,15/05/2023,90241340,567.24,ALPENBEST LTD,SOCIAL SERVICES DAY CARE,Adult Social Care & Health,Homecare - new framework,A56127
Royal Borough of Kingston,15/05/2023,90241347,756.32,ALPENBEST LTD,SOCIAL SERVICES DAY CARE,Adult Social Care & Health,Homecare - new framework,A56127
Royal Borough of Kingston,15/05/2023,90241371,630.27,ALPENBEST LTD,SOCIAL SERVICES DAY CARE,Adult Social Care & Health,Homecare - new framework,A56127
Royal Borough of Kingston,15/05/2023,90241398,630.27,ALPENBEST LTD,SOCIAL SERVICES DAY CARE,Adult Social Care & Health,Homecare - new framework,A56127
Royal Borough of Kingston,15/05/2023,90241399,621.26,ALPENBEST LTD,SOCIAL SERVICES DAY CARE,Adult Social Care & Health,Homecare - new framework,A56127
Royal Borough of Kingston,15/05/2023,90241408,630.27,ALPENBEST LTD,SOCIAL SERVICES DAY CARE,Adult Social Care & Health,Homecare - new framework,A56127
Royal Borough of Kingston,15/05/2023,90241412,630.27,ALPENBEST LTD,SOCIAL SERVICES DAY CARE,Adult Social Care & Health,Homecare - new framework,A56127
Royal Borough of Kingston,15/05/2023,90241433,630.27,ALPENBEST LTD,SOCIAL SERVICES DAY CARE,Adult Social Care & Health,Homecare - new framework,A56127
Royal Borough of Kingston,15/05/2023,90241540,630.27,ALPENBEST LTD,SOCIAL SERVICES DAY CARE,Adult Social Care & Health,Homecare - new framework,A56127
Royal Borough of Kingston,15/05/2023,90241551,504.21,ALPENBEST LTD,SOCIAL SERVICES DAY CARE,Adult Social Care & Health,Homecare - new framework,A56127
Royal Borough of Kingston,15/05/2023,90242036,630.27,ALPENBEST LTD,SOCIAL SERVICES DAY CARE,Adult Social Care & Health,Personal Budget - Third Party,A61019
Royal Borough of Kingston,22/05/2023,90243660,567.24,ALPENBEST LTD,SOCIAL SERVICES DAY CARE,Adult Social Care & Health,Homecare - new framework,A56127
Royal Borough of Kingston,22/05/2023,90243664,576.24,ALPENBEST LTD,SOCIAL SERVICES DAY CARE,Adult Social Care & Health,Homecare - new framework,A56127
Royal Borough of Kingston,22/05/2023,90243679,"1,512.64",ALPENBEST LTD,SOCIAL SERVICES DAY CARE,Adult Social Care & Health,Homecare - new framework,A56127
Royal Borough of Kingston,22/05/2023,90243693,630.27,ALPENBEST LTD,SOCIAL SERVICES DAY CARE,Adult Social Care & Health,Homecare - new framework,A56127
Royal Borough of Kingston,22/05/2023,90243801,567.24,ALPENBEST LTD,SOCIAL SERVICES DAY CARE,Adult Social Care & Health,Homecare - new framework,A56127
Royal Borough of Kingston,22/05/2023,90243814,567.24,ALPENBEST LTD,SOCIAL SERVICES DAY CARE,Adult Social Care & Health,Homecare - new framework,A56127
Royal Borough of Kingston,22/05/2023,90243845,567.24,ALPENBEST LTD,SOCIAL SERVICES DAY CARE,Adult Social Care & Health,Homecare - new framework,A56127
Royal Borough of Kingston,22/05/2023,90243854,819.35,ALPENBEST LTD,SOCIAL SERVICES DAY CARE,Adult Social Care & Health,Homecare - new framework,A56127
Royal Borough of Kingston,22/05/2023,90243887,549.23,ALPENBEST LTD,SOCIAL SERVICES DAY CARE,Adult Social Care & Health,Homecare - new framework,A56127
Royal Borough of Kingston,22/05/2023,90243897,639.27,ALPENBEST LTD,SOCIAL SERVICES DAY CARE,Adult Social Care & Health,Homecare - new framework,A56127
Royal Borough of Kingston,22/05/2023,90243900,567.24,ALPENBEST LTD,SOCIAL SERVICES DAY CARE,Adult Social Care & Health,Homecare - new framework,A56127
Royal Borough of Kingston,22/05/2023,90243908,630.27,ALPENBEST LTD,SOCIAL SERVICES DAY CARE,Adult Social Care & Health,Homecare - new framework,A56127
Royal Borough of Kingston,22/05/2023,90243997,819.35,ALPENBEST LTD,SOCIAL SERVICES DAY CARE,Adult Social Care & Health,Homecare - new framework,A56127
Royal Borough of Kingston,22/05/2023,90244021,567.24,ALPENBEST LTD,SOCIAL SERVICES DAY CARE,Adult Social Care & Health,Homecare - new framework,A56127
Royal Borough of Kingston,22/05/2023,90244028,756.32,ALPENBEST LTD,SOCIAL SERVICES DAY CARE,Adult Social Care & Health,Homecare - new framework,A56127
Royal Borough of Kingston,22/05/2023,90244053,540.23,ALPENBEST LTD,SOCIAL SERVICES DAY CARE,Adult Social Care & Health,Homecare - new framework,A56127
Royal Borough of Kingston,22/05/2023,90244054,630.27,ALPENBEST LTD,SOCIAL SERVICES DAY CARE,Adult Social Care & Health,Homecare - new framework,A56127
Royal Borough of Kingston,22/05/2023,90244082,621.26,ALPENBEST LTD,SOCIAL SERVICES DAY CARE,Adult Social Care & Health,Homecare - new framework,A56127
Royal Borough of Kingston,22/05/2023,90244092,630.27,ALPENBEST LTD,SOCIAL SERVICES DAY CARE,Adult Social Care & Health,Homecare - new framework,A56127
Royal Borough of Kingston,22/05/2023,90244097,747.32,ALPENBEST LTD,SOCIAL SERVICES DAY CARE,Adult Social Care & Health,Homecare - new framework,A56127
Royal Borough of Kingston,22/05/2023,90244117,630.27,ALPENBEST LTD,SOCIAL SERVICES DAY CARE,Adult Social Care & Health,Homecare - new framework,A56127
Royal Borough of Kingston,22/05/2023,90244201,648.28,ALPENBEST LTD,SOCIAL SERVICES DAY CARE,Adult Social Care & Health,Homecare - new framework,A56127
Royal Borough of Kingston,22/05/2023,90244213,504.21,ALPENBEST LTD,SOCIAL SERVICES DAY CARE,Adult Social Care & Health,Homecare - new framework,A56127
Royal Borough of Kingston,22/05/2023,90244263,630.27,ALPENBEST LTD,SOCIAL SERVICES DAY CARE,Adult Social Care & Health,Personal Budget - Third Party,A61019
Royal Borough of Kingston,29/05/2023,90244455,567.24,ALPENBEST LTD,SOCIAL SERVICES DAY CARE,Adult Social Care & Health,Homecare - new framework,A56127
Royal Borough of Kingston,29/05/2023,90244459,576.24,ALPENBEST LTD,SOCIAL SERVICES DAY CARE,Adult Social Care & Health,Homecare - new framework,A56127
Royal Borough of Kingston,29/05/2023,90244473,"1,512.64",ALPENBEST LTD,SOCIAL SERVICES DAY CARE,Adult Social Care & Health,Homecare - new framework,A56127
Royal Borough of Kingston,29/05/2023,90244497,630.27,ALPENBEST LTD,SOCIAL SERVICES DAY CARE,Adult Social Care & Health,Homecare - new framework,A56127
Royal Borough of Kingston,29/05/2023,90244611,567.24,ALPENBEST LTD,SOCIAL SERVICES DAY CARE,Adult Social Care & Health,Homecare - new framework,A56127
Royal Borough of Kingston,29/05/2023,90244641,567.24,ALPENBEST LTD,SOCIAL SERVICES DAY CARE,Adult Social Care & Health,Homecare - new framework,A56127
Royal Borough of Kingston,29/05/2023,90244651,819.35,ALPENBEST LTD,SOCIAL SERVICES DAY CARE,Adult Social Care & Health,Homecare - new framework,A56127
Royal Borough of Kingston,29/05/2023,90244706,567.24,ALPENBEST LTD,SOCIAL SERVICES DAY CARE,Adult Social Care & Health,Homecare - new framework,A56127
Royal Borough of Kingston,29/05/2023,90244716,639.27,ALPENBEST LTD,SOCIAL SERVICES DAY CARE,Adult Social Care & Health,Homecare - new framework,A56127
Royal Borough of Kingston,29/05/2023,90244719,567.24,ALPENBEST LTD,SOCIAL SERVICES DAY CARE,Adult Social Care & Health,Homecare - new framework,A56127
Royal Borough of Kingston,29/05/2023,90244726,630.27,ALPENBEST LTD,SOCIAL SERVICES DAY CARE,Adult Social Care & Health,Homecare - new framework,A56127
Royal Borough of Kingston,29/05/2023,90244819,819.35,ALPENBEST LTD,SOCIAL SERVICES DAY CARE,Adult Social Care & Health,Homecare - new framework,A56127
Royal Borough of Kingston,29/05/2023,90244841,-567.24,ALPENBEST LTD,SOCIAL SERVICES DAY CARE,Adult Social Care & Health,Homecare - new framework,A56127
Royal Borough of Kingston,29/05/2023,90244842,-567.24,ALPENBEST LTD,SOCIAL SERVICES DAY CARE,Adult Social Care & Health,Homecare - new framework,A56127
Royal Borough of Kingston,29/05/2023,90244843,-567.24,ALPENBEST LTD,SOCIAL SERVICES DAY CARE,Adult Social Care & Health,Homecare - new framework,A56127
Royal Borough of Kingston,29/05/2023,90244844,-567.24,ALPENBEST LTD,SOCIAL SERVICES DAY CARE,Adult Social Care & Health,Homecare - new framework,A56127
Royal Borough of Kingston,29/05/2023,90244863,756.32,ALPENBEST LTD,SOCIAL SERVICES DAY CARE,Adult Social Care & Health,Homecare - new framework,A56127
Royal Borough of Kingston,29/05/2023,90244891,756.32,ALPENBEST LTD,SOCIAL SERVICES DAY CARE,Adult Social Care & Health,Homecare - new framework,A56127
Royal Borough of Kingston,29/05/2023,90244892,630.27,ALPENBEST LTD,SOCIAL SERVICES DAY CARE,Adult Social Care & Health,Homecare - new framework,A56127
Royal Borough of Kingston,29/05/2023,90244922,621.26,ALPENBEST LTD,SOCIAL SERVICES DAY CARE,Adult Social Care & Health,Homecare - new framework,A56127
Royal Borough of Kingston,29/05/2023,90244934,630.27,ALPENBEST LTD,SOCIAL SERVICES DAY CARE,Adult Social Care & Health,Homecare - new framework,A56127
Royal Borough of Kingston,29/05/2023,90244939,747.32,ALPENBEST LTD,SOCIAL SERVICES DAY CARE,Adult Social Care & Health,Homecare - new framework,A56127
Royal Borough of Kingston,29/05/2023,90244961,630.27,ALPENBEST LTD,SOCIAL SERVICES DAY CARE,Adult Social Care & Health,Homecare - new framework,A56127
Royal Borough of Kingston,29/05/2023,90245042,630.27,ALPENBEST LTD,SOCIAL SERVICES DAY CARE,Adult Social Care & Health,Homecare - new framework,A56127
Royal Borough of Kingston,29/05/2023,90245054,504.21,ALPENBEST LTD,SOCIAL SERVICES DAY CARE,Adult Social Care & Health,Homecare - new framework,A56127
Royal Borough of Kingston,29/05/2023,90245118,630.27,ALPENBEST LTD,SOCIAL SERVICES DAY CARE,Adult Social Care & Health,Personal Budget - Third Party,A61019
Royal Borough of Kingston,05/06/2023,90246136,567.24,ALPENBEST LTD,SOCIAL SERVICES DAY CARE,Adult Social Care & Health,Homecare - new framework,A56127
Royal Borough of Kingston,05/06/2023,90246140,576.24,ALPENBEST LTD,SOCIAL SERVICES DAY CARE,Adult Social Care & Health,Homecare - new framework,A56127
Royal Borough of Kingston,05/06/2023,90246153,"1,512.64",ALPENBEST LTD,SOCIAL SERVICES DAY CARE,Adult Social Care & Health,Homecare - new framework,A56127
Royal Borough of Kingston,05/06/2023,90246168,630.27,ALPENBEST LTD,SOCIAL SERVICES DAY CARE,Adult Social Care & Health,Homecare - new framework,A56127
Royal Borough of Kingston,05/06/2023,90246433,567.24,ALPENBEST LTD,SOCIAL SERVICES DAY CARE,Adult Social Care & Health,Homecare - new framework,A56127
Royal Borough of Kingston,05/06/2023,90246445,567.24,ALPENBEST LTD,SOCIAL SERVICES DAY CARE,Adult Social Care & Health,Homecare - new framework,A56127
Royal Borough of Kingston,05/06/2023,90246462,567.24,ALPENBEST LTD,SOCIAL SERVICES DAY CARE,Adult Social Care & Health,Homecare - new framework,A56127
Royal Borough of Kingston,05/06/2023,90246474,819.35,ALPENBEST LTD,SOCIAL SERVICES DAY CARE,Adult Social Care & Health,Homecare - new framework,A56127
Royal Borough of Kingston,05/06/2023,90246524,567.24,ALPENBEST LTD,SOCIAL SERVICES DAY CARE,Adult Social Care & Health,Homecare - new framework,A56127
Royal Borough of Kingston,05/06/2023,90246534,639.27,ALPENBEST LTD,SOCIAL SERVICES DAY CARE,Adult Social Care & Health,Homecare - new framework,A56127
Royal Borough of Kingston,05/06/2023,90246537,567.24,ALPENBEST LTD,SOCIAL SERVICES DAY CARE,Adult Social Care & Health,Homecare - new framework,A56127
Royal Borough of Kingston,05/06/2023,90246543,630.27,ALPENBEST LTD,SOCIAL SERVICES DAY CARE,Adult Social Care & Health,Homecare - new framework,A56127
Royal Borough of Kingston,05/06/2023,90246630,819.35,ALPENBEST LTD,SOCIAL SERVICES DAY CARE,Adult Social Care & Health,Homecare - new framework,A56127
Royal Borough of Kingston,05/06/2023,90246654,567.24,ALPENBEST LTD,SOCIAL SERVICES DAY CARE,Adult Social Care & Health,Homecare - new framework,A56127
Royal Borough of Kingston,05/06/2023,90246661,756.32,ALPENBEST LTD,SOCIAL SERVICES DAY CARE,Adult Social Care & Health,Homecare - new framework,A56127
Royal Borough of Kingston,05/06/2023,90246683,756.32,ALPENBEST LTD,SOCIAL SERVICES DAY CARE,Adult Social Care & Health,Homecare - new framework,A56127
Royal Borough of Kingston,05/06/2023,90246684,630.27,ALPENBEST LTD,SOCIAL SERVICES DAY CARE,Adult Social Care & Health,Homecare - new framework,A56127
Royal Borough of Kingston,05/06/2023,90246714,621.26,ALPENBEST LTD,SOCIAL SERVICES DAY CARE,Adult Social Care & Health,Homecare - new framework,A56127
Royal Borough of Kingston,05/06/2023,90246724,630.27,ALPENBEST LTD,SOCIAL SERVICES DAY CARE,Adult Social Care & Health,Homecare - new framework,A56127
Royal Borough of Kingston,05/06/2023,90246729,747.32,ALPENBEST LTD,SOCIAL SERVICES DAY CARE,Adult Social Care & Health,Homecare - new framework,A56127
Royal Borough of Kingston,05/06/2023,90246750,630.27,ALPENBEST LTD,SOCIAL SERVICES DAY CARE,Adult Social Care & Health,Homecare - new framework,A56127
Royal Borough of Kingston,05/06/2023,90246799,504.21,ALPENBEST LTD,SOCIAL SERVICES DAY CARE,Adult Social Care & Health,Homecare - new framework,A56127
Royal Borough of Kingston,05/06/2023,90246830,630.27,ALPENBEST LTD,SOCIAL SERVICES DAY CARE,Adult Social Care & Health,Homecare - new framework,A56127
Royal Borough of Kingston,05/06/2023,90246842,540.23,ALPENBEST LTD,SOCIAL SERVICES DAY CARE,Adult Social Care & Health,Homecare - new framework,A56127
Royal Borough of Kingston,05/06/2023,90247362,630.27,ALPENBEST LTD,SOCIAL SERVICES DAY CARE,Adult Social Care & Health,Personal Budget - Third Party,A61019
Royal Borough of Kingston,27/06/2023,90247545,"1,136.00",REDACTED - PERSONAL DATA,PLS LANDLORDS,Place,PSL Payments To Landlords,A22031
Royal Borough of Kingston,31/05/2023,70047769,"3,077.86",ANA TREATMENT CENTRES LTD,SOCIAL SERVICES RESIDENTIAL,Adult Social Care & Health,Independent Placements,A56006
Royal Borough of Kingston,31/05/2023,70047770,"3,077.86",ANA TREATMENT CENTRES LTD,SOCIAL SERVICES RESIDENTIAL,Adult Social Care & Health,Independent Placements,A56006
Royal Borough of Kingston,27/06/2023,90247902,"1,383.33",REDACTED - PERSONAL DATA,PLS LANDLORDS,Place,PSL Payments To Landlords,A22031
Royal Borough of Kingston,27/06/2023,90247880,"1,314.00",REDACTED - PERSONAL DATA,PLS LANDLORDS,Place,PSL Payments To Landlords,A22031
Royal Borough of Kingston,27/06/2023,90247802,"1,094.00",REDACTED - PERSONAL DATA,PLS LANDLORDS,Place,PSL Payments To Landlords,A22031
Royal Borough of Kingston,18/05/2023,70047664,"1,511.33",ANGLIAN WATER BUSINESS NATIONAL LTD,UTILITIES,Housing Revenue Account,Water Services,A24005
Royal Borough of Kingston,18/05/2023,70047665,"8,164.05",ANGLIAN WATER BUSINESS NATIONAL LTD,UTILITIES,Corporate & Communities,Water Services,A24005
Royal Borough of Kingston,18/05/2023,70047667,936.15,ANGLIAN WATER BUSINESS NATIONAL LTD,UTILITIES,Housing Revenue Account,Water Services,A24005
Royal Borough of Kingston,18/05/2023,70047667,375.91,ANGLIAN WATER BUSINESS NATIONAL LTD,UTILITIES,Housing Revenue Account,Water Services,A24005
Royal Borough of Kingston,18/06/2023,70048925,"-16,485.57",ANGLIAN WATER BUSINESS NATIONAL LTD,UTILITIES,Corporate & Communities,Water Services,A24005
Royal Borough of Kingston,27/06/2023,90247574,"1,094.00",REDACTED - PERSONAL DATA,PLS LANDLORDS,Place,PSL Payments To Landlords,A22031
Royal Borough of Kingston,08/06/2023,70048256,500.91,REDACTED - PERSONAL DATA,PLS LANDLORDS,Place,Payments to Voluntary Organisations,A54005
Royal Borough of Kingston,27/06/2023,90247925,"1,047.00",REDACTED - PERSONAL DATA,PLS LANDLORDS,Place,PSL Payments To Landlords,A22031
Royal Borough of Kingston,26/06/2023,70049004,"4,016.76",Anthony Hodari Holding Limited,SUNDRY SUPPLIER - FINANCE,Place,Compensation (In Lieu Of Works),A20039
Royal Borough of Kingston,12/06/2023,70048267,900.00,AP RENTAL INC LTD,LANDLORDS,Adult Social Care & Health,Housing Benefit - Rent Allowances -Private Tenants Only,A62009
Royal Borough of Kingston,12/06/2023,70048271,"1,260.00",AP RENTAL INC LTD,LANDLORDS,Adult Social Care & Health,Housing Benefit - Rent Allowances -Private Tenants Only,A62009
Royal Borough of Kingston,12/06/2023,70048272,"1,060.00",AP RENTAL INC LTD,LANDLORDS,Adult Social Care & Health,Housing Benefit - Rent Allowances -Private Tenants Only,A62009
Royal Borough of Kingston,12/06/2023,70048274,"1,110.00",AP RENTAL INC LTD,LANDLORDS,Adult Social Care & Health,Housing Benefit - Rent Allowances -Private Tenants Only,A62009
Royal Borough of Kingston,12/06/2023,70048280,"1,225.00",AP RENTAL INC LTD,LANDLORDS,Adult Social Care & Health,Housing Benefit - Rent Allowances -Private Tenants Only,A62009
Royal Borough of Kingston,31/05/2023,70048232,"1,705.00",APEX HOUSING SOLUTIONS LTD,ACCOMMODATION BED & BREAKFAST,Place,Bed & Breakfast,A56000
Royal Borough of Kingston,31/05/2023,70048233,"1,798.00",APEX HOUSING SOLUTIONS LTD,ACCOMMODATION BED & BREAKFAST,Place,Bed & Breakfast,A56000
Royal Borough of Kingston,31/05/2023,70048234,"1,670.90",APEX HOUSING SOLUTIONS LTD,ACCOMMODATION BED & BREAKFAST,Place,Bed & Breakfast,A56000
Royal Borough of Kingston,31/05/2023,70048235,"1,705.00",APEX HOUSING SOLUTIONS LTD,ACCOMMODATION BED & BREAKFAST,Place,Bed & Breakfast,A56000
Royal Borough of Kingston,31/05/2023,70048236,"1,670.90",APEX HOUSING SOLUTIONS LTD,ACCOMMODATION BED & BREAKFAST,Place,Bed & Breakfast,A56000
Royal Borough of Kingston,31/05/2023,70048237,"2,170.00",APEX HOUSING SOLUTIONS LTD,ACCOMMODATION BED & BREAKFAST,Place,Bed & Breakfast,A56000
Royal Borough of Kingston,31/05/2023,70048238,"1,705.00",APEX HOUSING SOLUTIONS LTD,ACCOMMODATION BED & BREAKFAST,Place,Bed & Breakfast,A56000
Royal Borough of Kingston,31/05/2023,70048239,"1,705.00",APEX HOUSING SOLUTIONS LTD,ACCOMMODATION BED & BREAKFAST,Place,Bed & Breakfast,A56000
Royal Borough of Kingston,31/05/2023,70048240,"1,798.00",APEX HOUSING SOLUTIONS LTD,ACCOMMODATION BED & BREAKFAST,Place,Bed & Breakfast,A56000
Royal Borough of Kingston,31/05/2023,70048241,"1,608.90",APEX HOUSING SOLUTIONS LTD,ACCOMMODATION BED & BREAKFAST,Place,Bed & Breakfast,A56000
Royal Borough of Kingston,31/05/2023,70048242,"1,798.00",APEX HOUSING SOLUTIONS LTD,ACCOMMODATION BED & BREAKFAST,Place,Bed & Breakfast,A56000
Royal Borough of Kingston,31/05/2023,70048243,"1,240.00",APEX HOUSING SOLUTIONS LTD,ACCOMMODATION BED & BREAKFAST,Place,Bed & Breakfast,A56000
Royal Borough of Kingston,31/05/2023,70048244,"1,798.00",APEX HOUSING SOLUTIONS LTD,ACCOMMODATION BED & BREAKFAST,Place,Bed & Breakfast,A56000
Royal Borough of Kingston,31/05/2023,70048245,"2,139.00",APEX HOUSING SOLUTIONS LTD,ACCOMMODATION BED & BREAKFAST,Place,Bed & Breakfast,A56000
Royal Borough of Kingston,31/05/2023,70048246,"1,670.90",APEX HOUSING SOLUTIONS LTD,ACCOMMODATION BED & BREAKFAST,Place,Bed & Breakfast,A56000
Royal Borough of Kingston,31/05/2023,70048247,"1,395.00",APEX HOUSING SOLUTIONS LTD,ACCOMMODATION BED & BREAKFAST,Place,Bed & Breakfast,A56000
Royal Borough of Kingston,31/05/2023,70048248,"2,356.00",APEX HOUSING SOLUTIONS LTD,ACCOMMODATION BED & BREAKFAST,Place,Bed & Breakfast,A56000
Royal Borough of Kingston,31/05/2023,70048249,"2,170.00",APEX HOUSING SOLUTIONS LTD,ACCOMMODATION BED & BREAKFAST,Place,Bed & Breakfast,A56000
Royal Borough of Kingston,31/05/2023,70048250,"1,546.90",APEX HOUSING SOLUTIONS LTD,ACCOMMODATION BED & BREAKFAST,Place,Bed & Breakfast,A56000
Royal Borough of Kingston,31/05/2023,70048251,"1,546.90",APEX HOUSING SOLUTIONS LTD,ACCOMMODATION BED & BREAKFAST,Place,Bed & Breakfast,A56000
Royal Borough of Kingston,31/05/2023,70048252,"1,608.90",APEX HOUSING SOLUTIONS LTD,ACCOMMODATION BED & BREAKFAST,Place,Bed & Breakfast,A56000
Royal Borough of Kingston,31/05/2023,70048253,"1,705.00",APEX HOUSING SOLUTIONS LTD,ACCOMMODATION BED & BREAKFAST,Place,Bed & Breakfast,A56000
Royal Borough of Kingston,31/05/2023,70048320,"3,255.00",APEX HOUSING SOLUTIONS LTD,ACCOMMODATION BED & BREAKFAST,Place,Bed & Breakfast,A56000
Royal Borough of Kingston,31/05/2023,70048343,"1,364.00",APEX HOUSING SOLUTIONS LTD,ACCOMMODATION BED & BREAKFAST,Place,Bed & Breakfast,A56000
Royal Borough of Kingston,28/02/2023,70049083,"1,397.20",APEX HOUSING SOLUTIONS LTD,ACCOMMODATION BED & BREAKFAST,Place,Bed & Breakfast,A56000
Royal Borough of Kingston,30/09/2022,70049084,"1,350.00",APEX HOUSING SOLUTIONS LTD,ACCOMMODATION BED & BREAKFAST,Place,Bed & Breakfast,A56000
Royal Borough of Kingston,31/05/2023,70047903,"6,600.00",AQUAVENT LIMITED,BUILDING MNTCE - SERVICES,Housing Revenue Account,Water Testing & Treatment,A20037
Royal Borough of Kingston,22/03/2023,70048686,989.00,Arbeth Consulting Ltd,SUNDRY SUPPLIER - FINANCE,Corporate & Communities,Payments to Contractors,C14000
Royal Borough of Kingston,14/06/2023,70048662,520.00,ARCADIS CONSULTING (UK) LTD,LEGAL & PROFESSIONAL SERVICES,Corporate & Communities,Bridge Repairs & Maintenance,A56035
Royal Borough of Kingston,14/06/2023,70048663,500.00,ARCADIS CONSULTING (UK) LTD,LEGAL & PROFESSIONAL SERVICES,Corporate & Communities,Bridge Repairs & Maintenance,A56035
Royal Borough of Kingston,01/06/2023,90245706,"6,405.43",ASHCROFT CARE SERVICES LIMITED,SOCIAL SERVICES RESIDENTIAL,Adult Social Care & Health,Independent Placements,A56006
Royal Borough of Kingston,01/06/2023,90247490,-517.71,ASHCROFT CARE SERVICES LIMITED,SOCIAL SERVICES RESIDENTIAL,Adult Social Care & Health,Financially Assessed Contributions clients � Non VAT,A92047
Royal Borough of Kingston,01/06/2023,90247304,967.80,ASHINGTON HOUSE LTD,SOCIAL SERVICES RESIDENTIAL,Adult Social Care & Health,Personal Budget - Third Party,A61019
Royal Borough of Kingston,01/06/2023,90247228,"1,371.00",ASHPRIME PROPERTIES LTD,SOCIAL SERVICES RESIDENTIAL,Adult Social Care & Health,Personal Budget - Third Party,A61019
Royal Borough of Kingston,01/06/2023,90244370,"5,495.02",ASHTON LODGE LTD,SOCIAL SERVICES RESIDENTIAL,Adult Social Care & Health,Independent Placements,A56006
Royal Borough of Kingston,01/06/2023,90244371,"5,317.76",ASHTON LODGE LTD,SOCIAL SERVICES RESIDENTIAL,Adult Social Care & Health,Independent Placements,A56006
Royal Borough of Kingston,01/06/2023,90244372,"5,495.02",ASHTON LODGE LTD,SOCIAL SERVICES RESIDENTIAL,Adult Social Care & Health,Independent Placements,A56006
Royal Borough of Kingston,01/06/2023,90244373,"5,495.02",ASHTON LODGE LTD,SOCIAL SERVICES RESIDENTIAL,Adult Social Care & Health,Independent Placements,A56006
Royal Borough of Kingston,01/06/2023,90244374,531.78,ASHTON LODGE LTD,SOCIAL SERVICES RESIDENTIAL,Adult Social Care & Health,Independent Placements,A56006
Royal Borough of Kingston,27/06/2023,90247813,"1,317.00",REDACTED - PERSONAL DATA,PLS LANDLORDS,Place,PSL Payments To Landlords,A22031
Royal Borough of Kingston,22/05/2023,70047337,66.16,ASKEWS AND HOLTS LIBRARY SERVICES LTD,BOOKS PUBLICATIONS STATIONERY,Corporate & Communities,Books,A43050
Royal Borough of Kingston,22/05/2023,70047337,"6,407.90",ASKEWS AND HOLTS LIBRARY SERVICES LTD,BOOKS PUBLICATIONS STATIONERY,Corporate & Communities,Books,A43050
Royal Borough of Kingston,22/05/2023,70047337,"2,184.12",ASKEWS AND HOLTS LIBRARY SERVICES LTD,BOOKS PUBLICATIONS STATIONERY,Corporate & Communities,Books,A43050
Royal Borough of Kingston,29/05/2023,70048194,"1,474.40",ASKEWS AND HOLTS LIBRARY SERVICES LTD,BOOKS PUBLICATIONS STATIONERY,Corporate & Communities,Books,A43050
Royal Borough of Kingston,29/05/2023,70048194,"1,746.38",ASKEWS AND HOLTS LIBRARY SERVICES LTD,BOOKS PUBLICATIONS STATIONERY,Corporate & Communities,Books,A43050
Royal Borough of Kingston,29/05/2023,70048194,"4,353.96",ASKEWS AND HOLTS LIBRARY SERVICES LTD,BOOKS PUBLICATIONS STATIONERY,Corporate & Communities,Books,A43050
Royal Borough of Kingston,29/05/2023,70048194,"1,313.87",ASKEWS AND HOLTS LIBRARY SERVICES LTD,BOOKS PUBLICATIONS STATIONERY,Corporate & Communities,Books,A43050
Royal Borough of Kingston,01/06/2023,90247280,"2,698.33",Aspirations Care Ltd,SOCIAL SERVICES - OTHER,Adult Social Care & Health,Personal Budget - Third Party,A61019
Royal Borough of Kingston,01/06/2023,90245531,"3,966.00",ASPREY HEALTHCARE LTD,SOCIAL SERVICES RESIDENTIAL,Adult Social Care & Health,Independent Placements,A56006
Royal Borough of Kingston,16/05/2023,70047298,500.00,Assessment and Services Innovation Ltd,TEMP STAFF & CONSULTANCY,Adult Social Care & Health,Other Private Contractors - Third Party,A56080
Royal Borough of Kingston,01/06/2023,90245391,"4,695.56",ASTORIA HEALTHCARE LTD,SOCIAL SERVICES RESIDENTIAL,Adult Social Care & Health,Independent Placements,A56006
Royal Borough of Kingston,04/05/2023,70046341,"52,159.94",ATLANTIC DATA LIMITED,TEMP STAFF & CONSULTANCY,Corporate & Communities,Subscriptions,A47010
Royal Borough of Kingston,27/06/2023,90247745,"1,094.34",AUMKARA INVESTMENTS LTD,PLS LANDLORDS,Place,PSL Payments To Landlords,A22031
Royal Borough of Kingston,27/06/2023,90247746,"1,094.34",AUMKARA INVESTMENTS LTD,PLS LANDLORDS,Place,PSL Payments To Landlords,A22031
Royal Borough of Kingston,27/06/2023,90247747,"1,094.34",AUMKARA INVESTMENTS LTD,PLS LANDLORDS,Place,PSL Payments To Landlords,A22031
Royal Borough of Kingston,01/06/2023,90245640,"11,528.01",AUTISM CONSULTANTS LTD,SOCIAL SERVICES RESIDENTIAL,Adult Social Care & Health,Independent Placements,A56006
Royal Borough of Kingston,09/06/2023,70048349,750.00,Avanti Cycling Ltd,TRAINING,Corporate & Communities,Training - Professional Qualification,A15024
Royal Borough of Kingston,15/05/2023,70047119,"2,204.81",AXIS EUROPE PLC,CONSTRUCTION INDUSTRY,Housing Revenue Account,Council Dwellings - Fire Safety,C10004
Royal Borough of Kingston,30/05/2023,70047321,"5,433.93",AXIS EUROPE PLC,CONSTRUCTION INDUSTRY,Housing Revenue Account,Council Dwellings - Construction & Renovation,C10002
Royal Borough of Kingston,30/05/2023,70047322,"3,622.53",AXIS EUROPE PLC,CONSTRUCTION INDUSTRY,Housing Revenue Account,Council Dwellings - Construction & Renovation,C10002
Royal Borough of Kingston,30/05/2023,70047328,752.76,AXIS EUROPE PLC,CONSTRUCTION INDUSTRY,Place,Property Repairs & Maintenance & Alterations - Responsive,A20011
Royal Borough of Kingston,11/04/2023,70047355,"2,426.09",AXIS EUROPE PLC,CONSTRUCTION INDUSTRY,Housing Revenue Account,Disabled Adaptations,C20003
Royal Borough of Kingston,06/06/2023,70047795,"2,429.86",AXIS EUROPE PLC,CONSTRUCTION INDUSTRY,Housing Revenue Account,Disabled Adaptations,C20003
Royal Borough of Kingston,06/06/2023,70047798,"1,533.64",AXIS EUROPE PLC,CONSTRUCTION INDUSTRY,Place,Property Repairs & Maintenance & Alterations - Responsive,A20011
Royal Borough of Kingston,06/06/2023,70047801,417.85,AXIS EUROPE PLC,CONSTRUCTION INDUSTRY,Housing Revenue Account,Other Private Contractors - Third Party,A56080
Royal Borough of Kingston,06/06/2023,70047802,"4,433.62",AXIS EUROPE PLC,CONSTRUCTION INDUSTRY,Housing Revenue Account,Council Dwellings - Construction & Renovation,C10002
Royal Borough of Kingston,31/05/2023,70047901,"2,802.62",AXIS EUROPE PLC,CONSTRUCTION INDUSTRY,Housing Revenue Account,Council Dwellings - Construction & Renovation,C10002
Royal Borough of Kingston,31/05/2023,70047902,"2,298.46",AXIS EUROPE PLC,CONSTRUCTION INDUSTRY,Housing Revenue Account,Council Dwellings - Construction & Renovation,C10002
Royal Borough of Kingston,30/05/2023,70047935,"1,944.81",AXIS EUROPE PLC,CONSTRUCTION INDUSTRY,Housing Revenue Account,Council Dwellings - Fire Safety,C10004
Royal Borough of Kingston,26/04/2023,70048318,"2,510.64",AXIS EUROPE PLC,CONSTRUCTION INDUSTRY,Housing Revenue Account,Council Dwellings - Construction & Renovation,C10002
Royal Borough of Kingston,12/06/2023,70048408,"1,057.98",AXIS EUROPE PLC,CONSTRUCTION INDUSTRY,Housing Revenue Account,Buildings - Project Management,C14003
Royal Borough of Kingston,12/06/2023,70048409,"3,097.14",AXIS EUROPE PLC,CONSTRUCTION INDUSTRY,Housing Revenue Account,Electricity,A21000
Royal Borough of Kingston,12/06/2023,70048410,"1,976.63",AXIS EUROPE PLC,CONSTRUCTION INDUSTRY,Housing Revenue Account,Council Dwellings - Construction & Renovation,C10002
Royal Borough of Kingston,12/06/2023,70048411,"14,142.88",AXIS EUROPE PLC,CONSTRUCTION INDUSTRY,Housing Revenue Account,Council Dwellings - Construction & Renovation,C10002
Royal Borough of Kingston,12/06/2023,70048412,930.33,AXIS EUROPE PLC,CONSTRUCTION INDUSTRY,Housing Revenue Account,Garage Repairs,A20040
Royal Borough of Kingston,12/06/2023,70048413,"6,847.55",AXIS EUROPE PLC,CONSTRUCTION INDUSTRY,Housing Revenue Account,Council Dwellings - Construction & Renovation,C10002
Royal Borough of Kingston,12/06/2023,70048416,"2,261.72",AXIS EUROPE PLC,CONSTRUCTION INDUSTRY,Housing Revenue Account,Council Dwellings - Construction & Renovation,C10002
Royal Borough of Kingston,12/06/2023,70048417,470.01,AXIS EUROPE PLC,CONSTRUCTION INDUSTRY,Place,Property Repairs & Maintenance & Alterations - Responsive,A20011
Royal Borough of Kingston,12/06/2023,70048418,"9,457.00",AXIS EUROPE PLC,CONSTRUCTION INDUSTRY,Housing Revenue Account,Council Dwellings - Capitalised Voids,C10001
Royal Borough of Kingston,12/06/2023,70048419,"10,573.91",AXIS EUROPE PLC,CONSTRUCTION INDUSTRY,Housing Revenue Account,Council Dwellings - Construction & Renovation,C10002
Royal Borough of Kingston,12/06/2023,70048420,"10,289.57",AXIS EUROPE PLC,CONSTRUCTION INDUSTRY,Housing Revenue Account,Disabled Adaptations,C20003
Royal Borough of Kingston,12/06/2023,70048422,"4,983.26",AXIS EUROPE PLC,CONSTRUCTION INDUSTRY,Housing Revenue Account,Council Dwellings - Construction & Renovation,C10002
Royal Borough of Kingston,12/06/2023,70048423,802.06,AXIS EUROPE PLC,CONSTRUCTION INDUSTRY,Housing Revenue Account,Council Dwellings - Construction & Renovation,C10002
Royal Borough of Kingston,12/06/2023,70048424,733.59,AXIS EUROPE PLC,CONSTRUCTION INDUSTRY,Housing Revenue Account,Council Dwellings - Capitalised Voids,C10001
Royal Borough of Kingston,16/06/2023,70048672,"59,591.12",AXIS EUROPE PLC,CONSTRUCTION INDUSTRY,Housing Revenue Account,Council Dwellings - Construction & Renovation,C10002
Royal Borough of Kingston,15/06/2023,70048673,"1,547.70",AXIS EUROPE PLC,CONSTRUCTION INDUSTRY,Housing Revenue Account,Council Dwellings - Fire Safety,C10004
Royal Borough of Kingston,19/06/2023,70048831,"2,957.00",AXIS EUROPE PLC,CONSTRUCTION INDUSTRY,Housing Revenue Account,Council Dwellings - Construction & Renovation,C10002
Royal Borough of Kingston,19/06/2023,70048836,"1,015.71",AXIS EUROPE PLC,CONSTRUCTION INDUSTRY,Housing Revenue Account,Council Dwellings - Fire Safety,C10004
Royal Borough of Kingston,19/06/2023,70048837,455.73,AXIS EUROPE PLC,CONSTRUCTION INDUSTRY,Housing Revenue Account,Council Dwellings - Construction & Renovation,C10002
Royal Borough of Kingston,19/06/2023,70048838,637.05,AXIS EUROPE PLC,CONSTRUCTION INDUSTRY,Housing Revenue Account,Council Dwellings - Construction & Renovation,C10002
Royal Borough of Kingston,19/06/2023,70048839,455.73,AXIS EUROPE PLC,CONSTRUCTION INDUSTRY,Housing Revenue Account,Council Dwellings - Construction & Renovation,C10002
Royal Borough of Kingston,19/06/2023,70048840,946.70,AXIS EUROPE PLC,CONSTRUCTION INDUSTRY,Housing Revenue Account,Council Dwellings - Capitalised Voids,C10001
Royal Borough of Kingston,19/06/2023,70048841,"11,810.16",AXIS EUROPE PLC,CONSTRUCTION INDUSTRY,Housing Revenue Account,Disabled Adaptations,C20003
Royal Borough of Kingston,19/06/2023,70048843,"2,411.84",AXIS EUROPE PLC,CONSTRUCTION INDUSTRY,Housing Revenue Account,Disabled Adaptations,C20003
Royal Borough of Kingston,19/06/2023,70048844,"1,015.71",AXIS EUROPE PLC,CONSTRUCTION INDUSTRY,Housing Revenue Account,Council Dwellings - Fire Safety,C10004
Royal Borough of Kingston,19/06/2023,70048879,"2,453.52",AXIS EUROPE PLC,CONSTRUCTION INDUSTRY,Housing Revenue Account,Council Dwellings - Construction & Renovation,C10002
Royal Borough of Kingston,19/06/2023,70048880,"3,194.55",AXIS EUROPE PLC,CONSTRUCTION INDUSTRY,Housing Revenue Account,Council Dwellings - Construction & Renovation,C10002
Royal Borough of Kingston,19/06/2023,70048881,"3,070.05",AXIS EUROPE PLC,CONSTRUCTION INDUSTRY,Housing Revenue Account,Council Dwellings - Construction & Renovation,C10002
Royal Borough of Kingston,19/06/2023,70048882,"2,298.46",AXIS EUROPE PLC,CONSTRUCTION INDUSTRY,Housing Revenue Account,Council Dwellings - Construction & Renovation,C10002
Royal Borough of Kingston,19/06/2023,70048883,"2,271.16",AXIS EUROPE PLC,CONSTRUCTION INDUSTRY,Housing Revenue Account,Council Dwellings - Construction & Renovation,C10002
Royal Borough of Kingston,19/06/2023,70048884,"2,014.25",AXIS EUROPE PLC,CONSTRUCTION INDUSTRY,Housing Revenue Account,Council Dwellings - Construction & Renovation,C10002
Royal Borough of Kingston,19/06/2023,70048885,"2,541.81",AXIS EUROPE PLC,CONSTRUCTION INDUSTRY,Housing Revenue Account,Council Dwellings - Construction & Renovation,C10002
Royal Borough of Kingston,19/06/2023,70048886,"2,531.51",AXIS EUROPE PLC,CONSTRUCTION INDUSTRY,Housing Revenue Account,Council Dwellings - Construction & Renovation,C10002
Royal Borough of Kingston,19/06/2023,70048887,"2,436.50",AXIS EUROPE PLC,CONSTRUCTION INDUSTRY,Housing Revenue Account,Council Dwellings - Construction & Renovation,C10002
Royal Borough of Kingston,19/06/2023,70048888,"2,823.70",AXIS EUROPE PLC,CONSTRUCTION INDUSTRY,Housing Revenue Account,Council Dwellings - Construction & Renovation,C10002
Royal Borough of Kingston,19/06/2023,70048889,"2,316.34",AXIS EUROPE PLC,CONSTRUCTION INDUSTRY,Housing Revenue Account,Council Dwellings - Construction & Renovation,C10002
Royal Borough of Kingston,19/06/2023,70048890,"2,295.27",AXIS EUROPE PLC,CONSTRUCTION INDUSTRY,Housing Revenue Account,Council Dwellings - Construction & Renovation,C10002
Royal Borough of Kingston,21/06/2023,70048891,"2,077.28",AXIS EUROPE PLC,CONSTRUCTION INDUSTRY,Housing Revenue Account,Council Dwellings - Fire Safety,C10004
Royal Borough of Kingston,23/06/2023,70048975,607.50,AXIS EUROPE PLC,CONSTRUCTION INDUSTRY,Housing Revenue Account,Council Dwellings - Fire Safety,C10004
Royal Borough of Kingston,23/06/2023,70048976,"6,089.57",AXIS EUROPE PLC,CONSTRUCTION INDUSTRY,Housing Revenue Account,Council Dwellings - Fire Safety,C10004
Royal Borough of Kingston,26/06/2023,70049091,"5,004.27",AXIS EUROPE PLC,CONSTRUCTION INDUSTRY,Housing Revenue Account,Buildings - Project Management,C14003
Royal Borough of Kingston,26/06/2023,70049092,"3,978.44",AXIS EUROPE PLC,CONSTRUCTION INDUSTRY,Housing Revenue Account,Disabled Adaptations,C20003
Royal Borough of Kingston,26/06/2023,70049093,"4,253.37",AXIS EUROPE PLC,CONSTRUCTION INDUSTRY,Place,Property Repairs & Maintenance & Alterations - Responsive,A20011
Royal Borough of Kingston,26/06/2023,70049096,"10,225.22",AXIS EUROPE PLC,CONSTRUCTION INDUSTRY,Housing Revenue Account,Disabled Adaptations,C20003
Royal Borough of Kingston,26/06/2023,70049103,"7,163.71",AXIS EUROPE PLC,CONSTRUCTION INDUSTRY,Housing Revenue Account,Disabled Adaptations,C20003
Royal Borough of Kingston,26/06/2023,70049105,"1,387.01",AXIS EUROPE PLC,CONSTRUCTION INDUSTRY,Housing Revenue Account,Council Dwellings - Construction & Renovation,C10002
Royal Borough of Kingston,26/06/2023,70049106,"1,387.01",AXIS EUROPE PLC,CONSTRUCTION INDUSTRY,Housing Revenue Account,Council Dwellings - Construction & Renovation,C10002
Royal Borough of Kingston,26/06/2023,70049107,"13,211.37",AXIS EUROPE PLC,CONSTRUCTION INDUSTRY,Housing Revenue Account,Council Dwellings - Construction & Renovation,C10002
Royal Borough of Kingston,26/06/2023,70049109,"1,015.71",AXIS EUROPE PLC,CONSTRUCTION INDUSTRY,Housing Revenue Account,Council Dwellings - Fire Safety,C10004
Royal Borough of Kingston,26/06/2023,70049110,"1,015.71",AXIS EUROPE PLC,CONSTRUCTION INDUSTRY,Housing Revenue Account,Council Dwellings - Fire Safety,C10004
Royal Borough of Kingston,26/06/2023,70049111,"13,689.18",AXIS EUROPE PLC,CONSTRUCTION INDUSTRY,Housing Revenue Account,Disabled Adaptations,C20003
Royal Borough of Kingston,26/06/2023,70049112,"1,387.01",AXIS EUROPE PLC,CONSTRUCTION INDUSTRY,Housing Revenue Account,Council Dwellings - Construction & Renovation,C10002
Royal Borough of Kingston,26/06/2023,70049113,"2,077.28",AXIS EUROPE PLC,CONSTRUCTION INDUSTRY,Housing Revenue Account,Council Dwellings - Fire Safety,C10004
Royal Borough of Kingston,22/06/2023,70049203,"10,000.00",AXIS EUROPE PLC,CONSTRUCTION INDUSTRY,Housing Revenue Account,Council Dwellings - Construction & Renovation,C10002
Royal Borough of Kingston,27/06/2023,70049208,"2,987.90",AXIS EUROPE PLC,CONSTRUCTION INDUSTRY,Housing Revenue Account,Council Dwellings - Fire Safety,C10004
Royal Borough of Kingston,22/06/2023,70049234,"99,155.39",AXIS EUROPE PLC,CONSTRUCTION INDUSTRY,Housing Revenue Account,Council Dwellings - Construction & Renovation,C10002
Royal Borough of Kingston,27/06/2023,90247744,"1,314.00",REDACTED - PERSONAL DATA,PLS LANDLORDS,Place,PSL Payments To Landlords,A22031
Royal Borough of Kingston,27/06/2023,90247861,"1,094.00",REDACTED - PERSONAL DATA,PLS LANDLORDS,Place,PSL Payments To Landlords,A22031
Royal Borough of Kingston,27/06/2023,90247531,758.33,REDACTED - PERSONAL DATA,PLS LANDLORDS,Place,PSL Payments To Landlords,A22031
Royal Borough of Kingston,28/04/2023,70046482,"29,199.65",BALANCE (SUPPORT) C.I.C,SOCIAL SERVICES - OTHER,Adult Social Care & Health,Professional Fees,A44066
Royal Borough of Kingston,31/05/2023,70048449,"1,929.28",BALANCE (SUPPORT) C.I.C,SOCIAL SERVICES - OTHER,Adult Social Care & Health,Other Property Repairs & Maintenance,A20007
Royal Borough of Kingston,01/06/2023,90245793,"2,406.00",BALANCE (SUPPORT) C.I.C,SOCIAL SERVICES - OTHER,Adult Social Care & Health,Supported Living - new framework,A56126
Royal Borough of Kingston,01/06/2023,90245794,598.34,BALANCE (SUPPORT) C.I.C,SOCIAL SERVICES - OTHER,Adult Social Care & Health,Supported Living - new framework,A56126
Royal Borough of Kingston,01/06/2023,90245798,"1,804.49",BALANCE (SUPPORT) C.I.C,SOCIAL SERVICES - OTHER,Adult Social Care & Health,Supported Living - new framework,A56126
Royal Borough of Kingston,01/06/2023,90245803,"1,621.62",BALANCE (SUPPORT) C.I.C,SOCIAL SERVICES - OTHER,Adult Social Care & Health,Supported Living - new framework,A56126
Royal Borough of Kingston,01/06/2023,90245812,900.90,BALANCE (SUPPORT) C.I.C,SOCIAL SERVICES - OTHER,Adult Social Care & Health,Supported Living - new framework,A56126
Royal Borough of Kingston,01/06/2023,90245813,"1,722.97",BALANCE (SUPPORT) C.I.C,SOCIAL SERVICES - OTHER,Adult Social Care & Health,Supported Living - new framework,A56126
Royal Borough of Kingston,01/06/2023,90245821,900.90,BALANCE (SUPPORT) C.I.C,SOCIAL SERVICES - OTHER,Adult Social Care & Health,Supported Living - new framework,A56126
Royal Borough of Kingston,01/06/2023,90245822,"2,297.30",BALANCE (SUPPORT) C.I.C,SOCIAL SERVICES - OTHER,Adult Social Care & Health,Supported Living - new framework,A56126
Royal Borough of Kingston,01/06/2023,90245823,564.99,BALANCE (SUPPORT) C.I.C,SOCIAL SERVICES - OTHER,Adult Social Care & Health,Supported Living - new framework,A56126
Royal Borough of Kingston,01/06/2023,90245830,"1,171.17",BALANCE (SUPPORT) C.I.C,SOCIAL SERVICES - OTHER,Adult Social Care & Health,Supported Living - new framework,A56126
Royal Borough of Kingston,01/06/2023,90245831,"2,297.30",BALANCE (SUPPORT) C.I.C,SOCIAL SERVICES - OTHER,Adult Social Care & Health,Supported Living - new framework,A56126
Royal Borough of Kingston,01/06/2023,90245832,564.99,BALANCE (SUPPORT) C.I.C,SOCIAL SERVICES - OTHER,Adult Social Care & Health,Supported Living - new framework,A56126
Royal Borough of Kingston,01/06/2023,90245833,"1,804.49",BALANCE (SUPPORT) C.I.C,SOCIAL SERVICES - OTHER,Adult Social Care & Health,Supported Living - new framework,A56126
Royal Borough of Kingston,01/06/2023,90245834,679.33,BALANCE (SUPPORT) C.I.C,SOCIAL SERVICES - OTHER,Adult Social Care & Health,Supported Living - new framework,A56126
Royal Borough of Kingston,01/06/2023,90245836,"2,297.30",BALANCE (SUPPORT) C.I.C,SOCIAL SERVICES - OTHER,Adult Social Care & Health,Supported Living - new framework,A56126
Royal Borough of Kingston,01/06/2023,90245837,564.99,BALANCE (SUPPORT) C.I.C,SOCIAL SERVICES - OTHER,Adult Social Care & Health,Supported Living - new framework,A56126
Royal Borough of Kingston,01/06/2023,90245838,630.63,BALANCE (SUPPORT) C.I.C,SOCIAL SERVICES - OTHER,Adult Social Care & Health,Supported Living - new framework,A56126
Royal Borough of Kingston,01/06/2023,90245848,990.99,BALANCE (SUPPORT) C.I.C,SOCIAL SERVICES - OTHER,Adult Social Care & Health,Supported Living - new framework,A56126
Royal Borough of Kingston,01/06/2023,90245849,"1,722.97",BALANCE (SUPPORT) C.I.C,SOCIAL SERVICES - OTHER,Adult Social Care & Health,Supported Living - new framework,A56126
Royal Borough of Kingston,01/06/2023,90245856,"1,722.97",BALANCE (SUPPORT) C.I.C,SOCIAL SERVICES - OTHER,Adult Social Care & Health,Supported Living - new framework,A56126
Royal Borough of Kingston,01/06/2023,90245861,810.81,BALANCE (SUPPORT) C.I.C,SOCIAL SERVICES - OTHER,Adult Social Care & Health,Supported Living - new framework,A56126
Royal Borough of Kingston,29/05/2023,90245882,630.60,BALANCE (SUPPORT) C.I.C,SOCIAL SERVICES - OTHER,Adult Social Care & Health,Supported Living - new framework,A56126
Royal Borough of Kingston,29/05/2023,90245883,504.48,BALANCE (SUPPORT) C.I.C,SOCIAL SERVICES - OTHER,Adult Social Care & Health,Supported Living - new framework,A56126
Royal Borough of Kingston,29/05/2023,90245901,924.88,BALANCE (SUPPORT) C.I.C,SOCIAL SERVICES - OTHER,Adult Social Care & Health,Supported Living - new framework,A56126
Royal Borough of Kingston,29/05/2023,90245904,"1,261.20",BALANCE (SUPPORT) C.I.C,SOCIAL SERVICES - OTHER,Adult Social Care & Health,Supported Living - new framework,A56126
Royal Borough of Kingston,29/05/2023,90245905,672.64,BALANCE (SUPPORT) C.I.C,SOCIAL SERVICES - OTHER,Adult Social Care & Health,Supported Living - new framework,A56126
Royal Borough of Kingston,29/05/2023,90245908,504.48,BALANCE (SUPPORT) C.I.C,SOCIAL SERVICES - OTHER,Adult Social Care & Health,Supported Living - new framework,A56126
Royal Borough of Kingston,29/05/2023,90245919,504.48,BALANCE (SUPPORT) C.I.C,SOCIAL SERVICES - OTHER,Adult Social Care & Health,Supported Living - new framework,A56126
Royal Borough of Kingston,29/05/2023,90245920,504.48,BALANCE (SUPPORT) C.I.C,SOCIAL SERVICES - OTHER,Adult Social Care & Health,Supported Living - new framework,A56126
Royal Borough of Kingston,29/05/2023,90245921,504.48,BALANCE (SUPPORT) C.I.C,SOCIAL SERVICES - OTHER,Adult Social Care & Health,Supported Living - new framework,A56126
Royal Borough of Kingston,29/05/2023,90245935,"1,345.28",BALANCE (SUPPORT) C.I.C,SOCIAL SERVICES - OTHER,Adult Social Care & Health,Supported Living - new framework,A56126
Royal Borough of Kingston,29/05/2023,90245937,588.56,BALANCE (SUPPORT) C.I.C,SOCIAL SERVICES - OTHER,Adult Social Care & Health,Supported Living - new framework,A56126
Royal Borough of Kingston,29/05/2023,90245938,672.64,BALANCE (SUPPORT) C.I.C,SOCIAL SERVICES - OTHER,Adult Social Care & Health,Supported Living - new framework,A56126
Royal Borough of Kingston,29/05/2023,90245939,"1,429.36",BALANCE (SUPPORT) C.I.C,SOCIAL SERVICES - OTHER,Adult Social Care & Health,Supported Living - new framework,A56126
Royal Borough of Kingston,29/05/2023,90245941,504.48,BALANCE (SUPPORT) C.I.C,SOCIAL SERVICES - OTHER,Adult Social Care & Health,Supported Living - new framework,A56126
Royal Borough of Kingston,29/05/2023,90245942,504.48,BALANCE (SUPPORT) C.I.C,SOCIAL SERVICES - OTHER,Adult Social Care & Health,Supported Living - new framework,A56126
Royal Borough of Kingston,29/05/2023,90245970,840.80,BALANCE (SUPPORT) C.I.C,SOCIAL SERVICES - OTHER,Adult Social Care & Health,Supported Living - new framework,A56126
Royal Borough of Kingston,29/05/2023,90245971,756.72,BALANCE (SUPPORT) C.I.C,SOCIAL SERVICES - OTHER,Adult Social Care & Health,Supported Living - new framework,A56126
Royal Borough of Kingston,29/05/2023,90245973,"1,429.36",BALANCE (SUPPORT) C.I.C,SOCIAL SERVICES - OTHER,Adult Social Care & Health,Supported Living - new framework,A56126
Royal Borough of Kingston,29/05/2023,90245984,504.48,BALANCE (SUPPORT) C.I.C,SOCIAL SERVICES - OTHER,Adult Social Care & Health,Supported Living - new framework,A56126
Royal Borough of Kingston,29/05/2023,90245985,504.48,BALANCE (SUPPORT) C.I.C,SOCIAL SERVICES - OTHER,Adult Social Care & Health,Supported Living - new framework,A56126
Royal Borough of Kingston,29/05/2023,90245986,504.48,BALANCE (SUPPORT) C.I.C,SOCIAL SERVICES - OTHER,Adult Social Care & Health,Supported Living - new framework,A56126
Royal Borough of Kingston,29/05/2023,90246001,672.64,BALANCE (SUPPORT) C.I.C,SOCIAL SERVICES - OTHER,Adult Social Care & Health,Supported Living - new framework,A56126
Royal Borough of Kingston,29/05/2023,90246012,504.48,BALANCE (SUPPORT) C.I.C,SOCIAL SERVICES - OTHER,Adult Social Care & Health,Supported Living - new framework,A56126
Royal Borough of Kingston,29/05/2023,90246013,504.48,BALANCE (SUPPORT) C.I.C,SOCIAL SERVICES - OTHER,Adult Social Care & Health,Supported Living - new framework,A56126
Royal Borough of Kingston,29/05/2023,90246014,504.48,BALANCE (SUPPORT) C.I.C,SOCIAL SERVICES - OTHER,Adult Social Care & Health,Supported Living - new framework,A56126
Royal Borough of Kingston,29/05/2023,90246015,"1,093.04",BALANCE (SUPPORT) C.I.C,SOCIAL SERVICES - OTHER,Adult Social Care & Health,Supported Living - new framework,A56126
Royal Borough of Kingston,29/05/2023,90246017,"1,513.44",BALANCE (SUPPORT) C.I.C,SOCIAL SERVICES - OTHER,Adult Social Care & Health,Supported Living - new framework,A56126
Royal Borough of Kingston,29/05/2023,90246020,"1,177.12",BALANCE (SUPPORT) C.I.C,SOCIAL SERVICES - OTHER,Adult Social Care & Health,Supported Living - new framework,A56126
Royal Borough of Kingston,29/05/2023,90246086,504.48,BALANCE (SUPPORT) C.I.C,SOCIAL SERVICES - OTHER,Adult Social Care & Health,Supported Living - new framework,A56126
Royal Borough of Kingston,29/05/2023,90246101,504.48,BALANCE (SUPPORT) C.I.C,SOCIAL SERVICES - OTHER,Adult Social Care & Health,Supported Living - new framework,A56126
Royal Borough of Kingston,29/05/2023,90246105,"1,008.96",BALANCE (SUPPORT) C.I.C,SOCIAL SERVICES - OTHER,Adult Social Care & Health,Supported Living - new framework,A56126
Royal Borough of Kingston,29/05/2023,90246108,672.64,BALANCE (SUPPORT) C.I.C,SOCIAL SERVICES - OTHER,Adult Social Care & Health,Supported Living - new framework,A56126
Royal Borough of Kingston,01/06/2023,90246930,530.59,BALANCE (SUPPORT) C.I.C,SOCIAL SERVICES - OTHER,Adult Social Care & Health,Personal Budget - Third Party,A61019
Royal Borough of Kingston,01/06/2023,90246931,530.59,BALANCE (SUPPORT) C.I.C,SOCIAL SERVICES - OTHER,Adult Social Care & Health,Personal Budget - Third Party,A61019
Royal Borough of Kingston,01/06/2023,90246932,"12,516.43",BALANCE (SUPPORT) C.I.C,SOCIAL SERVICES - OTHER,Adult Social Care & Health,Personal Budget - Third Party,A61019
Royal Borough of Kingston,22/05/2023,90246999,832.00,BALANCE (SUPPORT) C.I.C,SOCIAL SERVICES - OTHER,Adult Social Care & Health,Personal Budget - Third Party,A61019
Royal Borough of Kingston,22/05/2023,90247067,"1,040.00",BALANCE (SUPPORT) C.I.C,SOCIAL SERVICES - OTHER,Adult Social Care & Health,Personal Budget - Third Party,A61019
Royal Borough of Kingston,22/05/2023,90247068,832.00,BALANCE (SUPPORT) C.I.C,SOCIAL SERVICES - OTHER,Adult Social Care & Health,Personal Budget - Third Party,A61019
Royal Borough of Kingston,22/05/2023,90247074,"1,040.00",BALANCE (SUPPORT) C.I.C,SOCIAL SERVICES - OTHER,Adult Social Care & Health,Personal Budget - Third Party,A61019
Royal Borough of Kingston,01/06/2023,90247097,584.74,BALANCE (SUPPORT) C.I.C,SOCIAL SERVICES - OTHER,Adult Social Care & Health,Personal Budget - Third Party,A61019
Royal Borough of Kingston,01/06/2023,90247117,974.57,BALANCE (SUPPORT) C.I.C,SOCIAL SERVICES - OTHER,Adult Social Care & Health,Personal Budget - Third Party,A61019
Royal Borough of Kingston,01/06/2023,90247119,"1,364.36",BALANCE (SUPPORT) C.I.C,SOCIAL SERVICES - OTHER,Adult Social Care & Health,Personal Budget - Third Party,A61019
Royal Borough of Kingston,01/06/2023,90247120,974.57,BALANCE (SUPPORT) C.I.C,SOCIAL SERVICES - OTHER,Adult Social Care & Health,Personal Budget - Third Party,A61019
Royal Borough of Kingston,01/06/2023,90247121,536.01,BALANCE (SUPPORT) C.I.C,SOCIAL SERVICES - OTHER,Adult Social Care & Health,Personal Budget - Third Party,A61019
Royal Borough of Kingston,01/06/2023,90247125,"1,315.67",BALANCE (SUPPORT) C.I.C,SOCIAL SERVICES - OTHER,Adult Social Care & Health,Personal Budget - Third Party,A61019
Royal Borough of Kingston,01/06/2023,90247127,584.74,BALANCE (SUPPORT) C.I.C,SOCIAL SERVICES - OTHER,Adult Social Care & Health,Personal Budget - Third Party,A61019
Royal Borough of Kingston,01/06/2023,90247135,"2,241.47",BALANCE (SUPPORT) C.I.C,SOCIAL SERVICES - OTHER,Adult Social Care & Health,Personal Budget - Third Party,A61019
Royal Borough of Kingston,01/06/2023,90247136,"1,461.81",BALANCE (SUPPORT) C.I.C,SOCIAL SERVICES - OTHER,Adult Social Care & Health,Personal Budget - Third Party,A61019
Royal Borough of Kingston,01/06/2023,90247147,584.74,BALANCE (SUPPORT) C.I.C,SOCIAL SERVICES - OTHER,Adult Social Care & Health,Personal Budget - Third Party,A61019
Royal Borough of Kingston,01/06/2023,90247150,-575.45,BALANCE (SUPPORT) C.I.C,SOCIAL SERVICES - OTHER,Adult Social Care & Health,Personal Budget - Third Party,A61019
Royal Borough of Kingston,01/06/2023,90247151,-556.89,BALANCE (SUPPORT) C.I.C,SOCIAL SERVICES - OTHER,Adult Social Care & Health,Personal Budget - Third Party,A61019
Royal Borough of Kingston,01/06/2023,90247152,-575.45,BALANCE (SUPPORT) C.I.C,SOCIAL SERVICES - OTHER,Adult Social Care & Health,Personal Budget - Third Party,A61019
Royal Borough of Kingston,01/06/2023,90247153,-556.89,BALANCE (SUPPORT) C.I.C,SOCIAL SERVICES - OTHER,Adult Social Care & Health,Personal Budget - Third Party,A61019
Royal Borough of Kingston,01/06/2023,90247154,-575.45,BALANCE (SUPPORT) C.I.C,SOCIAL SERVICES - OTHER,Adult Social Care & Health,Personal Budget - Third Party,A61019
Royal Borough of Kingston,01/06/2023,90247155,-575.45,BALANCE (SUPPORT) C.I.C,SOCIAL SERVICES - OTHER,Adult Social Care & Health,Personal Budget - Third Party,A61019
Royal Borough of Kingston,01/06/2023,90247156,-519.76,BALANCE (SUPPORT) C.I.C,SOCIAL SERVICES - OTHER,Adult Social Care & Health,Personal Budget - Third Party,A61019
Royal Borough of Kingston,01/06/2023,90247157,-575.45,BALANCE (SUPPORT) C.I.C,SOCIAL SERVICES - OTHER,Adult Social Care & Health,Personal Budget - Third Party,A61019
Royal Borough of Kingston,01/06/2023,90247158,-584.74,BALANCE (SUPPORT) C.I.C,SOCIAL SERVICES - OTHER,Adult Social Care & Health,Personal Budget - Third Party,A61019
Royal Borough of Kingston,01/06/2023,90247159,-604.23,BALANCE (SUPPORT) C.I.C,SOCIAL SERVICES - OTHER,Adult Social Care & Health,Personal Budget - Third Party,A61019
Royal Borough of Kingston,01/06/2023,90247176,"2,687.40",BALANCE (SUPPORT) C.I.C,SOCIAL SERVICES - OTHER,Adult Social Care & Health,Personal Budget - Third Party,A61019
Royal Borough of Kingston,01/06/2023,90247185,"1,461.81",BALANCE (SUPPORT) C.I.C,SOCIAL SERVICES - OTHER,Adult Social Care & Health,Personal Budget - Third Party,A61019
Royal Borough of Kingston,01/06/2023,90247191,877.11,BALANCE (SUPPORT) C.I.C,SOCIAL SERVICES - OTHER,Adult Social Care & Health,Personal Budget - Third Party,A61019
Royal Borough of Kingston,01/06/2023,90247193,"1,245.17",BALANCE (SUPPORT) C.I.C,SOCIAL SERVICES - OTHER,Adult Social Care & Health,Personal Budget - Third Party,A61019
Royal Borough of Kingston,01/06/2023,90247196,584.74,BALANCE (SUPPORT) C.I.C,SOCIAL SERVICES - OTHER,Adult Social Care & Health,Personal Budget - Third Party,A61019
Royal Borough of Kingston,01/06/2023,90247248,779.61,BALANCE (SUPPORT) C.I.C,SOCIAL SERVICES - OTHER,Adult Social Care & Health,Personal Budget - Third Party,A61019
Royal Borough of Kingston,01/06/2023,90247251,"1,656.73",BALANCE (SUPPORT) C.I.C,SOCIAL SERVICES - OTHER,Adult Social Care & Health,Personal Budget - Third Party,A61019
Royal Borough of Kingston,01/06/2023,90247253,552.09,BALANCE (SUPPORT) C.I.C,SOCIAL SERVICES - OTHER,Adult Social Care & Health,Personal Budget - Third Party,A61019
Royal Borough of Kingston,01/06/2023,90247281,-575.45,BALANCE (SUPPORT) C.I.C,SOCIAL SERVICES - OTHER,Adult Social Care & Health,Personal Budget - Third Party,A61019
Royal Borough of Kingston,01/06/2023,90247282,-556.89,BALANCE (SUPPORT) C.I.C,SOCIAL SERVICES - OTHER,Adult Social Care & Health,Personal Budget - Third Party,A61019
Royal Borough of Kingston,01/06/2023,90247283,-575.45,BALANCE (SUPPORT) C.I.C,SOCIAL SERVICES - OTHER,Adult Social Care & Health,Personal Budget - Third Party,A61019
Royal Borough of Kingston,01/06/2023,90247284,-556.89,BALANCE (SUPPORT) C.I.C,SOCIAL SERVICES - OTHER,Adult Social Care & Health,Personal Budget - Third Party,A61019
Royal Borough of Kingston,01/06/2023,90247285,-575.45,BALANCE (SUPPORT) C.I.C,SOCIAL SERVICES - OTHER,Adult Social Care & Health,Personal Budget - Third Party,A61019
Royal Borough of Kingston,01/06/2023,90247286,-575.45,BALANCE (SUPPORT) C.I.C,SOCIAL SERVICES - OTHER,Adult Social Care & Health,Personal Budget - Third Party,A61019
Royal Borough of Kingston,01/06/2023,90247287,-519.76,BALANCE (SUPPORT) C.I.C,SOCIAL SERVICES - OTHER,Adult Social Care & Health,Personal Budget - Third Party,A61019
Royal Borough of Kingston,01/06/2023,90247288,-575.45,BALANCE (SUPPORT) C.I.C,SOCIAL SERVICES - OTHER,Adult Social Care & Health,Personal Budget - Third Party,A61019
Royal Borough of Kingston,01/06/2023,90247289,-584.74,BALANCE (SUPPORT) C.I.C,SOCIAL SERVICES - OTHER,Adult Social Care & Health,Personal Budget - Third Party,A61019
Royal Borough of Kingston,01/06/2023,90247290,-604.23,BALANCE (SUPPORT) C.I.C,SOCIAL SERVICES - OTHER,Adult Social Care & Health,Personal Budget - Third Party,A61019
Royal Borough of Kingston,01/06/2023,90247292,"1,364.36",BALANCE (SUPPORT) C.I.C,SOCIAL SERVICES - OTHER,Adult Social Care & Health,Personal Budget - Third Party,A61019
Royal Borough of Kingston,01/06/2023,90247294,584.74,BALANCE (SUPPORT) C.I.C,SOCIAL SERVICES - OTHER,Adult Social Care & Health,Personal Budget - Third Party,A61019
Royal Borough of Kingston,01/06/2023,90247295,"1,754.19",BALANCE (SUPPORT) C.I.C,SOCIAL SERVICES - OTHER,Adult Social Care & Health,Personal Budget - Third Party,A61019
Royal Borough of Kingston,30/05/2023,70047504,573.53,Banner Group Ltd,OFFICE SUPPLIES,Corporate & Communities,Stationery,A43015
Royal Borough of Kingston,01/06/2023,90245320,"3,647.36",BARCHESTER HEALTHCARE,SOCIAL SERVICES RESIDENTIAL,Adult Social Care & Health,Independent Placements,A56006
Royal Borough of Kingston,01/06/2023,90245533,"4,341.56",BAVANI CARE HOME LIMITED,SOCIAL SERVICES RESIDENTIAL,Adult Social Care & Health,Independent Placements,A56006
Royal Borough of Kingston,01/06/2023,90245542,"3,857.14",BAVANI CARE HOME LIMITED,SOCIAL SERVICES RESIDENTIAL,Adult Social Care & Health,Independent Placements,A56006
Royal Borough of Kingston,01/06/2023,90245602,"4,557.14",BAVANI CARE HOME LIMITED,SOCIAL SERVICES RESIDENTIAL,Adult Social Care & Health,Independent Placements,A56006
Royal Borough of Kingston,01/06/2023,90245603,"4,242.86",BAVANI CARE HOME LIMITED,SOCIAL SERVICES RESIDENTIAL,Adult Social Care & Health,Independent Placements,A56006
Royal Borough of Kingston,24/04/2023,70047759,715.81,BDT HEALTHCARE LTD,SOCIAL SERVICES - OTHER,Adult Social Care & Health,Other Private Contractors - Third Party,A56080
Royal Borough of Kingston,09/05/2023,70046330,858.41,BFS GROUP LIMITED,CATERING SERVICES,Adult Social Care & Health,Purchases for resale,A49004
Royal Borough of Kingston,30/04/2023,70045968,"5,235.45",CHELSEA & WESTMINSTERS HOSP NHS FT,MANAGEMENT & TRAINING SERVICES,Adult Social Care & Health,Other Private Contractors - Third Party,A56080
Royal Borough of Kingston,24/05/2023,70047158,857.02,CHELSEA & WESTMINSTERS HOSP NHS FT,MANAGEMENT & TRAINING SERVICES,Adult Social Care & Health,Other Private Contractors - Third Party,A56080
Royal Borough of Kingston,23/05/2023,70047244,"-3,737.21",CHELSEA & WESTMINSTERS HOSP NHS FT,MANAGEMENT & TRAINING SERVICES,Adult Social Care & Health,Other Private Contractors - Third Party,A56080
Royal Borough of Kingston,31/05/2023,70047852,"5,235.45",CHELSEA & WESTMINSTERS HOSP NHS FT,MANAGEMENT & TRAINING SERVICES,Adult Social Care & Health,Other Private Contractors - Third Party,A56080
Royal Borough of Kingston,27/06/2023,90247516,"1,317.76",REDACTED - PERSONAL DATA,PLS LANDLORDS,Place,PSL Payments To Landlords,A22031
Royal Borough of Kingston,31/05/2023,70048812,"2,784.07",BIO COLLECTORS LTD,REFUSE COLLECTION / DISPOSAL,Corporate & Communities,Compostables,A56055
Royal Borough of Kingston,24/08/2022,70047490,"4,148.35",BIOLOGICAL PREPARATIONS LTD,TRAINING,Housing Revenue Account,Cleaning Supplies,A27020
Royal Borough of Kingston,15/05/2023,90242037,559.02,BLUE ARROW CARE LTD,SOCIAL SERVICES-HOME CARE,Adult Social Care & Health,Personal Budget - Third Party,A61019
Royal Borough of Kingston,22/05/2023,90244264,559.02,BLUE ARROW CARE LTD,SOCIAL SERVICES-HOME CARE,Adult Social Care & Health,Personal Budget - Third Party,A61019
Royal Borough of Kingston,29/05/2023,90245119,559.02,BLUE ARROW CARE LTD,SOCIAL SERVICES-HOME CARE,Adult Social Care & Health,Personal Budget - Third Party,A61019
Royal Borough of Kingston,05/06/2023,90247363,559.02,BLUE ARROW CARE LTD,SOCIAL SERVICES-HOME CARE,Adult Social Care & Health,Personal Budget - Third Party,A61019
Royal Borough of Kingston,27/04/2023,70045940,"7,462.50",BNP PARIBAS REAL ESTATE ADVISORY & PROPERTY MANAGEMENT UK LTD,LEGAL & PROFESSIONAL SERVICES,Place,Consultancy Services - Other,A44065
Royal Borough of Kingston,26/05/2023,70047299,"1,800.00",BNP PARIBAS REAL ESTATE ADVISORY & PROPERTY MANAGEMENT UK LTD,LEGAL & PROFESSIONAL SERVICES,Place,Consultancy Services - Other,A44065
Royal Borough of Kingston,01/06/2023,90245300,"3,284.57",BONDCARE (LONDON) LTD,SOCIAL SERVICES RESIDENTIAL,Adult Social Care & Health,Independent Placements,A56006
Royal Borough of Kingston,01/06/2023,90245332,"5,142.86",BONDCARE (LONDON) LTD,SOCIAL SERVICES RESIDENTIAL,Adult Social Care & Health,Independent Placements,A56006
Royal Borough of Kingston,27/06/2023,90247696,916.66,BONSOR PENNINGTONS LTD,PLS LANDLORDS,Place,PSL Payments To Landlords,A22031
Royal Borough of Kingston,01/06/2023,90245718,"6,300.00",Boulters Lock Residential Home,SOCIAL SERVICES RESIDENTIAL,Adult Social Care & Health,Independent Placements,A56006
Royal Borough of Kingston,27/06/2023,90247697,900.00,BR INVESTMENTS LIMITED,PLS LANDLORDS,Place,PSL Payments To Landlords,A22031
Royal Borough of Kingston,09/06/2023,90243202,"13,729.50",BRIGHT HORIZONS FAMILY SOLUTIONS,CHILDMINDERS START UP GRANT,Schools,PVI Providers,A60014
Royal Borough of Kingston,09/06/2023,90243287,"12,848.10",BRIGHT HORIZONS FAMILY SOLUTIONS,CHILDMINDERS START UP GRANT,Schools,PVI Providers,A60014
Royal Borough of Kingston,09/06/2023,90243302,"13,349.82",BRIGHT HORIZONS FAMILY SOLUTIONS,CHILDMINDERS START UP GRANT,Schools,PVI Providers,A60014
Royal Borough of Kingston,09/06/2023,90243306,"12,739.62",BRIGHT HORIZONS FAMILY SOLUTIONS,CHILDMINDERS START UP GRANT,Schools,PVI Providers,A60014
Royal Borough of Kingston,09/06/2023,90243309,"19,662.00",BRIGHT HORIZONS FAMILY SOLUTIONS,CHILDMINDERS START UP GRANT,Schools,PVI Providers,A60014
Royal Borough of Kingston,09/06/2023,90243361,972.00,BRIGHT HORIZONS FAMILY SOLUTIONS,CHILDMINDERS START UP GRANT,Schools,2 Yr Old Place Funding,A60000
Royal Borough of Kingston,31/05/2023,70047285,185.94,BRITISH GAS TRADING LTD,UTILITIES,Place,Property Repairs & Maintenance & Alterations - Responsive,A20011
Royal Borough of Kingston,31/05/2023,70047285,314.68,BRITISH GAS TRADING LTD,UTILITIES,Place,Property Repairs & Maintenance & Alterations - Responsive,A20011
Royal Borough of Kingston,25/05/2023,70048106,"4,605.25",BRITISH TELECOMMUNICATIONS PLC,TELECOMS,Corporate & Communities,Telephones,A45020
Royal Borough of Kingston,17/05/2023,70048426,"1,422.69",BRITISH TELECOMMUNICATIONS PLC,TELECOMS,Corporate & Communities,Telephones,A45020
Royal Borough of Kingston,20/06/2023,70048734,500.00,BROMLEY COLLEGE OF FURTHER & HIGHER EDUCATION,TRAINING,Corporate & Communities,Achievements Awards And Prizes,A49002
Royal Borough of Kingston,01/06/2023,70048321,"1,674.00",Buildvantage Limited,ACCOMMODATION BED & BREAKFAST,Place,Bed & Breakfast,A56000
Royal Borough of Kingston,01/06/2023,70048322,"1,674.00",Buildvantage Limited,ACCOMMODATION BED & BREAKFAST,Place,Bed & Breakfast,A56000
Royal Borough of Kingston,01/06/2023,70048323,"1,674.00",Buildvantage Limited,ACCOMMODATION BED & BREAKFAST,Place,Bed & Breakfast,A56000
Royal Borough of Kingston,01/06/2023,70048324,"1,674.00",Buildvantage Limited,ACCOMMODATION BED & BREAKFAST,Place,Bed & Breakfast,A56000
Royal Borough of Kingston,01/06/2023,70048325,"1,674.00",Buildvantage Limited,ACCOMMODATION BED & BREAKFAST,Place,Bed & Breakfast,A56000
Royal Borough of Kingston,01/06/2023,70048326,"1,674.00",Buildvantage Limited,ACCOMMODATION BED & BREAKFAST,Place,Bed & Breakfast,A56000
Royal Borough of Kingston,01/06/2023,70048327,"2,170.00",Buildvantage Limited,ACCOMMODATION BED & BREAKFAST,Place,Bed & Breakfast,A56000
Royal Borough of Kingston,01/06/2023,70048328,"1,674.00",Buildvantage Limited,ACCOMMODATION BED & BREAKFAST,Place,Bed & Breakfast,A56000
Royal Borough of Kingston,01/06/2023,70048329,"1,519.00",Buildvantage Limited,ACCOMMODATION BED & BREAKFAST,Place,Bed & Breakfast,A56000
Royal Borough of Kingston,01/06/2023,70048330,"1,674.00",Buildvantage Limited,ACCOMMODATION BED & BREAKFAST,Place,Bed & Breakfast,A56000
Royal Borough of Kingston,01/06/2023,70048331,"1,519.00",Buildvantage Limited,ACCOMMODATION BED & BREAKFAST,Place,Bed & Breakfast,A56000
Royal Borough of Kingston,01/06/2023,70048332,"1,519.00",Buildvantage Limited,ACCOMMODATION BED & BREAKFAST,Place,Bed & Breakfast,A56000
Royal Borough of Kingston,01/06/2023,70048333,"1,519.00",Buildvantage Limited,ACCOMMODATION BED & BREAKFAST,Place,Bed & Breakfast,A56000
Royal Borough of Kingston,01/06/2023,70048334,"1,674.00",Buildvantage Limited,ACCOMMODATION BED & BREAKFAST,Place,Bed & Breakfast,A56000
Royal Borough of Kingston,01/06/2023,70048335,"1,674.00",Buildvantage Limited,ACCOMMODATION BED & BREAKFAST,Place,Bed & Breakfast,A56000
Royal Borough of Kingston,01/06/2023,70048336,"1,674.00",Buildvantage Limited,ACCOMMODATION BED & BREAKFAST,Place,Bed & Breakfast,A56000
Royal Borough of Kingston,01/06/2023,70048337,"1,674.00",Buildvantage Limited,ACCOMMODATION BED & BREAKFAST,Place,Bed & Breakfast,A56000
Royal Borough of Kingston,01/06/2023,70048338,"1,674.00",Buildvantage Limited,ACCOMMODATION BED & BREAKFAST,Place,Bed & Breakfast,A56000
Royal Borough of Kingston,01/06/2023,70048339,"1,674.00",Buildvantage Limited,ACCOMMODATION BED & BREAKFAST,Place,Bed & Breakfast,A56000
Royal Borough of Kingston,01/06/2023,70048340,"1,674.00",Buildvantage Limited,ACCOMMODATION BED & BREAKFAST,Place,Bed & Breakfast,A56000
Royal Borough of Kingston,01/06/2023,70048341,"1,674.00",Buildvantage Limited,ACCOMMODATION BED & BREAKFAST,Place,Bed & Breakfast,A56000
Royal Borough of Kingston,01/06/2023,70048342,"2,325.00",Buildvantage Limited,ACCOMMODATION BED & BREAKFAST,Place,Bed & Breakfast,A56000
Royal Borough of Kingston,24/05/2023,70047156,792.48,BUNZL OUTSOURCING SVS UK LTD,CLOTHING & UNIFORMS,Housing Revenue Account,Cleaning Supplies,A27020
Royal Borough of Kingston,01/06/2023,70047924,"1,388.80",BUNZL OUTSOURCING SVS UK LTD,CLOTHING & UNIFORMS,Housing Revenue Account,Cleaning Supplies,A27020
Royal Borough of Kingston,01/06/2023,90245381,"3,658.84",BUPA CARE  HOME (CFH CARE ) LTD,SOCIAL SERVICES RESIDENTIAL,Adult Social Care & Health,Independent Placements,A56006
Royal Borough of Kingston,01/06/2023,90243539,"7,748.74",BUPA CARE HOMES (AKW) LIMITED,SOCIAL SERVICES RESIDENTIAL,Adult Social Care & Health,Independent Placements,A56006
Royal Borough of Kingston,01/06/2023,90243540,"-7,748.74",BUPA CARE HOMES (AKW) LIMITED,SOCIAL SERVICES RESIDENTIAL,Adult Social Care & Health,Independent Placements,A56006
Royal Borough of Kingston,01/06/2023,90243541,"8,007.03",BUPA CARE HOMES (AKW) LIMITED,SOCIAL SERVICES RESIDENTIAL,Adult Social Care & Health,Independent Placements,A56006
Royal Borough of Kingston,01/06/2023,90243542,"-8,007.03",BUPA CARE HOMES (AKW) LIMITED,SOCIAL SERVICES RESIDENTIAL,Adult Social Care & Health,Independent Placements,A56006
Royal Borough of Kingston,01/06/2023,90243543,"7,748.74",BUPA CARE HOMES (AKW) LIMITED,SOCIAL SERVICES RESIDENTIAL,Adult Social Care & Health,Independent Placements,A56006
Royal Borough of Kingston,01/06/2023,90243544,"-7,748.74",BUPA CARE HOMES (AKW) LIMITED,SOCIAL SERVICES RESIDENTIAL,Adult Social Care & Health,Independent Placements,A56006
Royal Borough of Kingston,01/06/2023,90243545,"8,007.03",BUPA CARE HOMES (AKW) LIMITED,SOCIAL SERVICES RESIDENTIAL,Adult Social Care & Health,Independent Placements,A56006
Royal Borough of Kingston,01/06/2023,90243546,"-8,007.03",BUPA CARE HOMES (AKW) LIMITED,SOCIAL SERVICES RESIDENTIAL,Adult Social Care & Health,Independent Placements,A56006
Royal Borough of Kingston,01/06/2023,90243547,"8,007.03",BUPA CARE HOMES (AKW) LIMITED,SOCIAL SERVICES RESIDENTIAL,Adult Social Care & Health,Independent Placements,A56006
Royal Borough of Kingston,01/06/2023,90243548,"-8,007.03",BUPA CARE HOMES (AKW) LIMITED,SOCIAL SERVICES RESIDENTIAL,Adult Social Care & Health,Independent Placements,A56006
Royal Borough of Kingston,01/06/2023,90243549,"7,748.74",BUPA CARE HOMES (AKW) LIMITED,SOCIAL SERVICES RESIDENTIAL,Adult Social Care & Health,Independent Placements,A56006
Royal Borough of Kingston,01/06/2023,90243550,"-7,748.74",BUPA CARE HOMES (AKW) LIMITED,SOCIAL SERVICES RESIDENTIAL,Adult Social Care & Health,Independent Placements,A56006
Royal Borough of Kingston,01/06/2023,90243551,"8,007.03",BUPA CARE HOMES (AKW) LIMITED,SOCIAL SERVICES RESIDENTIAL,Adult Social Care & Health,Independent Placements,A56006
Royal Borough of Kingston,01/06/2023,90243552,"-8,007.03",BUPA CARE HOMES (AKW) LIMITED,SOCIAL SERVICES RESIDENTIAL,Adult Social Care & Health,Independent Placements,A56006
Royal Borough of Kingston,01/06/2023,90243553,"7,748.74",BUPA CARE HOMES (AKW) LIMITED,SOCIAL SERVICES RESIDENTIAL,Adult Social Care & Health,Independent Placements,A56006
Royal Borough of Kingston,01/06/2023,90243554,"-7,748.74",BUPA CARE HOMES (AKW) LIMITED,SOCIAL SERVICES RESIDENTIAL,Adult Social Care & Health,Independent Placements,A56006
Royal Borough of Kingston,01/06/2023,90243555,"8,007.03",BUPA CARE HOMES (AKW) LIMITED,SOCIAL SERVICES RESIDENTIAL,Adult Social Care & Health,Independent Placements,A56006
Royal Borough of Kingston,01/06/2023,90243556,"-8,007.03",BUPA CARE HOMES (AKW) LIMITED,SOCIAL SERVICES RESIDENTIAL,Adult Social Care & Health,Independent Placements,A56006
Royal Borough of Kingston,01/06/2023,90243557,"8,007.03",BUPA CARE HOMES (AKW) LIMITED,SOCIAL SERVICES RESIDENTIAL,Adult Social Care & Health,Independent Placements,A56006
Royal Borough of Kingston,01/06/2023,90243558,"-8,007.03",BUPA CARE HOMES (AKW) LIMITED,SOCIAL SERVICES RESIDENTIAL,Adult Social Care & Health,Independent Placements,A56006
Royal Borough of Kingston,01/06/2023,90243559,"7,232.16",BUPA CARE HOMES (AKW) LIMITED,SOCIAL SERVICES RESIDENTIAL,Adult Social Care & Health,Independent Placements,A56006
Royal Borough of Kingston,01/06/2023,90243560,"-7,232.16",BUPA CARE HOMES (AKW) LIMITED,SOCIAL SERVICES RESIDENTIAL,Adult Social Care & Health,Independent Placements,A56006
Royal Borough of Kingston,01/06/2023,90243561,"8,007.03",BUPA CARE HOMES (AKW) LIMITED,SOCIAL SERVICES RESIDENTIAL,Adult Social Care & Health,Independent Placements,A56006
Royal Borough of Kingston,01/06/2023,90243562,"-8,007.03",BUPA CARE HOMES (AKW) LIMITED,SOCIAL SERVICES RESIDENTIAL,Adult Social Care & Health,Independent Placements,A56006
Royal Borough of Kingston,01/06/2023,90243563,"8,050.93",BUPA CARE HOMES (AKW) LIMITED,SOCIAL SERVICES RESIDENTIAL,Adult Social Care & Health,Independent Placements,A56006
Royal Borough of Kingston,01/06/2023,90243564,"-7,748.74",BUPA CARE HOMES (AKW) LIMITED,SOCIAL SERVICES RESIDENTIAL,Adult Social Care & Health,Independent Placements,A56006
Royal Borough of Kingston,01/06/2023,90243565,"8,319.29",BUPA CARE HOMES (AKW) LIMITED,SOCIAL SERVICES RESIDENTIAL,Adult Social Care & Health,Independent Placements,A56006
Royal Borough of Kingston,01/06/2023,90243566,"-8,007.03",BUPA CARE HOMES (AKW) LIMITED,SOCIAL SERVICES RESIDENTIAL,Adult Social Care & Health,Independent Placements,A56006
Royal Borough of Kingston,01/06/2023,90243567,"8,050.93",BUPA CARE HOMES (AKW) LIMITED,SOCIAL SERVICES RESIDENTIAL,Adult Social Care & Health,Independent Placements,A56006
Royal Borough of Kingston,01/06/2023,90243568,"-7,748.74",BUPA CARE HOMES (AKW) LIMITED,SOCIAL SERVICES RESIDENTIAL,Adult Social Care & Health,Independent Placements,A56006
Royal Borough of Kingston,01/06/2023,90243569,"8,319.29",BUPA CARE HOMES (AKW) LIMITED,SOCIAL SERVICES RESIDENTIAL,Adult Social Care & Health,Independent Placements,A56006
Royal Borough of Kingston,01/06/2023,90243570,"-8,007.03",BUPA CARE HOMES (AKW) LIMITED,SOCIAL SERVICES RESIDENTIAL,Adult Social Care & Health,Independent Placements,A56006
Royal Borough of Kingston,01/06/2023,90243571,"8,319.29",BUPA CARE HOMES (AKW) LIMITED,SOCIAL SERVICES RESIDENTIAL,Adult Social Care & Health,Independent Placements,A56006
Royal Borough of Kingston,01/06/2023,90243572,"-8,007.03",BUPA CARE HOMES (AKW) LIMITED,SOCIAL SERVICES RESIDENTIAL,Adult Social Care & Health,Independent Placements,A56006
Royal Borough of Kingston,01/06/2023,90243573,"8,050.93",BUPA CARE HOMES (AKW) LIMITED,SOCIAL SERVICES RESIDENTIAL,Adult Social Care & Health,Independent Placements,A56006
Royal Borough of Kingston,01/06/2023,90243574,"-7,748.74",BUPA CARE HOMES (AKW) LIMITED,SOCIAL SERVICES RESIDENTIAL,Adult Social Care & Health,Independent Placements,A56006
Royal Borough of Kingston,01/06/2023,90245395,"8,717.40",BUPA CARE HOMES (AKW) LIMITED,SOCIAL SERVICES RESIDENTIAL,Adult Social Care & Health,Independent Placements,A56006
Royal Borough of Kingston,01/06/2023,90245514,"3,817.76",BUPA CARE HOMES (AKW) LIMITED,SOCIAL SERVICES RESIDENTIAL,Adult Social Care & Health,Independent Placements,A56006
Royal Borough of Kingston,01/06/2023,90245713,"5,411.06",BUPA CARE HOMES (AKW) LIMITED,SOCIAL SERVICES RESIDENTIAL,Adult Social Care & Health,Independent Placements,A56006
Royal Borough of Kingston,06/06/2023,90242078,"152,546.80",BURLINGTON INFANT AND NURSERY SCHOOL,SCHOOL FUNDS,Schools,Miscellaneous Expenses,A49000
Royal Borough of Kingston,08/06/2023,90243181,"2,025.00",BURLINGTON INFANT AND NURSERY SCHOOL,SCHOOL FUNDS,Schools,Miscellaneous Expenses,A49000
Royal Borough of Kingston,09/06/2023,90243255,"55,289.88",BURLINGTON INFANT AND NURSERY SCHOOL,SCHOOL FUNDS,Schools,Miscellaneous Expenses,A49000
Royal Borough of Kingston,29/06/2023,90247498,"2,235.25",BURLINGTON INFANT AND NURSERY SCHOOL,SCHOOL FUNDS,Place,Payments to Contractors,C14000
Royal Borough of Kingston,06/06/2023,90242079,"185,933.75",BURLINGTON JUNIOR SCHOOL,SCHOOL FUNDS,Schools,Miscellaneous Expenses,A49000
Royal Borough of Kingston,29/06/2023,90247499,"2,344.37",BURLINGTON JUNIOR SCHOOL,SCHOOL FUNDS,Place,Payments to Contractors,C14000
Royal Borough of Kingston,31/05/2023,70047937,440.26,BYTES SOFTWARE SERVICES LTD,BUSINESS & COMPUTER SYSTEMS,Corporate & Communities,Subscriptions,A47010
Royal Borough of Kingston,06/06/2023,70048004,"1,655.50",BYTES SOFTWARE SERVICES LTD,BUSINESS & COMPUTER SYSTEMS,Corporate & Communities,IT Hardware Purchase,A45005
Royal Borough of Kingston,08/06/2023,70048121,616.00,BYTES SOFTWARE SERVICES LTD,BUSINESS & COMPUTER SYSTEMS,Corporate & Communities,IT Software Maintenance,A45045
Royal Borough of Kingston,07/06/2023,70048169,"7,482.93",BYTES SOFTWARE SERVICES LTD,BUSINESS & COMPUTER SYSTEMS,Corporate & Communities,IT Hardware Purchase,A45005
Royal Borough of Kingston,09/06/2023,70048348,"5,932.00",BYTES SOFTWARE SERVICES LTD,BUSINESS & COMPUTER SYSTEMS,Corporate & Communities,Purchase of Software & Licences,C13002
Royal Borough of Kingston,25/05/2023,70048490,"16,178.76",BYTES SOFTWARE SERVICES LTD,BUSINESS & COMPUTER SYSTEMS,Corporate & Communities,IT Hardware Purchase,A45005
Royal Borough of Kingston,23/06/2023,70048978,514.07,BYTES SOFTWARE SERVICES LTD,BUSINESS & COMPUTER SYSTEMS,Corporate & Communities,IT Software Purchase,A45040
Royal Borough of Kingston,22/06/2023,70049236,514.07,BYTES SOFTWARE SERVICES LTD,BUSINESS & COMPUTER SYSTEMS,Corporate & Communities,IT Software Purchase,A45040
Royal Borough of Kingston,22/06/2023,70049239,924.24,BYTES SOFTWARE SERVICES LTD,BUSINESS & COMPUTER SYSTEMS,Corporate & Communities,IT Hardware Purchase,A45005
Royal Borough of Kingston,27/06/2023,90247639,"1,314.08",REDACTED - PERSONAL DATA,PLS LANDLORDS,Place,PSL Payments To Landlords,A22031
Royal Borough of Kingston,27/06/2023,90247641,"1,094.00",REDACTED - PERSONAL DATA,PLS LANDLORDS,Place,PSL Payments To Landlords,A22031
Royal Borough of Kingston,27/06/2023,90247764,"1,314.08",REDACTED - PERSONAL DATA,PLS LANDLORDS,Place,PSL Payments To Landlords,A22031
Royal Borough of Kingston,27/06/2023,90247765,"1,314.08",REDACTED - PERSONAL DATA,PLS LANDLORDS,Place,PSL Payments To Landlords,A22031
Royal Borough of Kingston,27/06/2023,90247766,"1,314.08",REDACTED - PERSONAL DATA,PLS LANDLORDS,Place,PSL Payments To Landlords,A22031
Royal Borough of Kingston,27/06/2023,90247767,"1,314.08",REDACTED - PERSONAL DATA,PLS LANDLORDS,Place,PSL Payments To Landlords,A22031
Royal Borough of Kingston,22/06/2023,70049201,950.00,REDACTED - PERSONAL DATA,SUNDRY SUPPLIER - FINANCE,Adult Social Care & Health,Professional Fees,A44066
Royal Borough of Kingston,27/06/2023,90247725,"1,317.76",REDACTED - PERSONAL DATA,PLS LANDLORDS,Place,PSL Payments To Landlords,A22031
Royal Borough of Kingston,27/06/2023,90247708,"1,025.00",REDACTED - PERSONAL DATA,PLS LANDLORDS,Place,PSL Payments To Landlords,A22031
Royal Borough of Kingston,27/06/2023,90247851,"1,679.75",REDACTED - PERSONAL DATA,PLS LANDLORDS,Place,PSL Payments To Landlords,A22031
Royal Borough of Kingston,29/11/2022,70044940,"5,271.00",CAMBRIDGE HOUSE AND TALBOT,LEGAL & PROFESSIONAL SERVICES,Adult Social Care & Health,Professional Fees,A44066
Royal Borough of Kingston,19/04/2023,70047316,"3,288.00",CAMBRIDGE HOUSE AND TALBOT,LEGAL & PROFESSIONAL SERVICES,Adult Social Care & Health,Professional Fees,A44066
Royal Borough of Kingston,12/06/2023,70048644,"1,616.62",CANON (UK) LTD,OPERATIONAL EQUIPMENT/MATERIAL,Corporate & Communities,Printing And Photocopying,A43005
Royal Borough of Kingston,01/06/2023,90247189,"5,513.31",CARE MANAGEMENT GROUP LTD,SOCIAL SERVICES RESIDENTIAL,Adult Social Care & Health,Personal Budget - Third Party,A61019
Royal Borough of Kingston,01/06/2023,90245512,"3,278.57",CARE UK COMMUNITY PARTNERSHIPS LTD,SOCIAL SERVICES RESIDENTIAL,Adult Social Care & Health,Independent Placements,A56006
Royal Borough of Kingston,01/06/2023,90245562,"4,281.04",CARE UK COMMUNITY PARTNERSHIPS LTD,SOCIAL SERVICES RESIDENTIAL,Adult Social Care & Health,Independent Placements,A56006
Royal Borough of Kingston,01/06/2023,90245575,"2,833.33",CARE UK COMMUNITY PARTNERSHIPS LTD,SOCIAL SERVICES RESIDENTIAL,Adult Social Care & Health,Independent Placements,A56006
Royal Borough of Kingston,09/06/2023,90243199,"24,427.80",CAREROOM LTD ,ACADEMIC INSTNS - OTHER,Schools,PVI Providers,A60014
Royal Borough of Kingston,09/06/2023,90243324,"1,944.00",CAREROOM LTD ,ACADEMIC INSTNS - OTHER,Schools,2 Yr Old Place Funding,A60000
Royal Borough of Kingston,01/06/2023,90245334,"3,683.57",Caring Homes Healthcare Group Limited,SOCIAL SERVICES RESIDENTIAL,Adult Social Care & Health,Independent Placements,A56006
Royal Borough of Kingston,15/05/2023,90241001,756.32,CARLCARE LTD,SOCIAL SERVICES-HOME CARE,Adult Social Care & Health,Homecare - new framework,A56127
Royal Borough of Kingston,15/05/2023,90241054,504.21,CARLCARE LTD,SOCIAL SERVICES-HOME CARE,Adult Social Care & Health,Homecare - new framework,A56127
Royal Borough of Kingston,15/05/2023,90241284,567.24,CARLCARE LTD,SOCIAL SERVICES-HOME CARE,Adult Social Care & Health,Homecare - new framework,A56127
Royal Borough of Kingston,15/05/2023,90241403,612.26,CARLCARE LTD,SOCIAL SERVICES-HOME CARE,Adult Social Care & Health,Homecare - new framework,A56127
Royal Borough of Kingston,22/05/2023,90243747,756.32,CARLCARE LTD,SOCIAL SERVICES-HOME CARE,Adult Social Care & Health,Homecare - new framework,A56127
Royal Borough of Kingston,22/05/2023,90243800,504.21,CARLCARE LTD,SOCIAL SERVICES-HOME CARE,Adult Social Care & Health,Homecare - new framework,A56127
Royal Borough of Kingston,22/05/2023,90243970,594.25,CARLCARE LTD,SOCIAL SERVICES-HOME CARE,Adult Social Care & Health,Homecare - new framework,A56127
Royal Borough of Kingston,22/05/2023,90244087,612.26,CARLCARE LTD,SOCIAL SERVICES-HOME CARE,Adult Social Care & Health,Homecare - new framework,A56127
Royal Borough of Kingston,29/05/2023,90244556,756.32,CARLCARE LTD,SOCIAL SERVICES-HOME CARE,Adult Social Care & Health,Homecare - new framework,A56127
Royal Borough of Kingston,29/05/2023,90244610,504.21,CARLCARE LTD,SOCIAL SERVICES-HOME CARE,Adult Social Care & Health,Homecare - new framework,A56127
Royal Borough of Kingston,29/05/2023,90244792,567.24,CARLCARE LTD,SOCIAL SERVICES-HOME CARE,Adult Social Care & Health,Homecare - new framework,A56127
Royal Borough of Kingston,29/05/2023,90244926,612.26,CARLCARE LTD,SOCIAL SERVICES-HOME CARE,Adult Social Care & Health,Homecare - new framework,A56127
Royal Borough of Kingston,05/06/2023,90246375,756.32,CARLCARE LTD,SOCIAL SERVICES-HOME CARE,Adult Social Care & Health,Homecare - new framework,A56127
Royal Borough of Kingston,05/06/2023,90246432,504.21,CARLCARE LTD,SOCIAL SERVICES-HOME CARE,Adult Social Care & Health,Homecare - new framework,A56127
Royal Borough of Kingston,05/06/2023,90246718,612.26,CARLCARE LTD,SOCIAL SERVICES-HOME CARE,Adult Social Care & Health,Homecare - new framework,A56127
Royal Borough of Kingston,27/06/2023,90247740,"1,550.00",CARLISLE SECURITIES LTD,PLS LANDLORDS,Place,PSL Payments To Landlords,A22031
Royal Borough of Kingston,27/06/2023,90247552,"1,094.00",REDACTED - PERSONAL DATA,PLS LANDLORDS,Place,PSL Payments To Landlords,A22031
Royal Borough of Kingston,21/02/2023,70045180,"25,920.00",CARTER JONAS LLP,LEGAL & PROFESSIONAL SERVICES,Place,External Fees and Consultants,C20000
Royal Borough of Kingston,27/02/2023,70046428,"2,880.00",CARTER JONAS LLP,LEGAL & PROFESSIONAL SERVICES,Place,External Fees and Consultants,C20000
Royal Borough of Kingston,27/02/2023,70048640,"2,880.00",CARTER JONAS LLP,LEGAL & PROFESSIONAL SERVICES,Place,External Fees and Consultants,C20000
Royal Borough of Kingston,01/06/2023,90245672,"9,623.19",CARTREF HOMES,SOCIAL SERVICES RESIDENTIAL,Adult Social Care & Health,Independent Placements,A56006
Royal Borough of Kingston,01/06/2023,90245642,"14,249.87",CAS CARE SERVICES LTD,SOCIAL SERVICES - OTHER,Adult Social Care & Health,Independent Placements,A56006
Royal Borough of Kingston,01/06/2023,90245689,"14,249.87",CAS CARE SERVICES LTD,SOCIAL SERVICES - OTHER,Adult Social Care & Health,Independent Placements,A56006
Royal Borough of Kingston,09/06/2023,90243256,"37,468.42",CASTLE HILL SCHOOL,SCHOOL FUNDS,Schools,Miscellaneous Expenses,A49000
Royal Borough of Kingston,09/06/2023,90243297,"5,007.60",CASTLE HILL SCHOOL,SCHOOL FUNDS,Schools,PVI Providers,A60014
Royal Borough of Kingston,09/06/2023,90243359,"1,458.00",CASTLE HILL SCHOOL,SCHOOL FUNDS,Schools,2 Yr Old Place Funding,A60000
Royal Borough of Kingston,27/06/2023,90247524,"2,149.00",CASTLE RESIDENTIAL PROPERTIES LTD,PLS LANDLORDS,Place,PSL Payments To Landlords,A22031
Royal Borough of Kingston,27/06/2023,90247640,"1,321.00",CASTLE RESIDENTIAL PROPERTIES LTD,PLS LANDLORDS,Place,PSL Payments To Landlords,A22031
Royal Borough of Kingston,27/06/2023,90247642,"1,049.98",CASTLE RESIDENTIAL PROPERTIES LTD,PLS LANDLORDS,Place,PSL Payments To Landlords,A22031
Royal Borough of Kingston,27/06/2023,90247812,"2,144.09",CASTLE RESIDENTIAL PROPERTIES LTD,PLS LANDLORDS,Place,PSL Payments To Landlords,A22031
Royal Borough of Kingston,27/06/2023,90247879,"2,144.09",CASTLE RESIDENTIAL PROPERTIES LTD,PLS LANDLORDS,Place,PSL Payments To Landlords,A22031
Royal Borough of Kingston,09/06/2023,90243288,"1,128.60",Castle Stars Education Day Nursery,CHILDMINDERS START UP GRANT,Schools,PVI Providers,A60014
Royal Borough of Kingston,08/06/2023,70048075,"4,000.00",CASTLE WILDISH RESI LTD,PLS LANDLORDS,Place,Housing Incentives,A62025
Royal Borough of Kingston,08/06/2023,70048079,"4,000.00",CASTLE WILDISH RESI LTD,PLS LANDLORDS,Place,Housing Incentives,A62025
Royal Borough of Kingston,27/06/2023,90247522,"1,094.34",CASTLE WILDISH RESI LTD,PLS LANDLORDS,Place,PSL Payments To Landlords,A22031
Royal Borough of Kingston,27/06/2023,90247523,"1,094.34",CASTLE WILDISH RESI LTD,PLS LANDLORDS,Place,PSL Payments To Landlords,A22031
Royal Borough of Kingston,27/06/2023,90247866,"1,781.90",CASTLE WILDISH RESI LTD,PLS LANDLORDS,Place,PSL Payments To Landlords,A22031
Royal Borough of Kingston,27/06/2023,90247867,"1,781.90",CASTLE WILDISH RESI LTD,PLS LANDLORDS,Place,PSL Payments To Landlords,A22031
Royal Borough of Kingston,27/06/2023,90247685,867.00,REDACTED - PERSONAL DATA,PLS LANDLORDS,Place,PSL Payments To Landlords,A22031
Royal Borough of Kingston,30/03/2023,70048212,"2,230.00",CATTANEO COMMERCIAL LIMITED,PROFESSIONAL ASSOCIATIONS TU,Place,Property-Related Professional Fees,A20035
Royal Borough of Kingston,01/06/2023,90245663,"11,331.99",Gresham Care Operations Limited,SOCIAL SERVICES RESIDENTIAL,Adult Social Care & Health,Independent Placements,A56006
Royal Borough of Kingston,27/06/2023,90247669,850.00,REDACTED - PERSONAL DATA,PLS LANDLORDS,Place,PSL Payments To Landlords,A22031
Royal Borough of Kingston,09/06/2023,90243312,813.60,REDACTED - PERSONAL DATA,CHILDMINDERS START UP GRANT,Schools,PVI Providers,A60014
Royal Borough of Kingston,30/04/2023,70046815,"4,104.76",CHAWTON HILL ASSOCIATES LIMITED,LEGAL & PROFESSIONAL SERVICES,Place,Buildings - Design & Planning,C14001
Royal Borough of Kingston,31/05/2023,70048436,"2,250.00",CHAWTON HILL ASSOCIATES LIMITED,LEGAL & PROFESSIONAL SERVICES,Place,Buildings - Design & Planning,C14001
Royal Borough of Kingston,31/05/2023,70048437,"3,000.00",CHAWTON HILL ASSOCIATES LIMITED,LEGAL & PROFESSIONAL SERVICES,Place,Buildings - Design & Planning,C14001
Royal Borough of Kingston,31/05/2023,70048439,"1,512.50",CHAWTON HILL ASSOCIATES LIMITED,LEGAL & PROFESSIONAL SERVICES,Place,Buildings - Design & Planning,C14001
Royal Borough of Kingston,31/05/2023,70048440,"2,337.50",CHAWTON HILL ASSOCIATES LIMITED,LEGAL & PROFESSIONAL SERVICES,Place,Buildings - Design & Planning,C14001
Royal Borough of Kingston,31/05/2023,70048441,"1,650.00",CHAWTON HILL ASSOCIATES LIMITED,LEGAL & PROFESSIONAL SERVICES,Place,Buildings - Design & Planning,C14001
Royal Borough of Kingston,31/05/2023,70048442,"3,050.00",CHAWTON HILL ASSOCIATES LIMITED,LEGAL & PROFESSIONAL SERVICES,Place,Payments to Contractors,C14000
Royal Borough of Kingston,31/05/2023,70048444,"4,455.00",CHAWTON HILL ASSOCIATES LIMITED,LEGAL & PROFESSIONAL SERVICES,Place,Buildings - Design & Planning,C14001
Royal Borough of Kingston,01/06/2023,90244381,864.00,CHD CARE LTD,SOCIAL SERVICES RESIDENTIAL,Adult Social Care & Health,Independent Placements,A56006
Royal Borough of Kingston,01/06/2023,90245424,"1,542.86",CHD CARE LTD,SOCIAL SERVICES RESIDENTIAL,Adult Social Care & Health,Independent Placements,A56006
Royal Borough of Kingston,01/06/2023,90245426,"2,571.43",CHD CARE LTD,SOCIAL SERVICES RESIDENTIAL,Adult Social Care & Health,Independent Placements,A56006
Royal Borough of Kingston,01/06/2023,90245545,"3,339.64",CHD CARE LTD,SOCIAL SERVICES RESIDENTIAL,Adult Social Care & Health,Independent Placements,A56006
Royal Borough of Kingston,01/06/2023,90245547,"5,009.49",CHD CARE LTD,SOCIAL SERVICES RESIDENTIAL,Adult Social Care & Health,Independent Placements,A56006
Royal Borough of Kingston,01/06/2023,90245495,"1,068.69",CHD LIVING,SOCIAL SERVICES RESIDENTIAL,Adult Social Care & Health,Independent Placements,A56006
Royal Borough of Kingston,18/04/2023,70049088,602.84,CHESSINGTON SPORTS CENTRE,OPERATIONAL EQUIPMENT/MATERIAL,Adult Social Care & Health,Hire of Rooms,A22010
Royal Borough of Kingston,17/06/2023,70049137,600.00,CHESSINGTON SPORTS CENTRE,OPERATIONAL EQUIPMENT/MATERIAL,Adult Social Care & Health,Hire of Rooms,A22010
Royal Borough of Kingston,09/06/2023,90243210,"11,309.04",CHILDS PLAY NURSERY SCHOOL LTD,GRANTS & EX GRATIA PAYMENTS,Schools,PVI Providers,A60014
Royal Borough of Kingston,01/06/2023,90245323,564.03,CHISWICK NURSING CENTRE,SOCIAL SERVICES RESIDENTIAL,Adult Social Care & Health,Independent Placements,A56006
Royal Borough of Kingston,01/06/2023,90245389,"5,012.43",CHISWICK NURSING CENTRE,SOCIAL SERVICES RESIDENTIAL,Adult Social Care & Health,Independent Placements,A56006
Royal Borough of Kingston,01/06/2023,90245493,"3,633.90",CHISWICK NURSING CENTRE,SOCIAL SERVICES RESIDENTIAL,Adult Social Care & Health,Independent Placements,A56006
Royal Borough of Kingston,01/06/2023,90245525,"3,323.61",CHISWICK NURSING CENTRE,SOCIAL SERVICES RESIDENTIAL,Adult Social Care & Health,Independent Placements,A56006
Royal Borough of Kingston,01/06/2023,90245684,"8,263.93",CHOICE LTD,SOCIAL SERVICES RESIDENTIAL,Adult Social Care & Health,Independent Placements,A56006
Royal Borough of Kingston,01/06/2023,90245690,"7,302.09",CHOICE LTD,SOCIAL SERVICES RESIDENTIAL,Adult Social Care & Health,Independent Placements,A56006
Royal Borough of Kingston,06/06/2023,90242081,"167,164.50",CHRIST CHURCH  C. OF E.  PRIMARY SCHOOL (NEW MALDEN),SCHOOL FUNDS,Schools,Miscellaneous Expenses,A49000
Royal Borough of Kingston,09/06/2023,90243257,"19,332.06",CHRIST CHURCH  C. OF E.  PRIMARY SCHOOL (NEW MALDEN),SCHOOL FUNDS,Schools,Miscellaneous Expenses,A49000
Royal Borough of Kingston,06/06/2023,90242080,"172,686.54",CHRIST CHURCH C.OF E. PRIMARY SCHOOL - (SURBITON),ACADEMIC INSTNS - OTHER,Schools,Miscellaneous Expenses,A49000
Royal Borough of Kingston,01/06/2023,90247096,"6,035.10",CHRISTIES CARE LTD,SOCIAL SERVICES RESIDENTIAL,Adult Social Care & Health,Personal Budget - Third Party,A61019
Royal Borough of Kingston,01/06/2023,90247181,"5,641.71",CHRISTIES CARE LTD,SOCIAL SERVICES RESIDENTIAL,Adult Social Care & Health,Personal Budget - Third Party,A61019
Royal Borough of Kingston,01/06/2023,90247183,"5,870.14",CHRISTIES CARE LTD,SOCIAL SERVICES RESIDENTIAL,Adult Social Care & Health,Personal Budget - Third Party,A61019
Royal Borough of Kingston,01/06/2023,90247235,"5,664.21",CHRISTIES CARE LTD,SOCIAL SERVICES RESIDENTIAL,Adult Social Care & Health,Personal Budget - Third Party,A61019
Royal Borough of Kingston,25/05/2023,70048647,"19,723.00",CITY CHANGER PROJECTS,GRANTS & EX GRATIA PAYMENTS,Adult Social Care & Health,Payments to Voluntary Organisations,A54005
Royal Borough of Kingston,03/05/2023,70046085,"3,843.89",CITY OF LONDON,CENTRAL & LOCAL GOVERNMENT,Corporate & Communities,Other Cleaning And Waste-Related Third Party Payment,A56064
Royal Borough of Kingston,31/03/2023,70047362,709.56,CITYSPRINT (UK) LTD,OFFICE SERVICES,Corporate & Communities,Books,A43050
Royal Borough of Kingston,25/05/2023,70047831,709.56,CITYSPRINT (UK) LTD,OFFICE SERVICES,Corporate & Communities,Books,A43050
Royal Borough of Kingston,25/06/2023,70049241,709.56,CITYSPRINT (UK) LTD,OFFICE SERVICES,Corporate & Communities,Books,A43050
Royal Borough of Kingston,09/06/2023,90243334,972.00,REDACTED - PERSONAL DATA,CHILDMINDERS START UP GRANT,Schools,2 Yr Old Place Funding,A60000
Royal Borough of Kingston,01/06/2023,90245693,"8,953.59",CLEARWATER CARE (HACKNEY) LTD,SOCIAL SERVICES RESIDENTIAL,Adult Social Care & Health,Independent Placements,A56006
Royal Borough of Kingston,01/06/2023,90247450,"6,418.89",CLIA Care Ltd,ACCOMMODATION - OTHER,Adult Social Care & Health,Personal Budget - Third Party,A61019
Royal Borough of Kingston,27/06/2023,90247763,"1,094.00",CLIFFE &  ROCHFORD,PLS LANDLORDS,Place,PSL Payments To Landlords,A22031
Royal Borough of Kingston,27/06/2023,90247584,"1,435.50",CLIQUE 187 LTD,PLS LANDLORDS,Place,PSL Payments To Landlords,A22031
Royal Borough of Kingston,16/03/2023,70049041,600.00,Albion Cleaning Services,SOCIAL SERVICES - OTHER,Adult Social Care & Health,Other Private Contractors - Third Party,A56080
Royal Borough of Kingston,01/06/2023,90247179,"3,099.39",CMG LIMITED,SOCIAL SERVICES - OTHER,Adult Social Care & Health,Personal Budget - Third Party,A61019
Royal Borough of Kingston,01/06/2023,90247197,"5,623.29",CMG LIMITED,SOCIAL SERVICES - OTHER,Adult Social Care & Health,Personal Budget - Third Party,A61019
Royal Borough of Kingston,01/06/2023,90247198,"5,589.94",CMG LIMITED,SOCIAL SERVICES - OTHER,Adult Social Care & Health,Personal Budget - Third Party,A61019
Royal Borough of Kingston,01/06/2023,90247227,"6,137.96",CMG LIMITED,SOCIAL SERVICES - OTHER,Adult Social Care & Health,Personal Budget - Third Party,A61019
Royal Borough of Kingston,01/06/2023,90247237,945.26,CMG LIMITED,SOCIAL SERVICES - OTHER,Adult Social Care & Health,Personal Budget - Third Party,A61019
Royal Borough of Kingston,01/06/2023,90247238,"4,083.86",CMG LIMITED,SOCIAL SERVICES - OTHER,Adult Social Care & Health,Personal Budget - Third Party,A61019
Royal Borough of Kingston,01/06/2023,90247305,"4,871.57",CMG LIMITED,SOCIAL SERVICES - OTHER,Adult Social Care & Health,Personal Budget - Third Party,A61019
Royal Borough of Kingston,15/05/2023,90240975,567.24,CN Healthcare,SOCIAL SERVICES - OTHER,Adult Social Care & Health,Homecare - new framework,A56127
Royal Borough of Kingston,15/05/2023,90241057,945.40,CN Healthcare,SOCIAL SERVICES - OTHER,Adult Social Care & Health,Homecare - new framework,A56127
Royal Borough of Kingston,15/05/2023,90241229,630.27,CN Healthcare,SOCIAL SERVICES - OTHER,Adult Social Care & Health,Homecare - new framework,A56127
Royal Borough of Kingston,15/05/2023,90241438,693.29,CN Healthcare,SOCIAL SERVICES - OTHER,Adult Social Care & Health,Homecare - new framework,A56127
Royal Borough of Kingston,22/05/2023,90243725,567.24,CN Healthcare,SOCIAL SERVICES - OTHER,Adult Social Care & Health,Homecare - new framework,A56127
Royal Borough of Kingston,22/05/2023,90243803,945.40,CN Healthcare,SOCIAL SERVICES - OTHER,Adult Social Care & Health,Homecare - new framework,A56127
Royal Borough of Kingston,22/05/2023,90243930,630.27,CN Healthcare,SOCIAL SERVICES - OTHER,Adult Social Care & Health,Homecare - new framework,A56127
Royal Borough of Kingston,22/05/2023,90244121,693.29,CN Healthcare,SOCIAL SERVICES - OTHER,Adult Social Care & Health,Homecare - new framework,A56127
Royal Borough of Kingston,29/05/2023,90244529,567.24,CN Healthcare,SOCIAL SERVICES - OTHER,Adult Social Care & Health,Homecare - new framework,A56127
Royal Borough of Kingston,29/05/2023,90244612,945.40,CN Healthcare,SOCIAL SERVICES - OTHER,Adult Social Care & Health,Homecare - new framework,A56127
Royal Borough of Kingston,29/05/2023,90244749,630.27,CN Healthcare,SOCIAL SERVICES - OTHER,Adult Social Care & Health,Homecare - new framework,A56127
Royal Borough of Kingston,29/05/2023,90244882,567.24,CN Healthcare,SOCIAL SERVICES - OTHER,Adult Social Care & Health,Homecare - new framework,A56127
Royal Borough of Kingston,29/05/2023,90244965,693.29,CN Healthcare,SOCIAL SERVICES - OTHER,Adult Social Care & Health,Homecare - new framework,A56127
Royal Borough of Kingston,05/06/2023,90246200,567.24,CN Healthcare,SOCIAL SERVICES - OTHER,Adult Social Care & Health,Homecare - new framework,A56127
Royal Borough of Kingston,05/06/2023,90246434,945.40,CN Healthcare,SOCIAL SERVICES - OTHER,Adult Social Care & Health,Homecare - new framework,A56127
Royal Borough of Kingston,05/06/2023,90246562,630.27,CN Healthcare,SOCIAL SERVICES - OTHER,Adult Social Care & Health,Homecare - new framework,A56127
Royal Borough of Kingston,05/06/2023,90246754,693.29,CN Healthcare,SOCIAL SERVICES - OTHER,Adult Social Care & Health,Homecare - new framework,A56127
Royal Borough of Kingston,27/06/2023,90247803,"1,116.00",COBHAM RENTALS LTD,PLS LANDLORDS,Place,PSL Payments To Landlords,A22031
Royal Borough of Kingston,27/06/2023,90247804,"1,116.00",COBHAM RENTALS LTD,PLS LANDLORDS,Place,PSL Payments To Landlords,A22031
Royal Borough of Kingston,27/06/2023,90247805,"1,116.00",COBHAM RENTALS LTD,PLS LANDLORDS,Place,PSL Payments To Landlords,A22031
Royal Borough of Kingston,01/06/2023,90245716,"14,248.20",COGNITHAN,SOCIAL SERVICES RESIDENTIAL,Adult Social Care & Health,Independent Placements,A56006
Royal Borough of Kingston,27/06/2023,90247625,"1,215.00",REDACTED - PERSONAL DATA,PLS LANDLORDS,Place,PSL Payments To Landlords,A22031
Royal Borough of Kingston,27/06/2023,90247644,"1,094.00",REDACTED - PERSONAL DATA,PLS LANDLORDS,Place,PSL Payments To Landlords,A22031
Royal Borough of Kingston,30/06/2023,70047934,514.39,COMETT LIMITED,ENTERTAINMENTS INDUSTRY,Adult Social Care & Health,Consultancy Services - Other,A44065
Royal Borough of Kingston,01/06/2023,90245755,"1,912.50",COMFORT CARE SERVICES UK LTD,SOCIAL SERVICES-HOME CARE,Adult Social Care & Health,Supported Living - new framework,A56126
Royal Borough of Kingston,01/06/2023,90245756,"3,061.91",COMFORT CARE SERVICES UK LTD,SOCIAL SERVICES-HOME CARE,Adult Social Care & Health,Supported Living - new framework,A56126
Royal Borough of Kingston,01/06/2023,90245771,"1,784.36",COMFORT CARE SERVICES UK LTD,SOCIAL SERVICES-HOME CARE,Adult Social Care & Health,Supported Living - new framework,A56126
Royal Borough of Kingston,01/06/2023,90245772,892.18,COMFORT CARE SERVICES UK LTD,SOCIAL SERVICES-HOME CARE,Adult Social Care & Health,Supported Living - new framework,A56126
Royal Borough of Kingston,01/06/2023,90245774,"1,784.36",COMFORT CARE SERVICES UK LTD,SOCIAL SERVICES-HOME CARE,Adult Social Care & Health,Supported Living - new framework,A56126
Royal Borough of Kingston,01/06/2023,90245775,892.18,COMFORT CARE SERVICES UK LTD,SOCIAL SERVICES-HOME CARE,Adult Social Care & Health,Supported Living - new framework,A56126
Royal Borough of Kingston,01/06/2023,90246022,"2,142.00",COMFORT CARE SERVICES UK LTD,SOCIAL SERVICES-HOME CARE,Adult Social Care & Health,Supported Living - new framework,A56126
Royal Borough of Kingston,01/06/2023,90246023,535.50,COMFORT CARE SERVICES UK LTD,SOCIAL SERVICES-HOME CARE,Adult Social Care & Health,Supported Living - new framework,A56126
Royal Borough of Kingston,01/06/2023,90246025,"1,912.50",COMFORT CARE SERVICES UK LTD,SOCIAL SERVICES-HOME CARE,Adult Social Care & Health,Supported Living - new framework,A56126
Royal Borough of Kingston,01/06/2023,90246026,765.00,COMFORT CARE SERVICES UK LTD,SOCIAL SERVICES-HOME CARE,Adult Social Care & Health,Supported Living - new framework,A56126
Royal Borough of Kingston,01/06/2023,90246028,903.60,COMFORT CARE SERVICES UK LTD,SOCIAL SERVICES-HOME CARE,Adult Social Care & Health,Supported Living - new framework,A56126
Royal Borough of Kingston,01/06/2023,90246030,"1,784.36",COMFORT CARE SERVICES UK LTD,SOCIAL SERVICES-HOME CARE,Adult Social Care & Health,Supported Living - new framework,A56126
Royal Borough of Kingston,01/06/2023,90246031,892.18,COMFORT CARE SERVICES UK LTD,SOCIAL SERVICES-HOME CARE,Adult Social Care & Health,Supported Living - new framework,A56126
Royal Borough of Kingston,01/06/2023,90246032,573.69,COMFORT CARE SERVICES UK LTD,SOCIAL SERVICES-HOME CARE,Adult Social Care & Health,Supported Living - new framework,A56126
Royal Borough of Kingston,01/06/2023,90246033,"1,147.50",COMFORT CARE SERVICES UK LTD,SOCIAL SERVICES-HOME CARE,Adult Social Care & Health,Supported Living - new framework,A56126
Royal Borough of Kingston,01/06/2023,90246037,"1,784.36",COMFORT CARE SERVICES UK LTD,SOCIAL SERVICES-HOME CARE,Adult Social Care & Health,Supported Living - new framework,A56126
Royal Borough of Kingston,01/06/2023,90246038,892.18,COMFORT CARE SERVICES UK LTD,SOCIAL SERVICES-HOME CARE,Adult Social Care & Health,Supported Living - new framework,A56126
Royal Borough of Kingston,01/06/2023,90246040,"2,142.00",COMFORT CARE SERVICES UK LTD,SOCIAL SERVICES-HOME CARE,Adult Social Care & Health,Supported Living - new framework,A56126
Royal Borough of Kingston,01/06/2023,90246041,535.50,COMFORT CARE SERVICES UK LTD,SOCIAL SERVICES-HOME CARE,Adult Social Care & Health,Supported Living - new framework,A56126
Royal Borough of Kingston,01/06/2023,90246043,"1,784.36",COMFORT CARE SERVICES UK LTD,SOCIAL SERVICES-HOME CARE,Adult Social Care & Health,Supported Living - new framework,A56126
Royal Borough of Kingston,01/06/2023,90246044,892.18,COMFORT CARE SERVICES UK LTD,SOCIAL SERVICES-HOME CARE,Adult Social Care & Health,Supported Living - new framework,A56126
Royal Borough of Kingston,01/06/2023,90246047,855.00,COMFORT CARE SERVICES UK LTD,SOCIAL SERVICES-HOME CARE,Adult Social Care & Health,Supported Living - new framework,A56126
Royal Borough of Kingston,01/06/2023,90246048,"2,142.00",COMFORT CARE SERVICES UK LTD,SOCIAL SERVICES-HOME CARE,Adult Social Care & Health,Supported Living - new framework,A56126
Royal Borough of Kingston,01/06/2023,90246049,535.50,COMFORT CARE SERVICES UK LTD,SOCIAL SERVICES-HOME CARE,Adult Social Care & Health,Supported Living - new framework,A56126
Royal Borough of Kingston,01/06/2023,90246054,"1,976.25",COMFORT CARE SERVICES UK LTD,SOCIAL SERVICES-HOME CARE,Adult Social Care & Health,Supported Living - new framework,A56126
Royal Borough of Kingston,01/06/2023,90246055,"2,074.83",COMFORT CARE SERVICES UK LTD,SOCIAL SERVICES-HOME CARE,Adult Social Care & Health,Supported Living - new framework,A56126
Royal Borough of Kingston,01/06/2023,90246056,691.61,COMFORT CARE SERVICES UK LTD,SOCIAL SERVICES-HOME CARE,Adult Social Care & Health,Supported Living - new framework,A56126
Royal Borough of Kingston,01/06/2023,90246057,"1,912.50",COMFORT CARE SERVICES UK LTD,SOCIAL SERVICES-HOME CARE,Adult Social Care & Health,Supported Living - new framework,A56126
Royal Borough of Kingston,01/06/2023,90246058,"2,007.90",COMFORT CARE SERVICES UK LTD,SOCIAL SERVICES-HOME CARE,Adult Social Care & Health,Supported Living - new framework,A56126
Royal Borough of Kingston,01/06/2023,90246059,669.30,COMFORT CARE SERVICES UK LTD,SOCIAL SERVICES-HOME CARE,Adult Social Care & Health,Supported Living - new framework,A56126
Royal Borough of Kingston,01/06/2023,90246061,903.60,COMFORT CARE SERVICES UK LTD,SOCIAL SERVICES-HOME CARE,Adult Social Care & Health,Supported Living - new framework,A56126
Royal Borough of Kingston,01/06/2023,90246063,"1,784.36",COMFORT CARE SERVICES UK LTD,SOCIAL SERVICES-HOME CARE,Adult Social Care & Health,Supported Living - new framework,A56126
Royal Borough of Kingston,01/06/2023,90246064,892.18,COMFORT CARE SERVICES UK LTD,SOCIAL SERVICES-HOME CARE,Adult Social Care & Health,Supported Living - new framework,A56126
Royal Borough of Kingston,01/06/2023,90246066,"1,784.36",COMFORT CARE SERVICES UK LTD,SOCIAL SERVICES-HOME CARE,Adult Social Care & Health,Supported Living - new framework,A56126
Royal Borough of Kingston,01/06/2023,90246067,892.18,COMFORT CARE SERVICES UK LTD,SOCIAL SERVICES-HOME CARE,Adult Social Care & Health,Supported Living - new framework,A56126
Royal Borough of Kingston,01/06/2023,90246069,"1,784.36",COMFORT CARE SERVICES UK LTD,SOCIAL SERVICES-HOME CARE,Adult Social Care & Health,Supported Living - new framework,A56126
Royal Borough of Kingston,01/06/2023,90246070,892.18,COMFORT CARE SERVICES UK LTD,SOCIAL SERVICES-HOME CARE,Adult Social Care & Health,Supported Living - new framework,A56126
Royal Borough of Kingston,01/06/2023,90246072,"1,784.36",COMFORT CARE SERVICES UK LTD,SOCIAL SERVICES-HOME CARE,Adult Social Care & Health,Supported Living - new framework,A56126
Royal Borough of Kingston,01/06/2023,90246073,892.18,COMFORT CARE SERVICES UK LTD,SOCIAL SERVICES-HOME CARE,Adult Social Care & Health,Supported Living - new framework,A56126
Royal Borough of Kingston,01/06/2023,90246078,"1,784.36",COMFORT CARE SERVICES UK LTD,SOCIAL SERVICES-HOME CARE,Adult Social Care & Health,Supported Living - new framework,A56126
Royal Borough of Kingston,01/06/2023,90246079,892.18,COMFORT CARE SERVICES UK LTD,SOCIAL SERVICES-HOME CARE,Adult Social Care & Health,Supported Living - new framework,A56126
Royal Borough of Kingston,01/06/2023,90246081,"2,142.00",COMFORT CARE SERVICES UK LTD,SOCIAL SERVICES-HOME CARE,Adult Social Care & Health,Supported Living - new framework,A56126
Royal Borough of Kingston,01/06/2023,90246082,535.50,COMFORT CARE SERVICES UK LTD,SOCIAL SERVICES-HOME CARE,Adult Social Care & Health,Supported Living - new framework,A56126
Royal Borough of Kingston,01/06/2023,90246084,"2,142.00",COMFORT CARE SERVICES UK LTD,SOCIAL SERVICES-HOME CARE,Adult Social Care & Health,Supported Living - new framework,A56126
Royal Borough of Kingston,01/06/2023,90246085,535.50,COMFORT CARE SERVICES UK LTD,SOCIAL SERVICES-HOME CARE,Adult Social Care & Health,Supported Living - new framework,A56126
Royal Borough of Kingston,01/06/2023,90246087,573.69,COMFORT CARE SERVICES UK LTD,SOCIAL SERVICES-HOME CARE,Adult Social Care & Health,Supported Living - new framework,A56126
Royal Borough of Kingston,01/06/2023,90246088,"1,147.50",COMFORT CARE SERVICES UK LTD,SOCIAL SERVICES-HOME CARE,Adult Social Care & Health,Supported Living - new framework,A56126
Royal Borough of Kingston,01/06/2023,90246095,"1,784.36",COMFORT CARE SERVICES UK LTD,SOCIAL SERVICES-HOME CARE,Adult Social Care & Health,Supported Living - new framework,A56126
Royal Borough of Kingston,01/06/2023,90246096,892.18,COMFORT CARE SERVICES UK LTD,SOCIAL SERVICES-HOME CARE,Adult Social Care & Health,Supported Living - new framework,A56126
Royal Borough of Kingston,01/06/2023,90246099,"1,784.36",COMFORT CARE SERVICES UK LTD,SOCIAL SERVICES-HOME CARE,Adult Social Care & Health,Supported Living - new framework,A56126
Royal Borough of Kingston,01/06/2023,90246100,892.18,COMFORT CARE SERVICES UK LTD,SOCIAL SERVICES-HOME CARE,Adult Social Care & Health,Supported Living - new framework,A56126
Royal Borough of Kingston,01/06/2023,90247092,"1,095.48",COMFORT CARE SERVICES UK LTD,SOCIAL SERVICES-HOME CARE,Adult Social Care & Health,Personal Budget - Third Party,A61019
Royal Borough of Kingston,01/06/2023,90247093,"4,364.06",COMFORT CARE SERVICES UK LTD,SOCIAL SERVICES-HOME CARE,Adult Social Care & Health,Personal Budget - Third Party,A61019
Royal Borough of Kingston,01/06/2023,90247095,"1,059.84",COMFORT CARE SERVICES UK LTD,SOCIAL SERVICES-HOME CARE,Adult Social Care & Health,Personal Budget - Third Party,A61019
Royal Borough of Kingston,01/06/2023,90247100,935.15,COMFORT CARE SERVICES UK LTD,SOCIAL SERVICES-HOME CARE,Adult Social Care & Health,Personal Budget - Third Party,A61019
Royal Borough of Kingston,01/06/2023,90247101,"4,364.06",COMFORT CARE SERVICES UK LTD,SOCIAL SERVICES-HOME CARE,Adult Social Care & Health,Personal Budget - Third Party,A61019
Royal Borough of Kingston,01/06/2023,90247103,"1,059.84",COMFORT CARE SERVICES UK LTD,SOCIAL SERVICES-HOME CARE,Adult Social Care & Health,Personal Budget - Third Party,A61019
Royal Borough of Kingston,01/06/2023,90247131,"1,095.48",COMFORT CARE SERVICES UK LTD,SOCIAL SERVICES-HOME CARE,Adult Social Care & Health,Personal Budget - Third Party,A61019
Royal Borough of Kingston,01/06/2023,90247132,"4,364.06",COMFORT CARE SERVICES UK LTD,SOCIAL SERVICES-HOME CARE,Adult Social Care & Health,Personal Budget - Third Party,A61019
Royal Borough of Kingston,01/06/2023,90247134,"1,059.84",COMFORT CARE SERVICES UK LTD,SOCIAL SERVICES-HOME CARE,Adult Social Care & Health,Personal Budget - Third Party,A61019
Royal Borough of Kingston,01/06/2023,90247241,"4,063.46",COMFORT CARE SERVICES UK LTD,SOCIAL SERVICES-HOME CARE,Adult Social Care & Health,Personal Budget - Third Party,A61019
Royal Borough of Kingston,01/06/2023,90247243,"1,442.84",COMFORT CARE SERVICES UK LTD,SOCIAL SERVICES-HOME CARE,Adult Social Care & Health,Personal Budget - Third Party,A61019
Royal Borough of Kingston,01/06/2023,90247244,"4,364.06",COMFORT CARE SERVICES UK LTD,SOCIAL SERVICES-HOME CARE,Adult Social Care & Health,Personal Budget - Third Party,A61019
Royal Borough of Kingston,01/06/2023,90247246,"1,059.84",COMFORT CARE SERVICES UK LTD,SOCIAL SERVICES-HOME CARE,Adult Social Care & Health,Personal Budget - Third Party,A61019
Royal Borough of Kingston,01/06/2023,90247260,"1,469.52",COMFORT CARE SERVICES UK LTD,SOCIAL SERVICES-HOME CARE,Adult Social Care & Health,Personal Budget - Third Party,A61019
Royal Borough of Kingston,01/06/2023,90247261,"4,364.06",COMFORT CARE SERVICES UK LTD,SOCIAL SERVICES-HOME CARE,Adult Social Care & Health,Personal Budget - Third Party,A61019
Royal Borough of Kingston,01/06/2023,90247263,"1,059.84",COMFORT CARE SERVICES UK LTD,SOCIAL SERVICES-HOME CARE,Adult Social Care & Health,Personal Budget - Third Party,A61019
Royal Borough of Kingston,01/06/2023,90247298,"1,549.67",COMFORT CARE SERVICES UK LTD,SOCIAL SERVICES-HOME CARE,Adult Social Care & Health,Personal Budget - Third Party,A61019
Royal Borough of Kingston,01/06/2023,90247299,"4,364.06",COMFORT CARE SERVICES UK LTD,SOCIAL SERVICES-HOME CARE,Adult Social Care & Health,Personal Budget - Third Party,A61019
Royal Borough of Kingston,01/06/2023,90247301,"1,059.84",COMFORT CARE SERVICES UK LTD,SOCIAL SERVICES-HOME CARE,Adult Social Care & Health,Personal Budget - Third Party,A61019
Royal Borough of Kingston,01/06/2023,90247431,"2,985.26",COMFORT CARE SERVICES UK LTD,SOCIAL SERVICES-HOME CARE,Adult Social Care & Health,Personal Budget - Third Party,A61019
Royal Borough of Kingston,01/06/2023,90245671,"8,233.54",COMMUNITY CARE SOLUTIONS LTD,SOCIAL SERVICES RESIDENTIAL,Adult Social Care & Health,Independent Placements,A56006
Royal Borough of Kingston,01/06/2023,90245674,"8,498.36",CONGRESS HOUSE LIMITED ,SOCIAL SERVICES RESIDENTIAL,Adult Social Care & Health,Independent Placements,A56006
Royal Borough of Kingston,20/06/2023,70048789,"4,993.92",CONNECT NORTH KOREA,CHARITIES & VOLUNTARY ORGNS,Corporate & Communities,Payments to Voluntary Organisations,A54005
Royal Borough of Kingston,27/06/2023,90247918,842.00,REDACTED - PERSONAL DATA,PLS LANDLORDS,Place,PSL Payments To Landlords,A22031
Royal Borough of Kingston,09/06/2023,90243268,"15,019.20",COOMBE ACADEMY TRUST,ACADEMIC INSTNS - OTHER,Schools,Miscellaneous Expenses,A49000
Royal Borough of Kingston,29/06/2023,90247959,"3,944.00",COOMBE ACADEMY TRUST,ACADEMIC INSTNS - OTHER,Schools,Miscellaneous Expenses,A49000
Royal Borough of Kingston,29/06/2023,90247962,"6,000.00",Coombe Boys School,SCHOOL FUNDS,Schools,Miscellaneous Expenses,A49000
Royal Borough of Kingston,06/06/2023,90242082,"115,549.93",COOMBE HILL INFANTS SCHOOL,ACADEMIC INSTNS - OTHER,Schools,Miscellaneous Expenses,A49000
Royal Borough of Kingston,29/06/2023,90247500,"1,759.37",COOMBE HILL INFANTS SCHOOL,ACADEMIC INSTNS - OTHER,Place,Payments to Contractors,C14000
Royal Borough of Kingston,06/06/2023,90242083,"152,594.06",COOMBE HILL JUNIOR SCHOOL,ACADEMIC INSTNS - OTHER,Schools,Miscellaneous Expenses,A49000
Royal Borough of Kingston,29/06/2023,90247501,"2,181.25",COOMBE HILL JUNIOR SCHOOL,ACADEMIC INSTNS - OTHER,Place,Payments to Contractors,C14000
Royal Borough of Kingston,06/06/2023,90242084,"153,762.37",CORPUS CHRISTI CATHOLIC PRIMARY SCHOOL,ACADEMIC INSTNS - OTHER,Schools,Miscellaneous Expenses,A49000
Royal Borough of Kingston,09/06/2023,90243258,"18,639.36",CORPUS CHRISTI CATHOLIC PRIMARY SCHOOL,ACADEMIC INSTNS - OTHER,Schools,Miscellaneous Expenses,A49000
Royal Borough of Kingston,01/06/2023,90245317,"3,587.14",COUNTRY COURT CARE HOMES 2 LTD,SOCIAL SERVICES RESIDENTIAL,Adult Social Care & Health,Independent Placements,A56006
Royal Borough of Kingston,01/06/2023,90245351,"3,747.86",COUNTRY COURT CARE HOMES 2 LTD,SOCIAL SERVICES RESIDENTIAL,Adult Social Care & Health,Independent Placements,A56006
Royal Borough of Kingston,01/06/2023,90245417,"3,585.81",COUNTRY COURT CARE HOMES 2 LTD,SOCIAL SERVICES RESIDENTIAL,Adult Social Care & Health,Independent Placements,A56006
Royal Borough of Kingston,01/06/2023,90245421,"3,825.00",COUNTRY COURT CARE HOMES 2 LTD,SOCIAL SERVICES RESIDENTIAL,Adult Social Care & Health,Independent Placements,A56006
Royal Borough of Kingston,01/06/2023,90245586,"3,642.86",COUNTRY COURT CARE HOMES 2 LTD,SOCIAL SERVICES RESIDENTIAL,Adult Social Care & Health,Independent Placements,A56006
Royal Borough of Kingston,01/06/2023,90245742,900.00,COUNTRY COURT CARE HOMES 2 LTD,SOCIAL SERVICES RESIDENTIAL,Adult Social Care & Health,Other Private Contractors - Third Party,A56080
Royal Borough of Kingston,01/06/2023,70048661,"253,997.95",COUNTRYSIDE PROPERTIES (UK) LTD,CONSTRUCTION INDUSTRY,Housing Revenue Account,Payments to Contractors,C14000
Royal Borough of Kingston,01/06/2023,70048674,"701,979.03",COUNTRYSIDE PROPERTIES (UK) LTD,CONSTRUCTION INDUSTRY,Housing Revenue Account,Payments to Contractors,C14000
Royal Borough of Kingston,01/06/2023,70048675,"386,871.03",COUNTRYSIDE PROPERTIES (UK) LTD,CONSTRUCTION INDUSTRY,Housing Revenue Account,Payments to Contractors,C14000
Royal Borough of Kingston,01/06/2023,70048676,"94,343.83",COUNTRYSIDE PROPERTIES (UK) LTD,CONSTRUCTION INDUSTRY,Housing Revenue Account,Payments to Contractors,C14000
Royal Borough of Kingston,30/06/2023,70048664,"29,156.41",Countrystyle Recycling Limited,REFUSE COLLECTION / DISPOSAL,Corporate & Communities,Compostables,A56055
Royal Borough of Kingston,12/06/2023,70048651,"9,456.25",CRANWELL-WARD LTD,LANDLORDS,Corporate & Communities,Building Rents,A22005
Royal Borough of Kingston,31/05/2023,70048071,"9,870.90",CRAVENCROFT LTD,CONSTRUCTION INDUSTRY,Place,Payments to Contractors,C14000
Royal Borough of Kingston,02/06/2023,70048404,"132,804.49",CRAVENCROFT LTD,CONSTRUCTION INDUSTRY,Place,Payments to Contractors,C14000
Royal Borough of Kingston,27/06/2023,90247665,"1,807.09",CROMWOOD LIMITED,PLS LANDLORDS,Place,PSL Payments To Landlords,A22031
Royal Borough of Kingston,31/05/2023,70047969,640.00,CROWN PROMOTIONS & REMOVALS LTD,PREMISES - REMOVALS,Housing Revenue Account,Buildings - Project Management,C14003
Royal Borough of Kingston,31/05/2023,70047970,520.00,CROWN PROMOTIONS & REMOVALS LTD,PREMISES - REMOVALS,Housing Revenue Account,Removal Services,A44075
Royal Borough of Kingston,23/05/2023,70047250,"265,115.13",LONDON BOROUGH OF CROYDON,CENTRAL & LOCAL GOVERNMENT,Corporate & Communities,Waste Disposal Contract,A56074
Royal Borough of Kingston,22/05/2023,70047251,"118,776.54",LONDON BOROUGH OF CROYDON,CENTRAL & LOCAL GOVERNMENT,Corporate & Communities,Contract Cleaning,A27010
Royal Borough of Kingston,02/06/2023,70048165,"103,893.52",LONDON BOROUGH OF CROYDON,CENTRAL & LOCAL GOVERNMENT,Corporate & Communities,Contract Cleaning,A27010
Royal Borough of Kingston,06/06/2023,70048166,"1,024,564.10",LONDON BOROUGH OF CROYDON,CENTRAL & LOCAL GOVERNMENT,Corporate & Communities,Waste Disposal Contract,A56074
Royal Borough of Kingston,23/05/2023,70047071,"23,072.00",Crying Sons,CHARITIES & VOLUNTARY ORGNS,Adult Social Care & Health,Payments to Voluntary Organisations,A54005
Royal Borough of Kingston,23/05/2023,70047072,"13,154.91",Crying Sons,CHARITIES & VOLUNTARY ORGNS,Adult Social Care & Health,Payments to Voluntary Organisations,A54005
Royal Borough of Kingston,01/06/2023,70048790,"2,325.00",CRYSTAL & CO,ACCOMMODATION BED & BREAKFAST,Place,Bed & Breakfast,A56000
Royal Borough of Kingston,01/06/2023,70048791,"1,736.00",CRYSTAL & CO,ACCOMMODATION BED & BREAKFAST,Place,Bed & Breakfast,A56000
Royal Borough of Kingston,01/06/2023,70048792,"2,077.00",CRYSTAL & CO,ACCOMMODATION BED & BREAKFAST,Place,Bed & Breakfast,A56000
Royal Borough of Kingston,01/06/2023,70048793,"1,395.00",CRYSTAL & CO,ACCOMMODATION BED & BREAKFAST,Place,Bed & Breakfast,A56000
Royal Borough of Kingston,01/06/2023,70048794,"1,829.00",CRYSTAL & CO,ACCOMMODATION BED & BREAKFAST,Place,Bed & Breakfast,A56000
Royal Borough of Kingston,01/06/2023,70048795,"2,232.00",CRYSTAL & CO,ACCOMMODATION BED & BREAKFAST,Place,Bed & Breakfast,A56000
Royal Borough of Kingston,01/06/2023,70048796,"1,798.00",CRYSTAL & CO,ACCOMMODATION BED & BREAKFAST,Place,Bed & Breakfast,A56000
Royal Borough of Kingston,01/06/2023,70048797,"1,798.00",CRYSTAL & CO,ACCOMMODATION BED & BREAKFAST,Place,Bed & Breakfast,A56000
Royal Borough of Kingston,01/06/2023,70048798,"1,736.00",CRYSTAL & CO,ACCOMMODATION BED & BREAKFAST,Place,Bed & Breakfast,A56000
Royal Borough of Kingston,01/06/2023,70048799,"2,077.00",CRYSTAL & CO,ACCOMMODATION BED & BREAKFAST,Place,Bed & Breakfast,A56000
Royal Borough of Kingston,01/06/2023,70048800,"2,325.00",CRYSTAL & CO,ACCOMMODATION BED & BREAKFAST,Place,Bed & Breakfast,A56000
Royal Borough of Kingston,01/06/2023,70048801,"2,480.00",CRYSTAL & CO,ACCOMMODATION BED & BREAKFAST,Place,Bed & Breakfast,A56000
Royal Borough of Kingston,01/06/2023,70048802,840.00,CRYSTAL & CO,ACCOMMODATION BED & BREAKFAST,Place,Bed & Breakfast,A56000
Royal Borough of Kingston,01/06/2023,70048803,"1,829.00",CRYSTAL & CO,ACCOMMODATION BED & BREAKFAST,Place,Bed & Breakfast,A56000
Royal Borough of Kingston,01/06/2023,70048804,"1,829.00",CRYSTAL & CO,ACCOMMODATION BED & BREAKFAST,Place,Bed & Breakfast,A56000
Royal Borough of Kingston,09/06/2023,90243262,"14,710.08",KNOLLMEAD PRIMARY SCHOOL,SCHOOL FUNDS,Schools,Miscellaneous Expenses,A49000
Royal Borough of Kingston,16/06/2023,70048911,"6,025.72",CUFFE PLC,CONSTRUCTION INDUSTRY,Place,Payments to Contractors,C14000
Royal Borough of Kingston,16/06/2023,70048912,"3,128.62",CUFFE PLC,CONSTRUCTION INDUSTRY,Place,Payments to Contractors,C14000
Royal Borough of Kingston,31/03/2023,70048180,"7,500.00",Cushman & Wakefield Debenham Tie Leung Limited,SUNDRY SUPPLIER - FINANCE,Place,Professional Fees,A44066
Royal Borough of Kingston,27/06/2023,90247752,"1,317.00",REDACTED - PERSONAL DATA,PLS LANDLORDS,Place,PSL Payments To Landlords,A22031
Royal Borough of Kingston,05/06/2023,70048095,"1,665.00",D & L House Clearance Limited,BUILDING MNTCE - SERVICES,Corporate & Communities,Grants Given For Capital Purposes,C20004
Royal Borough of Kingston,26/04/2023,70048492,"1,655.00",D & L House Clearance Limited,BUILDING MNTCE - SERVICES,Adult Social Care & Health,Other Cleaning And Waste-Related Third Party Payment,A56064
Royal Borough of Kingston,27/06/2023,90247826,"1,321.66",REDACTED - PERSONAL DATA,PLS LANDLORDS,Place,PSL Payments To Landlords,A22031
Royal Borough of Kingston,27/06/2023,90247859,"1,094.00",REDACTED - PERSONAL DATA,PLS LANDLORDS,Place,PSL Payments To Landlords,A22031
Royal Borough of Kingston,09/06/2023,90243285,813.60,REDACTED - PERSONAL DATA,CHILDMINDERS START UP GRANT,Schools,PVI Providers,A60014
Royal Borough of Kingston,12/06/2023,70049006,"2,475.00",REDACTED - PERSONAL DATA,ENTERTAINMENTS INDUSTRY,Place,Consultancy Services,A56007
Royal Borough of Kingston,12/06/2023,70049007,"2,600.00",REDACTED - PERSONAL DATA,ENTERTAINMENTS INDUSTRY,Place,Consultancy Services,A56007
Royal Borough of Kingston,01/06/2023,90247453,"3,100.50",Darethealthcare UK Limited,ACCOMMODATION - OTHER,Adult Social Care & Health,Personal Budget - Third Party,A61019
Royal Borough of Kingston,01/06/2023,90247469,"3,404.87",Darethealthcare UK Limited,ACCOMMODATION - OTHER,Adult Social Care & Health,Personal Budget - Third Party,A61019
Royal Borough of Kingston,27/06/2023,90247891,"1,400.00",REDACTED - PERSONAL DATA,PLS LANDLORDS,Place,PSL Payments To Landlords,A22031
Royal Borough of Kingston,06/06/2023,90240816,500.00,REDACTED - PERSONAL DATA,GRANTS & EX GRATIA PAYMENTS,Adult Social Care & Health,"Grants, Contributions & Donations",A47005
Royal Borough of Kingston,27/06/2023,90247823,"1,094.00",REDACTED - PERSONAL DATA,PLS LANDLORDS,Place,PSL Payments To Landlords,A22031
Royal Borough of Kingston,27/06/2023,90247912,"1,000.00",REDACTED - PERSONAL DATA,PLS LANDLORDS,Place,PSL Payments To Landlords,A22031
Royal Borough of Kingston,27/06/2023,90247843,"1,094.00",REDACTED - PERSONAL DATA,PLS LANDLORDS,Place,PSL Payments To Landlords,A22031
Royal Borough of Kingston,23/05/2023,70047277,630.00,Dellhome Limited,SUNDRY SUPPLIER - HOUSING,Place,Bed & Breakfast,A56000
Royal Borough of Kingston,02/06/2023,70047685,"1,860.00",Delta Wise Limited,ACCOMMODATION BED & BREAKFAST,Place,Bed & Breakfast,A56000
Royal Borough of Kingston,02/06/2023,70047700,"2,077.00",Delta Wise Limited,ACCOMMODATION BED & BREAKFAST,Place,Bed & Breakfast,A56000
Royal Borough of Kingston,10/06/2023,70047701,"1,420.00",Delta Wise Limited,ACCOMMODATION BED & BREAKFAST,Place,Bed & Breakfast,A56000
Royal Borough of Kingston,01/06/2023,70047702,"2,635.00",Delta Wise Limited,ACCOMMODATION BED & BREAKFAST,Place,Bed & Breakfast,A56000
Royal Borough of Kingston,02/06/2023,70047703,"4,092.00",Delta Wise Limited,ACCOMMODATION BED & BREAKFAST,Place,Bed & Breakfast,A56000
Royal Borough of Kingston,01/06/2023,70047704,819.00,Delta Wise Limited,ACCOMMODATION BED & BREAKFAST,Place,Bed & Breakfast,A56000
Royal Borough of Kingston,02/06/2023,70047705,"2,790.00",Delta Wise Limited,ACCOMMODATION BED & BREAKFAST,Place,Bed & Breakfast,A56000
Royal Borough of Kingston,02/06/2023,70047706,"3,069.00",Delta Wise Limited,ACCOMMODATION BED & BREAKFAST,Place,Bed & Breakfast,A56000
Royal Borough of Kingston,02/06/2023,70047707,"3,565.00",Delta Wise Limited,ACCOMMODATION BED & BREAKFAST,Place,Bed & Breakfast,A56000
Royal Borough of Kingston,01/06/2023,70047712,"5,115.00",Delta Wise Limited,ACCOMMODATION BED & BREAKFAST,Place,Bed & Breakfast,A56000
Royal Borough of Kingston,01/06/2023,70047713,"1,008.00",Delta Wise Limited,ACCOMMODATION BED & BREAKFAST,Place,Bed & Breakfast,A56000
Royal Borough of Kingston,02/06/2023,70047714,"1,860.00",Delta Wise Limited,ACCOMMODATION BED & BREAKFAST,Place,Bed & Breakfast,A56000
Royal Borough of Kingston,02/06/2023,70047715,"2,635.00",Delta Wise Limited,ACCOMMODATION BED & BREAKFAST,Place,Bed & Breakfast,A56000
Royal Borough of Kingston,02/06/2023,70047716,"4,092.00",Delta Wise Limited,ACCOMMODATION BED & BREAKFAST,Place,Bed & Breakfast,A56000
Royal Borough of Kingston,22/05/2023,70046926,"54,171.61",Department of Health & Social Care,SUNDRY SUPPLIER - FINANCE,Adult Social Care & Health,Other Reimbusements & Contibutions,A91024
Royal Borough of Kingston,25/05/2023,70047369,"17,205.66",Department of Health & Social Care,SUNDRY SUPPLIER - FINANCE,Adult Social Care & Health,Other Reimbusements & Contibutions,A91024
Royal Borough of Kingston,01/06/2023,90247311,"6,310.97",Dephinus Healthcare Ltd,ACCOMMODATION - OTHER,Adult Social Care & Health,Personal Budget - Third Party,A61019
Royal Borough of Kingston,01/06/2023,90247427,"6,772.50",Dephinus Healthcare Ltd,ACCOMMODATION - OTHER,Adult Social Care & Health,Personal Budget - Third Party,A61019
Royal Borough of Kingston,01/06/2023,90247441,"13,052.27",Dephinus Healthcare Ltd,ACCOMMODATION - OTHER,Adult Social Care & Health,Personal Budget - Third Party,A61019
Royal Borough of Kingston,01/06/2023,90247443,"6,975.00",Dephinus Healthcare Ltd,ACCOMMODATION - OTHER,Adult Social Care & Health,Personal Budget - Third Party,A61019
Royal Borough of Kingston,12/06/2023,70048270,"1,150.00",DEXTERS LIMITED,LANDLORDS,Adult Social Care & Health,Building Rents,A22005
Royal Borough of Kingston,27/06/2023,90247548,"1,321.00",REDACTED - PERSONAL DATA,PLS LANDLORDS,Place,PSL Payments To Landlords,A22031
Royal Borough of Kingston,09/06/2023,90243201,"35,045.82",DICKY BIRDS PRE SCHOOL NURSERIES LTD,CHILDMINDERS START UP GRANT,Schools,PVI Providers,A60014
Royal Borough of Kingston,09/06/2023,90243229,"23,411.34",DICKY BIRDS PRE SCHOOL NURSERIES LTD,CHILDMINDERS START UP GRANT,Schools,PVI Providers,A60014
Royal Borough of Kingston,09/06/2023,90243301,"16,678.80",DICKY BIRDS PRE SCHOOL NURSERIES LTD,CHILDMINDERS START UP GRANT,Schools,PVI Providers,A60014
Royal Borough of Kingston,09/06/2023,90243326,"1,215.00",DICKY BIRDS PRE SCHOOL NURSERIES LTD,CHILDMINDERS START UP GRANT,Schools,2 Yr Old Place Funding,A60000
Royal Borough of Kingston,06/06/2023,90240805,500.00,REDACTED - PERSONAL DATA,GRANTS & EX GRATIA PAYMENTS,Adult Social Care & Health,"Grants, Contributions & Donations",A47005
Royal Borough of Kingston,27/06/2023,90247888,"1,094.33",REDACTED - PERSONAL DATA,PLS LANDLORDS,Place,PSL Payments To Landlords,A22031
Royal Borough of Kingston,27/06/2023,90247889,867.38,REDACTED - PERSONAL DATA,PLS LANDLORDS,Place,PSL Payments To Landlords,A22031
Royal Borough of Kingston,05/06/2023,70048000,566.50,DMA SIGNS LTD,BUILDING MNTCE - SERVICES,Housing Revenue Account,Equipment And Materials Purchase,A40000
Royal Borough of Kingston,14/06/2023,70048737,543.19,DMA SIGNS LTD,BUILDING MNTCE - SERVICES,Housing Revenue Account,Buildings - Project Management,C14003
Royal Borough of Kingston,09/06/2023,70048223,"6,905.00",DOLPHIN MOBILITY LIMITED,CONSTRUCTION INDUSTRY,Housing Revenue Account,Disabled Adaptations,C20003
Royal Borough of Kingston,30/04/2023,70048615,"18,911.00",DOLPHIN MOBILITY LIMITED,CONSTRUCTION INDUSTRY,Corporate & Communities,Grants Given For Capital Purposes,C20004
Royal Borough of Kingston,13/06/2023,70048623,"6,820.00",DOLPHIN MOBILITY LIMITED,CONSTRUCTION INDUSTRY,Housing Revenue Account,Disabled Adaptations,C20003
Royal Borough of Kingston,09/06/2023,90243217,"1,220.40",REDACTED - PERSONAL DATA,CHILDMINDERS START UP GRANT,Schools,PVI Providers,A60014
Royal Borough of Kingston,09/06/2023,90243222,"28,654.92",DORIS VENNER PRE-SCHOOL,ACADEMIC INSTNS - OTHER,Schools,PVI Providers,A60014
Royal Borough of Kingston,09/06/2023,90243339,"4,245.75",DORIS VENNER PRE-SCHOOL,ACADEMIC INSTNS - OTHER,Schools,2 Yr Old Place Funding,A60000
Royal Borough of Kingston,01/06/2023,90245700,"5,624.10",DOWNING (CHERTSEY ROAD) LTD,SOCIAL SERVICES RESIDENTIAL,Adult Social Care & Health,Independent Placements,A56006
Royal Borough of Kingston,01/06/2023,90247486,-724.71,DOWNING (CHERTSEY ROAD) LTD,SOCIAL SERVICES RESIDENTIAL,Adult Social Care & Health,Financially Assessed Contributions clients � Non VAT,A92047
Royal Borough of Kingston,27/06/2023,90247554,"1,675.00",REDACTED - PERSONAL DATA,PLS LANDLORDS,Place,PSL Payments To Landlords,A22031
Royal Borough of Kingston,27/06/2023,90247865,"1,314.00",REDACTED - PERSONAL DATA,PLS LANDLORDS,Place,PSL Payments To Landlords,A22031
Royal Borough of Kingston,13/06/2023,90243489,500.00,REDACTED - PERSONAL DATA,GRANTS & EX GRATIA PAYMENTS,Adult Social Care & Health,"Grants, Contributions & Donations",A47005
Royal Borough of Kingston,27/06/2023,90247693,"1,090.00",REDACTED - PERSONAL DATA,PLS LANDLORDS,Place,PSL Payments To Landlords,A22031
Royal Borough of Kingston,27/06/2023,90247534,"1,314.00",REDACTED - PERSONAL DATA,PLS LANDLORDS,Place,PSL Payments To Landlords,A22031
Royal Borough of Kingston,27/06/2023,90247853,"1,094.00",REDACTED - PERSONAL DATA,PLS LANDLORDS,Place,PSL Payments To Landlords,A22031
Royal Borough of Kingston,25/04/2023,70045425,"13,200.00",DSCALLARDS LIMITED,OPERATIONAL EQUIPMENT/MATERIAL,Adult Social Care & Health,ICT Software Development,A45041
Royal Borough of Kingston,31/05/2023,70047746,"7,045.87",DURADIAMOND HEALTHCARE LIMITED,LEGAL & PROFESSIONAL SERVICES,Corporate & Communities,Other Private Contractors - Third Party,A56080
Royal Borough of Kingston,31/05/2023,70047747,"7,591.23",DURADIAMOND HEALTHCARE LIMITED,LEGAL & PROFESSIONAL SERVICES,Corporate & Communities,Other Private Contractors - Third Party,A56080
Royal Borough of Kingston,27/06/2023,90247712,"1,094.00",EARLSFIELD PROPERTIES,PLS LANDLORDS,Place,PSL Payments To Landlords,A22031
Royal Borough of Kingston,27/06/2023,90247713,"1,094.00",EARLSFIELD PROPERTIES,PLS LANDLORDS,Place,PSL Payments To Landlords,A22031
Royal Borough of Kingston,27/06/2023,90247939,"1,047.00",EARLSFIELD PROPERTIES,PLS LANDLORDS,Place,PSL Payments To Landlords,A22031
Royal Borough of Kingston,15/06/2023,70048001,590.00,THE MANUAL HANDLING TRAINING CO.LTD,OPERATIONAL EQUIPMENT/MATERIAL,Corporate & Communities,Staff Development And Training,A15022
Royal Borough of Kingston,09/06/2023,90243241,"1,871.28",EDUCARE SMALL SCHOOL LTD,ACADEMIC INSTNS - OTHER,Schools,PVI Providers,A60014
Royal Borough of Kingston,27/06/2023,90247570,"1,050.00",REDACTED - PERSONAL DATA,PLS LANDLORDS,Place,PSL Payments To Landlords,A22031
Royal Borough of Kingston,27/06/2023,90247589,"1,200.00",REDACTED - PERSONAL DATA,PLS LANDLORDS,Place,PSL Payments To Landlords,A22031
Royal Borough of Kingston,30/04/2023,70046641,"2,030.00",ELDERCARE (UK) LTD,SOCIAL SERVICES - OTHER,Adult Social Care & Health,Equipment And Materials Purchase,A40000
Royal Borough of Kingston,30/04/2023,70046642,951.06,ELDERCARE (UK) LTD,SOCIAL SERVICES - OTHER,Adult Social Care & Health,Equipment And Materials Purchase,A40000
Royal Borough of Kingston,31/05/2023,70048179,999.21,ELDERCARE (UK) LTD,SOCIAL SERVICES - OTHER,Adult Social Care & Health,Equipment And Materials Purchase,A40000
Royal Borough of Kingston,31/05/2023,70048206,"1,015.00",ELDERCARE (UK) LTD,SOCIAL SERVICES - OTHER,Adult Social Care & Health,Equipment And Materials Purchase,A40000
Royal Borough of Kingston,31/05/2023,70048316,"5,364.34",ELDERCARE (UK) LTD,SOCIAL SERVICES - OTHER,Adult Social Care & Health,Equipment And Materials Purchase,A40000
Royal Borough of Kingston,06/06/2023,90242095,"4,991.83",ELLINGHAM PRIMARY SCHOOL,ACADEMIC INSTNS - OTHER,Schools,Miscellaneous Expenses,A49000
Royal Borough of Kingston,09/06/2023,90243259,"14,817.48",ELLINGHAM PRIMARY SCHOOL,ACADEMIC INSTNS - OTHER,Schools,Miscellaneous Expenses,A49000
Royal Borough of Kingston,29/06/2023,90247502,"2,073.81",ELLINGHAM PRIMARY SCHOOL,ACADEMIC INSTNS - OTHER,Place,Payments to Contractors,C14000
Royal Borough of Kingston,01/06/2023,90245636,"10,044.00",ELYSIUM HEALTHCARE LTD,SOCIAL SERVICES - OTHER,Adult Social Care & Health,Independent Placements,A56006
Royal Borough of Kingston,01/06/2023,90245644,"9,690.60",ELYSIUM HEALTHCARE LTD,SOCIAL SERVICES - OTHER,Adult Social Care & Health,Independent Placements,A56006
Royal Borough of Kingston,01/06/2023,90245649,"11,530.03",ELYSIUM HEALTHCARE LTD,SOCIAL SERVICES - OTHER,Adult Social Care & Health,Independent Placements,A56006
Royal Borough of Kingston,01/06/2023,90245653,"9,926.91",ELYSIUM HEALTHCARE LTD,SOCIAL SERVICES - OTHER,Adult Social Care & Health,Independent Placements,A56006
Royal Borough of Kingston,01/06/2023,90245656,"10,247.31",ELYSIUM HEALTHCARE LTD,SOCIAL SERVICES - OTHER,Adult Social Care & Health,Independent Placements,A56006
Royal Borough of Kingston,01/06/2023,90245679,"10,044.00",ELYSIUM HEALTHCARE LTD,SOCIAL SERVICES - OTHER,Adult Social Care & Health,Independent Placements,A56006
Royal Borough of Kingston,01/06/2023,90245801,"5,070.24",EMEZZIONS LIMITED ,SOCIAL SERVICES - OTHER,Adult Social Care & Health,Supported Living - new framework,A56126
Royal Borough of Kingston,01/06/2023,90245802,"2,716.20",EMEZZIONS LIMITED ,SOCIAL SERVICES - OTHER,Adult Social Care & Health,Supported Living - new framework,A56126
Royal Borough of Kingston,29/05/2023,90245972,800.40,EMEZZIONS LIMITED ,SOCIAL SERVICES - OTHER,Adult Social Care & Health,Supported Living - new framework,A56126
Royal Borough of Kingston,01/06/2023,90246074,"2,564.38",EMEZZIONS LIMITED ,SOCIAL SERVICES - OTHER,Adult Social Care & Health,Supported Living - new framework,A56126
Royal Borough of Kingston,01/06/2023,90246075,"3,420.54",EMEZZIONS LIMITED ,SOCIAL SERVICES - OTHER,Adult Social Care & Health,Supported Living - new framework,A56126
Royal Borough of Kingston,01/06/2023,90246076,"1,629.63",EMEZZIONS LIMITED ,SOCIAL SERVICES - OTHER,Adult Social Care & Health,Supported Living - new framework,A56126
Royal Borough of Kingston,01/06/2023,90246090,"13,724.64",EMEZZIONS LIMITED ,SOCIAL SERVICES - OTHER,Adult Social Care & Health,Supported Living - new framework,A56126
Royal Borough of Kingston,01/06/2023,90246092,"3,533.28",EMEZZIONS LIMITED ,SOCIAL SERVICES - OTHER,Adult Social Care & Health,Supported Living - new framework,A56126
Royal Borough of Kingston,01/06/2023,90246093,"2,160.36",EMEZZIONS LIMITED ,SOCIAL SERVICES - OTHER,Adult Social Care & Health,Supported Living - new framework,A56126
Royal Borough of Kingston,01/06/2023,90246898,"3,773.88",EMEZZIONS LIMITED ,SOCIAL SERVICES - OTHER,Adult Social Care & Health,Personal Budget - Third Party,A61019
Royal Borough of Kingston,01/06/2023,90246899,"6,289.80",EMEZZIONS LIMITED ,SOCIAL SERVICES - OTHER,Adult Social Care & Health,Personal Budget - Third Party,A61019
Royal Borough of Kingston,01/06/2023,90246901,"5,146.20",EMEZZIONS LIMITED ,SOCIAL SERVICES - OTHER,Adult Social Care & Health,Personal Budget - Third Party,A61019
Royal Borough of Kingston,09/06/2023,90243286,"3,429.00",REDACTED - PERSONAL DATA,CHILDMINDERS START UP GRANT,Schools,PVI Providers,A60014
Royal Borough of Kingston,01/06/2023,90245478,"3,241.63",ENHAM,SOCIAL SERVICES - OTHER,Adult Social Care & Health,Independent Placements,A56006
Royal Borough of Kingston,01/06/2023,90247472,-517.71,ENHAM,SOCIAL SERVICES - OTHER,Adult Social Care & Health,Financially Assessed Contributions clients � Non VAT,A92047
Royal Borough of Kingston,31/05/2023,70049005,"1,545.00",ENHANCEABLE,SOCIAL SERVICES - OTHER,Adult Social Care & Health,Other Private Contractors - Third Party,A56080
Royal Borough of Kingston,01/06/2023,90245747,"31,731.09",ENHANCEABLE,SOCIAL SERVICES - OTHER,Adult Social Care & Health,Other Private Contractors - Third Party,A56080
Royal Borough of Kingston,01/06/2023,90245752,533.49,ENHANCEABLE,SOCIAL SERVICES - OTHER,Adult Social Care & Health,Other Private Contractors - Third Party,A56080
Royal Borough of Kingston,01/06/2023,90247213,"1,715.57",ENHANCEABLE,SOCIAL SERVICES - OTHER,Adult Social Care & Health,Personal Budget - Third Party,A61019
Royal Borough of Kingston,01/06/2023,90247396,"1,525.67",ENHANCEABLE,SOCIAL SERVICES - OTHER,Adult Social Care & Health,Personal Budget - Third Party,A61019
Royal Borough of Kingston,01/06/2023,90247492,953.10,ENHANCEABLE,SOCIAL SERVICES - OTHER,Adult Social Care & Health,Personal Budget - Third Party,A61019
Royal Borough of Kingston,01/06/2023,90247493,"1,048.41",ENHANCEABLE,SOCIAL SERVICES - OTHER,Adult Social Care & Health,Personal Budget - Third Party,A61019
Royal Borough of Kingston,30/05/2023,70048153,440.00,EPSOM & EWELL BOROUGH COUNCIL,CENTRAL & LOCAL GOVERNMENT,Adult Social Care & Health,Hire of Rooms,A22010
Royal Borough of Kingston,03/04/2023,70044042,"308,180.77",EQUANS SERVICES LIMITED,CONSTRUCTION INDUSTRY,Place,Other Private Contractors - Third Party,A56080
Royal Borough of Kingston,27/06/2023,90247675,871.22,REDACTED - PERSONAL DATA,PLS LANDLORDS,Place,PSL Payments To Landlords,A22031
Royal Borough of Kingston,12/06/2023,70048451,849.00,Evac+Chair International Ltd,TRAINING,Place,Other Private Contractors - Third Party,A56080
Royal Borough of Kingston,15/05/2023,70047313,"7,765.00",EVOLVE AMS UK Ltd,SUNDRY SUPPLIER - HOUSING,Corporate & Communities,Grants Given For Capital Purposes,C20004
Royal Borough of Kingston,31/05/2023,70048475,"6,625.00",EVOLVE AMS UK LTD,SUNDRY SUPPLIER - HOUSING,Corporate & Communities,Grants Given For Capital Purposes,C20004
Royal Borough of Kingston,30/04/2023,70045976,957.50,EVOLVE CONSULTING ENGINEERS LTD,LEGAL & PROFESSIONAL SERVICES,Place,Buildings - Design & Planning,C14001
Royal Borough of Kingston,01/03/2023,70047253,"3,640.00",EXCLUSIVE FINE HOMES LTD,ACCOMMODATION BED & BREAKFAST,Place,Bed & Breakfast,A56000
Royal Borough of Kingston,01/03/2023,70047289,"2,520.00",EXCLUSIVE FINE HOMES LTD,ACCOMMODATION BED & BREAKFAST,Place,Bed & Breakfast,A56000
Royal Borough of Kingston,01/06/2023,70048469,"4,030.00",EXCLUSIVE FINE HOMES LTD,ACCOMMODATION BED & BREAKFAST,Place,Bed & Breakfast,A56000
Royal Borough of Kingston,01/06/2023,70048470,"4,650.00",EXCLUSIVE FINE HOMES LTD,ACCOMMODATION BED & BREAKFAST,Place,Bed & Breakfast,A56000
Royal Borough of Kingston,01/06/2023,70048471,"2,790.00",EXCLUSIVE FINE HOMES LTD,ACCOMMODATION BED & BREAKFAST,Place,Bed & Breakfast,A56000
Royal Borough of Kingston,01/06/2023,70048472,"4,650.00",EXCLUSIVE FINE HOMES LTD,ACCOMMODATION BED & BREAKFAST,Place,Bed & Breakfast,A56000
Royal Borough of Kingston,01/06/2023,70048473,"2,790.00",EXCLUSIVE FINE HOMES LTD,ACCOMMODATION BED & BREAKFAST,Place,Bed & Breakfast,A56000
Royal Borough of Kingston,27/06/2023,90247822,823.33,REDACTED - PERSONAL DATA,PLS LANDLORDS,Place,PSL Payments To Landlords,A22031
Royal Borough of Kingston,27/06/2023,90247792,"1,551.00",REDACTED - PERSONAL DATA,PLS LANDLORDS,Place,PSL Payments To Landlords,A22031
Royal Borough of Kingston,27/06/2023,90247560,918.33,REDACTED - PERSONAL DATA,PLS LANDLORDS,Place,PSL Payments To Landlords,A22031
Royal Borough of Kingston,12/05/2023,70046602,"1,950.00",F H & G LIMITED,LEGAL & PROFESSIONAL SERVICES,Housing Revenue Account,Professional Fees,A44066
Royal Borough of Kingston,18/05/2023,70046893,"1,300.00",F H & G LIMITED,LEGAL & PROFESSIONAL SERVICES,Housing Revenue Account,Professional Fees,A44066
Royal Borough of Kingston,02/06/2023,70047848,"1,300.00",F H & G LIMITED,LEGAL & PROFESSIONAL SERVICES,Housing Revenue Account,Professional Fees,A44066
Royal Borough of Kingston,02/06/2023,70047849,650.00,F H & G LIMITED,LEGAL & PROFESSIONAL SERVICES,Housing Revenue Account,Professional Fees,A44066
Royal Borough of Kingston,09/06/2023,70048231,650.00,F H & G LIMITED,LEGAL & PROFESSIONAL SERVICES,Housing Revenue Account,Professional Fees,A44066
Royal Borough of Kingston,27/06/2023,90247834,"1,675.00",REDACTED - PERSONAL DATA,PLS LANDLORDS,Place,PSL Payments To Landlords,A22031
Royal Borough of Kingston,02/06/2023,70047957,"4,830.98",F.M. CONWAY LTD,CONSTRUCTION INDUSTRY,Corporate & Communities,Vehicle Crossings,A56043
Royal Borough of Kingston,06/06/2023,70048009,"3,000.00",F.M. CONWAY LTD,CONSTRUCTION INDUSTRY,Corporate & Communities,Infrastructure Assets - Project Management,C12000
Royal Borough of Kingston,23/06/2023,70048970,875.48,F.M. CONWAY LTD,CONSTRUCTION INDUSTRY,Corporate & Communities,Infrastructure Assets - Project Management,C12000
Royal Borough of Kingston,23/06/2023,70048971,"1,461.20",F.M. CONWAY LTD,CONSTRUCTION INDUSTRY,Corporate & Communities,Infrastructure Assets - Project Management,C12000
Royal Borough of Kingston,23/06/2023,70048973,"1,275.38",F.M. CONWAY LTD,CONSTRUCTION INDUSTRY,Corporate & Communities,Infrastructure Assets - Project Management,C12000
Royal Borough of Kingston,23/06/2023,70049049,"21,538.26",F.M. CONWAY LTD,CONSTRUCTION INDUSTRY,Corporate & Communities,Professional Fees,A44066
Royal Borough of Kingston,23/06/2023,70049101,"46,781.80",F.M. CONWAY LTD,CONSTRUCTION INDUSTRY,Corporate & Communities,Infrastructure Assets - Purchase & Enhancement,C12001
Royal Borough of Kingston,22/06/2023,70049238,"2,844.40",F.M. CONWAY LTD,CONSTRUCTION INDUSTRY,Corporate & Communities,Bridge Repairs & Maintenance,A56035
Royal Borough of Kingston,12/06/2023,70049253,"10,000.00",F.M. CONWAY LTD,CONSTRUCTION INDUSTRY,Corporate & Communities,Bridge Repairs & Maintenance,A56035
Royal Borough of Kingston,28/04/2023,70049259,"7,047.82",F.M. CONWAY LTD,CONSTRUCTION INDUSTRY,Corporate & Communities,Vehicle Crossings,A56043
Royal Borough of Kingston,09/06/2023,90243226,"2,936.88",FAIRFIELD PLAYBOX PLAYGROUP,ACADEMIC INSTNS - OTHER,Schools,PVI Providers,A60014
Royal Borough of Kingston,09/06/2023,90243342,"3,888.00",FAIRFIELD PLAYBOX PLAYGROUP,ACADEMIC INSTNS - OTHER,Schools,2 Yr Old Place Funding,A60000
Royal Borough of Kingston,01/05/2023,90245695,"5,233.73",FAMILY INVESTMENT (THREE) LIMITED,SOCIAL SERVICES RESIDENTIAL,Adult Social Care & Health,Independent Placements,A56006
Royal Borough of Kingston,27/06/2023,90247539,"1,094.00",REDACTED - PERSONAL DATA,PLS LANDLORDS,Place,PSL Payments To Landlords,A22031
Royal Borough of Kingston,19/06/2023,70048909,"14,197.50",FARRER HUXLEY LIMITED,CONSULTING ARCHITECTS ENGINEER,Place,Infrastructure Assets - Detailed Design,C12003
Royal Borough of Kingston,09/06/2023,90243277,"5,085.00",REDACTED - PERSONAL DATA,CHILDMINDERS START UP GRANT,Schools,PVI Providers,A60014
Royal Borough of Kingston,09/06/2023,90243350,972.00,REDACTED - PERSONAL DATA,CHILDMINDERS START UP GRANT,Schools,2 Yr Old Place Funding,A60000
Royal Borough of Kingston,08/06/2023,90243182,"1,584.00",Fern Hill Primary School,ACADEMIC INSTNS - OTHER,Schools,Miscellaneous Expenses,A49000
Royal Borough of Kingston,09/06/2023,90243299,"12,366.72",Fern Hill Primary School,ACADEMIC INSTNS - OTHER,Schools,Miscellaneous Expenses,A49000
Royal Borough of Kingston,05/06/2023,70047680,"44,645.79",TRAVELODGE,SUNDRY SUPPLIER - FINANCE,Housing Revenue Account,Bed & Breakfast,A56000
Royal Borough of Kingston,16/06/2023,70048617,"47,696.65",TRAVELODGE,SUNDRY SUPPLIER - FINANCE,Housing Revenue Account,Bed & Breakfast,A56000
Royal Borough of Kingston,01/06/2023,90245702,"7,740.21",FitzRoy Support,SOCIAL SERVICES - OTHER,Adult Social Care & Health,Independent Placements,A56006
Royal Borough of Kingston,26/06/2023,70049248,700.00,FOTHERGILL & COMPANY LIMITED,LEGAL & PROFESSIONAL SERVICES,Housing Revenue Account,Council Dwellings - Construction & Renovation,C10002
Royal Borough of Kingston,09/06/2023,90243303,"4,474.80",Fountain Nursery Limited,CHILDMINDERS START UP GRANT,Schools,PVI Providers,A60014
Royal Borough of Kingston,01/06/2023,90243597,850.00,FOUR SEASONS HEALTHCARE,SOCIAL SERVICES RESIDENTIAL,Adult Social Care & Health,Independent Placements,A56006
Royal Borough of Kingston,01/06/2023,90243598,"2,550.00",FOUR SEASONS HEALTHCARE,SOCIAL SERVICES RESIDENTIAL,Adult Social Care & Health,Independent Placements,A56006
Royal Borough of Kingston,01/06/2023,90243599,850.00,FOUR SEASONS HEALTHCARE,SOCIAL SERVICES RESIDENTIAL,Adult Social Care & Health,Independent Placements,A56006
Royal Borough of Kingston,01/06/2023,90243600,"1,700.00",FOUR SEASONS HEALTHCARE,SOCIAL SERVICES RESIDENTIAL,Adult Social Care & Health,Independent Placements,A56006
Royal Borough of Kingston,01/06/2023,90243601,607.14,FOUR SEASONS HEALTHCARE,SOCIAL SERVICES RESIDENTIAL,Adult Social Care & Health,Independent Placements,A56006
Royal Borough of Kingston,01/06/2023,90243602,"3,764.29",FOUR SEASONS HEALTHCARE,SOCIAL SERVICES RESIDENTIAL,Adult Social Care & Health,Independent Placements,A56006
Royal Borough of Kingston,01/06/2023,90245304,"4,232.57",FOUR SEASONS HEALTHCARE,SOCIAL SERVICES RESIDENTIAL,Adult Social Care & Health,Independent Placements,A56006
Royal Borough of Kingston,01/06/2023,90245305,"3,570.56",FOUR SEASONS HEALTHCARE,SOCIAL SERVICES RESIDENTIAL,Adult Social Care & Health,Independent Placements,A56006
Royal Borough of Kingston,01/06/2023,90245309,"3,593.44",FOUR SEASONS HEALTHCARE,SOCIAL SERVICES RESIDENTIAL,Adult Social Care & Health,Independent Placements,A56006
Royal Borough of Kingston,01/06/2023,90245324,"3,489.81",FOUR SEASONS HEALTHCARE,SOCIAL SERVICES RESIDENTIAL,Adult Social Care & Health,Independent Placements,A56006
Royal Borough of Kingston,01/06/2023,90245335,"3,592.76",FOUR SEASONS HEALTHCARE,SOCIAL SERVICES RESIDENTIAL,Adult Social Care & Health,Independent Placements,A56006
Royal Borough of Kingston,01/06/2023,90245336,"3,214.29",FOUR SEASONS HEALTHCARE,SOCIAL SERVICES RESIDENTIAL,Adult Social Care & Health,Independent Placements,A56006
Royal Borough of Kingston,01/06/2023,90245337,"3,593.44",FOUR SEASONS HEALTHCARE,SOCIAL SERVICES RESIDENTIAL,Adult Social Care & Health,Independent Placements,A56006
Royal Borough of Kingston,01/06/2023,90245340,"3,570.56",FOUR SEASONS HEALTHCARE,SOCIAL SERVICES RESIDENTIAL,Adult Social Care & Health,Independent Placements,A56006
Royal Borough of Kingston,01/06/2023,90245344,"1,085.71",FOUR SEASONS HEALTHCARE,SOCIAL SERVICES RESIDENTIAL,Adult Social Care & Health,Independent Placements,A56006
Royal Borough of Kingston,01/06/2023,90245360,"3,593.44",FOUR SEASONS HEALTHCARE,SOCIAL SERVICES RESIDENTIAL,Adult Social Care & Health,Independent Placements,A56006
Royal Borough of Kingston,01/06/2023,90245364,"3,593.44",FOUR SEASONS HEALTHCARE,SOCIAL SERVICES RESIDENTIAL,Adult Social Care & Health,Independent Placements,A56006
Royal Borough of Kingston,01/06/2023,90245387,"3,593.44",FOUR SEASONS HEALTHCARE,SOCIAL SERVICES RESIDENTIAL,Adult Social Care & Health,Independent Placements,A56006
Royal Borough of Kingston,01/06/2023,90245407,"-2,628.57",FOUR SEASONS HEALTHCARE,SOCIAL SERVICES RESIDENTIAL,Adult Social Care & Health,Independent Placements,A56006
Royal Borough of Kingston,01/06/2023,90245408,"-3,542.86",FOUR SEASONS HEALTHCARE,SOCIAL SERVICES RESIDENTIAL,Adult Social Care & Health,Independent Placements,A56006
Royal Borough of Kingston,01/06/2023,90245494,"3,228.34",FOUR SEASONS HEALTHCARE,SOCIAL SERVICES RESIDENTIAL,Adult Social Care & Health,Independent Placements,A56006
Royal Borough of Kingston,01/06/2023,90245497,"3,857.14",FOUR SEASONS HEALTHCARE,SOCIAL SERVICES RESIDENTIAL,Adult Social Care & Health,Independent Placements,A56006
Royal Borough of Kingston,01/06/2023,90245507,"3,413.10",FOUR SEASONS HEALTHCARE,SOCIAL SERVICES RESIDENTIAL,Adult Social Care & Health,Independent Placements,A56006
Royal Borough of Kingston,01/06/2023,90245517,"3,125.44",FOUR SEASONS HEALTHCARE,SOCIAL SERVICES RESIDENTIAL,Adult Social Care & Health,Independent Placements,A56006
Royal Borough of Kingston,01/06/2023,90245618,"3,642.86",FOUR SEASONS HEALTHCARE,SOCIAL SERVICES RESIDENTIAL,Adult Social Care & Health,Independent Placements,A56006
Royal Borough of Kingston,27/06/2023,90247529,"1,950.00",REDACTED - PERSONAL DATA,PLS LANDLORDS,Place,PSL Payments To Landlords,A22031
Royal Borough of Kingston,27/06/2023,90247811,"1,280.67",REDACTED - PERSONAL DATA,PLS LANDLORDS,Place,PSL Payments To Landlords,A22031
Royal Borough of Kingston,01/06/2023,90247439,"17,913.51",Freshstart Care Solutions Ltd,ACCOMMODATION - OTHER,Adult Social Care & Health,Personal Budget - Third Party,A61019
Royal Borough of Kingston,19/06/2023,70048986,"2,200.00",Friends of Kingston Road Recreation Ground,SUNDRY SUPPLIER - FINANCE,Corporate & Communities,Payments to Voluntary Organisations,A54005
Royal Borough of Kingston,24/06/2023,70049032,"5,000.00",Full Cycle Bicyle Project CIC,GRANTS & EX GRATIA PAYMENTS,Corporate & Communities,Payments to Voluntary Organisations,A54005
Royal Borough of Kingston,09/06/2023,90243292,"3,254.40",FUN EXPLORERS CHILDCARE,CHILDMINDERS START UP GRANT,Schools,PVI Providers,A60014
Royal Borough of Kingston,09/06/2023,90243240,813.60,REDACTED - PERSONAL DATA,SOCIAL SERVICES - OTHER,Schools,PVI Providers,A60014
Royal Borough of Kingston,27/06/2023,90247684,"1,053.00",REDACTED - PERSONAL DATA,PLS LANDLORDS,Place,PSL Payments To Landlords,A22031
Royal Borough of Kingston,27/06/2023,90247519,"1,094.34",REDACTED - PERSONAL DATA,PLS LANDLORDS,Place,PSL Payments To Landlords,A22031
Royal Borough of Kingston,27/06/2023,90247816,"1,094.34",REDACTED - PERSONAL DATA,PLS LANDLORDS,Place,PSL Payments To Landlords,A22031
Royal Borough of Kingston,24/05/2023,70047682,"2,310.00",GAS CONTRACT SERVICES LTD,LEGAL & PROFESSIONAL SERVICES,Housing Revenue Account,Gas Servicing & Heating Repairs,A20005
Royal Borough of Kingston,19/06/2023,70048871,"2,697.00",GAS CONTRACT SERVICES LTD,LEGAL & PROFESSIONAL SERVICES,Housing Revenue Account,Gas Servicing & Heating Repairs,A20005
Royal Borough of Kingston,31/05/2023,70047348,"2,700.00",GATENBYSANDERSON LTD,TEMP STAFF & CONSULTANCY,Chief Executives,Recruitment Expenses,A15026
Royal Borough of Kingston,31/05/2023,70047850,"2,800.00",GATENBYSANDERSON LTD,TEMP STAFF & CONSULTANCY,Chief Executives,Recruitment Expenses,A15026
Royal Borough of Kingston,27/06/2023,90247619,"1,240.00",GATES & BRADSHAW (UK) LTD,PLS LANDLORDS,Place,PSL Payments To Landlords,A22031
Royal Borough of Kingston,01/04/2023,70048350,"34,500.00",KINGSTON HOSPITAL NHS FT,CENTRAL & LOCAL GOVERNMENT,Adult Social Care & Health,Other Private Contractors - Third Party,A56080
Royal Borough of Kingston,22/09/2022,70048351,"4,510.03",KINGSTON HOSPITAL NHS FT,CENTRAL & LOCAL GOVERNMENT,Adult Social Care & Health,Other Private Contractors - Third Party,A56080
Royal Borough of Kingston,31/05/2023,70048630,"4,968.95",KINGSTON HOSPITAL NHS FT,CENTRAL & LOCAL GOVERNMENT,Adult Social Care & Health,Other Private Contractors - Third Party,A56080
Royal Borough of Kingston,30/11/2021,70048679,512.66,KINGSTON HOSPITAL NHS FT,CENTRAL & LOCAL GOVERNMENT,Adult Social Care & Health,Other Private Contractors - Third Party,A56080
Royal Borough of Kingston,24/03/2022,70048728,-686.16,KINGSTON HOSPITAL NHS FT,CENTRAL & LOCAL GOVERNMENT,Adult Social Care & Health,Other Private Contractors - Third Party,A56080
Royal Borough of Kingston,09/06/2023,90243230,"16,272.00",KINGSTON HOSPITAL NHS FT,SOCIAL SERVICES DAY CARE,Schools,PVI Providers,A60014
Royal Borough of Kingston,09/06/2023,90243344,810.00,KINGSTON HOSPITAL NHS FT,SOCIAL SERVICES DAY CARE,Schools,2 Yr Old Place Funding,A60000
Royal Borough of Kingston,26/05/2023,70047829,"10,267.05",SW LONDON ST GEORGES MH NHST,SOCIAL SERVICES - OTHER,Adult Social Care & Health,Miscellaneous Expenses,A49000
Royal Borough of Kingston,29/05/2023,90245940,587.16,GENEVA ROAD LIMITED,SOCIAL SERVICES RESIDENTIAL,Adult Social Care & Health,Supported Living - new framework,A56126
Royal Borough of Kingston,29/05/2023,90246018,"1,509.84",GENEVA ROAD LIMITED,SOCIAL SERVICES RESIDENTIAL,Adult Social Care & Health,Supported Living - new framework,A56126
Royal Borough of Kingston,01/06/2023,90246919,"1,178.57",GENEVA ROAD LIMITED,SOCIAL SERVICES RESIDENTIAL,Adult Social Care & Health,Personal Budget - Third Party,A61019
Royal Borough of Kingston,01/06/2023,90246921,"1,217.86",GENEVA ROAD LIMITED,SOCIAL SERVICES RESIDENTIAL,Adult Social Care & Health,Personal Budget - Third Party,A61019
Royal Borough of Kingston,01/06/2023,90246924,857.14,GENEVA ROAD LIMITED,SOCIAL SERVICES RESIDENTIAL,Adult Social Care & Health,Personal Budget - Third Party,A61019
Royal Borough of Kingston,01/06/2023,90246925,"1,124.14",GENEVA ROAD LIMITED,SOCIAL SERVICES RESIDENTIAL,Adult Social Care & Health,Personal Budget - Third Party,A61019
Royal Borough of Kingston,01/06/2023,90246926,"3,176.74",GENEVA ROAD LIMITED,SOCIAL SERVICES RESIDENTIAL,Adult Social Care & Health,Personal Budget - Third Party,A61019
Royal Borough of Kingston,01/06/2023,90246927,"7,500.00",GENEVA ROAD LIMITED,SOCIAL SERVICES RESIDENTIAL,Adult Social Care & Health,Personal Budget - Third Party,A61019
Royal Borough of Kingston,22/05/2023,90246946,864.00,GENEVA ROAD LIMITED,SOCIAL SERVICES RESIDENTIAL,Adult Social Care & Health,Personal Budget - Third Party,A61019
Royal Borough of Kingston,01/06/2023,90246947,428.57,GENEVA ROAD LIMITED,SOCIAL SERVICES RESIDENTIAL,Adult Social Care & Health,Personal Budget - Third Party,A61019
Royal Borough of Kingston,01/06/2023,90246948,428.57,GENEVA ROAD LIMITED,SOCIAL SERVICES RESIDENTIAL,Adult Social Care & Health,Personal Budget - Third Party,A61019
Royal Borough of Kingston,22/05/2023,90246974,"2,054.80",GENEVA ROAD LIMITED,SOCIAL SERVICES RESIDENTIAL,Adult Social Care & Health,Personal Budget - Third Party,A61019
Royal Borough of Kingston,22/05/2023,90246975,"1,080.00",GENEVA ROAD LIMITED,SOCIAL SERVICES RESIDENTIAL,Adult Social Care & Health,Personal Budget - Third Party,A61019
Royal Borough of Kingston,01/06/2023,90246982,428.57,GENEVA ROAD LIMITED,SOCIAL SERVICES RESIDENTIAL,Adult Social Care & Health,Personal Budget - Third Party,A61019
Royal Borough of Kingston,01/06/2023,90246984,642.86,GENEVA ROAD LIMITED,SOCIAL SERVICES RESIDENTIAL,Adult Social Care & Health,Personal Budget - Third Party,A61019
Royal Borough of Kingston,22/05/2023,90246985,672.48,GENEVA ROAD LIMITED,SOCIAL SERVICES RESIDENTIAL,Adult Social Care & Health,Personal Budget - Third Party,A61019
Royal Borough of Kingston,22/05/2023,90246986,648.00,GENEVA ROAD LIMITED,SOCIAL SERVICES RESIDENTIAL,Adult Social Care & Health,Personal Budget - Third Party,A61019
Royal Borough of Kingston,01/06/2023,90246987,"1,071.43",GENEVA ROAD LIMITED,SOCIAL SERVICES RESIDENTIAL,Adult Social Care & Health,Personal Budget - Third Party,A61019
Royal Borough of Kingston,22/05/2023,90246988,"1,868.00",GENEVA ROAD LIMITED,SOCIAL SERVICES RESIDENTIAL,Adult Social Care & Health,Personal Budget - Third Party,A61019
Royal Borough of Kingston,22/05/2023,90246989,"1,080.00",GENEVA ROAD LIMITED,SOCIAL SERVICES RESIDENTIAL,Adult Social Care & Health,Personal Budget - Third Party,A61019
Royal Borough of Kingston,22/05/2023,90247008,864.00,GENEVA ROAD LIMITED,SOCIAL SERVICES RESIDENTIAL,Adult Social Care & Health,Personal Budget - Third Party,A61019
Royal Borough of Kingston,22/05/2023,90247024,971.36,GENEVA ROAD LIMITED,SOCIAL SERVICES RESIDENTIAL,Adult Social Care & Health,Personal Budget - Third Party,A61019
Royal Borough of Kingston,01/06/2023,90247032,-428.57,GENEVA ROAD LIMITED,SOCIAL SERVICES RESIDENTIAL,Adult Social Care & Health,Personal Budget - Third Party,A61019
Royal Borough of Kingston,01/06/2023,90247034,-442.86,GENEVA ROAD LIMITED,SOCIAL SERVICES RESIDENTIAL,Adult Social Care & Health,Personal Budget - Third Party,A61019
Royal Borough of Kingston,01/06/2023,90247037,857.14,GENEVA ROAD LIMITED,SOCIAL SERVICES RESIDENTIAL,Adult Social Care & Health,Personal Budget - Third Party,A61019
Royal Borough of Kingston,22/05/2023,90247038,864.00,GENEVA ROAD LIMITED,SOCIAL SERVICES RESIDENTIAL,Adult Social Care & Health,Personal Budget - Third Party,A61019
Royal Borough of Kingston,01/06/2023,90247040,642.86,GENEVA ROAD LIMITED,SOCIAL SERVICES RESIDENTIAL,Adult Social Care & Health,Personal Budget - Third Party,A61019
Royal Borough of Kingston,22/05/2023,90247041,648.00,GENEVA ROAD LIMITED,SOCIAL SERVICES RESIDENTIAL,Adult Social Care & Health,Personal Budget - Third Party,A61019
Royal Borough of Kingston,01/06/2023,90247059,490.54,GENEVA ROAD LIMITED,SOCIAL SERVICES RESIDENTIAL,Adult Social Care & Health,Personal Budget - Third Party,A61019
Royal Borough of Kingston,01/06/2023,90247079,-535.71,GENEVA ROAD LIMITED,SOCIAL SERVICES RESIDENTIAL,Adult Social Care & Health,Personal Budget - Third Party,A61019
Royal Borough of Kingston,22/05/2023,90247081,540.00,GENEVA ROAD LIMITED,SOCIAL SERVICES RESIDENTIAL,Adult Social Care & Health,Personal Budget - Third Party,A61019
Royal Borough of Kingston,01/06/2023,90247083,-553.57,GENEVA ROAD LIMITED,SOCIAL SERVICES RESIDENTIAL,Adult Social Care & Health,Personal Budget - Third Party,A61019
Royal Borough of Kingston,01/06/2023,90247085,642.86,GENEVA ROAD LIMITED,SOCIAL SERVICES RESIDENTIAL,Adult Social Care & Health,Personal Budget - Third Party,A61019
Royal Borough of Kingston,22/05/2023,90247086,540.00,GENEVA ROAD LIMITED,SOCIAL SERVICES RESIDENTIAL,Adult Social Care & Health,Personal Budget - Third Party,A61019
Royal Borough of Kingston,01/06/2023,70047456,"2,989.10",REDACTED - PERSONAL DATA,PLS LANDLORDS,Place,Compensation (In Lieu Of Works),A20039
Royal Borough of Kingston,19/05/2023,70048070,"2,989.10",REDACTED - PERSONAL DATA,PLS LANDLORDS,Place,Compensation (In Lieu Of Works),A20039
Royal Borough of Kingston,01/06/2023,90245505,"3,506.61",GEORGIAN HOUSE NURSING HOME,SOCIAL SERVICES RESIDENTIAL,Adult Social Care & Health,Independent Placements,A56006
Royal Borough of Kingston,17/04/2023,70047641,495.00,Gilroy Court LTD,ACCOMMODATION BED & BREAKFAST,Place,Bed & Breakfast,A56000
Royal Borough of Kingston,17/04/2023,70047641,165.00,Gilroy Court LTD,ACCOMMODATION BED & BREAKFAST,Place,Bed & Breakfast,A56000
Royal Borough of Kingston,31/05/2023,70047906,"1,484.99",Glendale Countryside Ltd,CONSTRUCTION INDUSTRY,Corporate & Communities,Property Repairs & Maintenance & Alterations - Responsive,A20011
Royal Borough of Kingston,31/05/2023,70047909,"3,650.00",Glendale Countryside Ltd,CONSTRUCTION INDUSTRY,Corporate & Communities,Property Repairs & Maintenance & Alterations - Responsive,A20011
Royal Borough of Kingston,31/05/2023,70047910,"5,100.00",Glendale Countryside Ltd,CONSTRUCTION INDUSTRY,Corporate & Communities,Grounds Maintenance Contract,A28000
Royal Borough of Kingston,31/05/2023,70047911,"4,612.47",Glendale Countryside Ltd,CONSTRUCTION INDUSTRY,Corporate & Communities,Grounds Maintenance Contract,A28000
Royal Borough of Kingston,31/05/2023,70047912,"146,691.66",Glendale Countryside Ltd,CONSTRUCTION INDUSTRY,Corporate & Communities,Grounds Maintenance Contract,A28000
Royal Borough of Kingston,22/05/2023,90240961,504.21,Global Homecare,SOCIAL SERVICES-HOME CARE,Adult Social Care & Health,Homecare - new framework,A56127
Royal Borough of Kingston,22/05/2023,90241038,630.27,Global Homecare,SOCIAL SERVICES-HOME CARE,Adult Social Care & Health,Homecare - new framework,A56127
Royal Borough of Kingston,22/05/2023,90241192,"-1,635.37",Global Homecare,SOCIAL SERVICES-HOME CARE,Adult Social Care & Health,Homecare - new framework,A56127
Royal Borough of Kingston,22/05/2023,90241193,"-2,861.90",Global Homecare,SOCIAL SERVICES-HOME CARE,Adult Social Care & Health,Homecare - new framework,A56127
Royal Borough of Kingston,22/05/2023,90241194,"-2,861.90",Global Homecare,SOCIAL SERVICES-HOME CARE,Adult Social Care & Health,Homecare - new framework,A56127
Royal Borough of Kingston,22/05/2023,90241195,"-2,861.90",Global Homecare,SOCIAL SERVICES-HOME CARE,Adult Social Care & Health,Homecare - new framework,A56127
Royal Borough of Kingston,22/05/2023,90241196,"-2,861.90",Global Homecare,SOCIAL SERVICES-HOME CARE,Adult Social Care & Health,Homecare - new framework,A56127
Royal Borough of Kingston,22/05/2023,90241197,"-2,861.90",Global Homecare,SOCIAL SERVICES-HOME CARE,Adult Social Care & Health,Homecare - new framework,A56127
Royal Borough of Kingston,22/05/2023,90241198,"-2,861.90",Global Homecare,SOCIAL SERVICES-HOME CARE,Adult Social Care & Health,Homecare - new framework,A56127
Royal Borough of Kingston,22/05/2023,90241199,"-2,861.90",Global Homecare,SOCIAL SERVICES-HOME CARE,Adult Social Care & Health,Homecare - new framework,A56127
Royal Borough of Kingston,22/05/2023,90241200,"-2,861.90",Global Homecare,SOCIAL SERVICES-HOME CARE,Adult Social Care & Health,Homecare - new framework,A56127
Royal Borough of Kingston,22/05/2023,90241201,"-2,861.90",Global Homecare,SOCIAL SERVICES-HOME CARE,Adult Social Care & Health,Homecare - new framework,A56127
Royal Borough of Kingston,22/05/2023,90241202,"-2,861.90",Global Homecare,SOCIAL SERVICES-HOME CARE,Adult Social Care & Health,Homecare - new framework,A56127
Royal Borough of Kingston,22/05/2023,90241203,"-1,226.53",Global Homecare,SOCIAL SERVICES-HOME CARE,Adult Social Care & Health,Homecare - new framework,A56127
Royal Borough of Kingston,29/05/2023,90243711,504.21,Global Homecare,SOCIAL SERVICES-HOME CARE,Adult Social Care & Health,Homecare - new framework,A56127
Royal Borough of Kingston,29/05/2023,90243782,630.27,Global Homecare,SOCIAL SERVICES-HOME CARE,Adult Social Care & Health,Homecare - new framework,A56127
Royal Borough of Kingston,05/06/2023,90244514,504.21,Global Homecare,SOCIAL SERVICES-HOME CARE,Adult Social Care & Health,Homecare - new framework,A56127
Royal Borough of Kingston,05/06/2023,90244588,630.27,Global Homecare,SOCIAL SERVICES-HOME CARE,Adult Social Care & Health,Homecare - new framework,A56127
Royal Borough of Kingston,12/06/2023,90246185,504.21,Global Homecare,SOCIAL SERVICES-HOME CARE,Adult Social Care & Health,Homecare - new framework,A56127
Royal Borough of Kingston,12/06/2023,90246407,630.27,Global Homecare,SOCIAL SERVICES-HOME CARE,Adult Social Care & Health,Homecare - new framework,A56127
Royal Borough of Kingston,12/06/2023,90246412,756.32,Global Homecare,SOCIAL SERVICES-HOME CARE,Adult Social Care & Health,Homecare - new framework,A56127
Royal Borough of Kingston,12/06/2023,90246414,756.32,Global Homecare,SOCIAL SERVICES-HOME CARE,Adult Social Care & Health,Homecare - new framework,A56127
Royal Borough of Kingston,01/06/2023,90243576,"4,007.14",Gold Care Homes,SOCIAL SERVICES RESIDENTIAL,Adult Social Care & Health,Independent Placements,A56006
Royal Borough of Kingston,01/06/2023,90243577,"-2,985.71",Gold Care Homes,SOCIAL SERVICES RESIDENTIAL,Adult Social Care & Health,Independent Placements,A56006
Royal Borough of Kingston,01/06/2023,90243578,"2,985.71",Gold Care Homes,SOCIAL SERVICES RESIDENTIAL,Adult Social Care & Health,Independent Placements,A56006
Royal Borough of Kingston,01/06/2023,90243579,"5,646.43",Gold Care Homes,SOCIAL SERVICES RESIDENTIAL,Adult Social Care & Health,Independent Placements,A56006
Royal Borough of Kingston,01/06/2023,90243580,"-4,207.14",Gold Care Homes,SOCIAL SERVICES RESIDENTIAL,Adult Social Care & Health,Independent Placements,A56006
Royal Borough of Kingston,01/06/2023,90243581,"4,207.14",Gold Care Homes,SOCIAL SERVICES RESIDENTIAL,Adult Social Care & Health,Independent Placements,A56006
Royal Borough of Kingston,01/06/2023,90243582,"5,646.43",Gold Care Homes,SOCIAL SERVICES RESIDENTIAL,Adult Social Care & Health,Independent Placements,A56006
Royal Borough of Kingston,01/06/2023,90243583,"-4,207.14",Gold Care Homes,SOCIAL SERVICES RESIDENTIAL,Adult Social Care & Health,Independent Placements,A56006
Royal Borough of Kingston,01/06/2023,90243584,"4,207.14",Gold Care Homes,SOCIAL SERVICES RESIDENTIAL,Adult Social Care & Health,Independent Placements,A56006
Royal Borough of Kingston,01/06/2023,90243585,"5,100.00",Gold Care Homes,SOCIAL SERVICES RESIDENTIAL,Adult Social Care & Health,Independent Placements,A56006
Royal Borough of Kingston,01/06/2023,90243586,"-3,800.00",Gold Care Homes,SOCIAL SERVICES RESIDENTIAL,Adult Social Care & Health,Independent Placements,A56006
Royal Borough of Kingston,01/06/2023,90243587,"3,800.00",Gold Care Homes,SOCIAL SERVICES RESIDENTIAL,Adult Social Care & Health,Independent Placements,A56006
Royal Borough of Kingston,01/06/2023,90243588,"5,646.43",Gold Care Homes,SOCIAL SERVICES RESIDENTIAL,Adult Social Care & Health,Independent Placements,A56006
Royal Borough of Kingston,01/06/2023,90243589,"-4,207.14",Gold Care Homes,SOCIAL SERVICES RESIDENTIAL,Adult Social Care & Health,Independent Placements,A56006
Royal Borough of Kingston,01/06/2023,90243590,"4,207.14",Gold Care Homes,SOCIAL SERVICES RESIDENTIAL,Adult Social Care & Health,Independent Placements,A56006
Royal Borough of Kingston,01/06/2023,90243591,"5,464.29",Gold Care Homes,SOCIAL SERVICES RESIDENTIAL,Adult Social Care & Health,Independent Placements,A56006
Royal Borough of Kingston,01/06/2023,90243592,"-4,071.43",Gold Care Homes,SOCIAL SERVICES RESIDENTIAL,Adult Social Care & Health,Independent Placements,A56006
Royal Borough of Kingston,01/06/2023,90243593,"4,071.43",Gold Care Homes,SOCIAL SERVICES RESIDENTIAL,Adult Social Care & Health,Independent Placements,A56006
Royal Borough of Kingston,01/06/2023,90243594,"5,646.43",Gold Care Homes,SOCIAL SERVICES RESIDENTIAL,Adult Social Care & Health,Independent Placements,A56006
Royal Borough of Kingston,01/06/2023,90243595,"-4,207.14",Gold Care Homes,SOCIAL SERVICES RESIDENTIAL,Adult Social Care & Health,Independent Placements,A56006
Royal Borough of Kingston,01/06/2023,90243596,"4,207.14",Gold Care Homes,SOCIAL SERVICES RESIDENTIAL,Adult Social Care & Health,Independent Placements,A56006
Royal Borough of Kingston,01/06/2023,90245294,"2,025.00",Gold Care Homes,SOCIAL SERVICES RESIDENTIAL,Adult Social Care & Health,Independent Placements,A56006
Royal Borough of Kingston,01/06/2023,90245295,"2,025.00",Gold Care Homes,SOCIAL SERVICES RESIDENTIAL,Adult Social Care & Health,Independent Placements,A56006
Royal Borough of Kingston,01/06/2023,90245402,"4,092.73",Gold Care Homes,SOCIAL SERVICES RESIDENTIAL,Adult Social Care & Health,Independent Placements,A56006
Royal Borough of Kingston,01/06/2023,90245430,"5,571.43",Gold Care Homes,SOCIAL SERVICES RESIDENTIAL,Adult Social Care & Health,Independent Placements,A56006
Royal Borough of Kingston,01/06/2023,90245432,"-1,928.57",Gold Care Homes,SOCIAL SERVICES RESIDENTIAL,Adult Social Care & Health,Independent Placements,A56006
Royal Borough of Kingston,01/06/2023,90245433,"-3,600.00",Gold Care Homes,SOCIAL SERVICES RESIDENTIAL,Adult Social Care & Health,Independent Placements,A56006
Royal Borough of Kingston,01/06/2023,90245434,"-3,985.71",Gold Care Homes,SOCIAL SERVICES RESIDENTIAL,Adult Social Care & Health,Independent Placements,A56006
Royal Borough of Kingston,01/06/2023,90245435,"-4,092.73",Gold Care Homes,SOCIAL SERVICES RESIDENTIAL,Adult Social Care & Health,Independent Placements,A56006
Royal Borough of Kingston,01/06/2023,90245442,"4,213.24",Gold Care Homes,SOCIAL SERVICES RESIDENTIAL,Adult Social Care & Health,Independent Placements,A56006
Royal Borough of Kingston,01/06/2023,90245448,"1,689.87",Gold Care Homes,SOCIAL SERVICES RESIDENTIAL,Adult Social Care & Health,Independent Placements,A56006
Royal Borough of Kingston,01/06/2023,90245450,"3,783.81",Gold Care Homes,SOCIAL SERVICES RESIDENTIAL,Adult Social Care & Health,Independent Placements,A56006
Royal Borough of Kingston,01/06/2023,90245459,575.77,Gold Care Homes,SOCIAL SERVICES RESIDENTIAL,Adult Social Care & Health,Independent Placements,A56006
Royal Borough of Kingston,01/06/2023,90245460,-575.77,Gold Care Homes,SOCIAL SERVICES RESIDENTIAL,Adult Social Care & Health,Independent Placements,A56006
Royal Borough of Kingston,01/06/2023,90245462,575.77,Gold Care Homes,SOCIAL SERVICES RESIDENTIAL,Adult Social Care & Health,Independent Placements,A56006
Royal Borough of Kingston,01/06/2023,90245463,"4,318.29",Gold Care Homes,SOCIAL SERVICES RESIDENTIAL,Adult Social Care & Health,Independent Placements,A56006
Royal Borough of Kingston,01/06/2023,90245464,"-4,318.29",Gold Care Homes,SOCIAL SERVICES RESIDENTIAL,Adult Social Care & Health,Independent Placements,A56006
Royal Borough of Kingston,01/06/2023,90245465,"4,318.29",Gold Care Homes,SOCIAL SERVICES RESIDENTIAL,Adult Social Care & Health,Independent Placements,A56006
Royal Borough of Kingston,01/06/2023,90245466,"4,462.23",Gold Care Homes,SOCIAL SERVICES RESIDENTIAL,Adult Social Care & Health,Independent Placements,A56006
Royal Borough of Kingston,01/06/2023,90245467,"-4,462.23",Gold Care Homes,SOCIAL SERVICES RESIDENTIAL,Adult Social Care & Health,Independent Placements,A56006
Royal Borough of Kingston,01/06/2023,90245468,"4,462.23",Gold Care Homes,SOCIAL SERVICES RESIDENTIAL,Adult Social Care & Health,Independent Placements,A56006
Royal Borough of Kingston,01/06/2023,90245469,"4,318.29",Gold Care Homes,SOCIAL SERVICES RESIDENTIAL,Adult Social Care & Health,Independent Placements,A56006
Royal Borough of Kingston,01/06/2023,90245539,"5,464.29",Gold Care Homes,SOCIAL SERVICES RESIDENTIAL,Adult Social Care & Health,Independent Placements,A56006
Royal Borough of Kingston,01/06/2023,90245540,"4,318.29",Gold Care Homes,SOCIAL SERVICES RESIDENTIAL,Adult Social Care & Health,Independent Placements,A56006
Royal Borough of Kingston,01/06/2023,90245541,"4,318.29",Gold Care Homes,SOCIAL SERVICES RESIDENTIAL,Adult Social Care & Health,Independent Placements,A56006
Royal Borough of Kingston,01/06/2023,90245554,"4,188.94",Gold Care Homes,SOCIAL SERVICES RESIDENTIAL,Adult Social Care & Health,Independent Placements,A56006
Royal Borough of Kingston,01/06/2023,90245555,"4,352.10",Gold Care Homes,SOCIAL SERVICES RESIDENTIAL,Adult Social Care & Health,Independent Placements,A56006
Royal Borough of Kingston,01/06/2023,90245556,"4,608.73",Gold Care Homes,SOCIAL SERVICES RESIDENTIAL,Adult Social Care & Health,Independent Placements,A56006
Royal Borough of Kingston,01/06/2023,90245564,"4,318.29",Gold Care Homes,SOCIAL SERVICES RESIDENTIAL,Adult Social Care & Health,Independent Placements,A56006
Royal Borough of Kingston,01/06/2023,90245566,"4,318.29",Gold Care Homes,SOCIAL SERVICES RESIDENTIAL,Adult Social Care & Health,Independent Placements,A56006
Royal Borough of Kingston,01/06/2023,90245567,"4,608.73",Gold Care Homes,SOCIAL SERVICES RESIDENTIAL,Adult Social Care & Health,Independent Placements,A56006
Royal Borough of Kingston,01/06/2023,90245568,"4,188.94",Gold Care Homes,SOCIAL SERVICES RESIDENTIAL,Adult Social Care & Health,Independent Placements,A56006
Royal Borough of Kingston,01/06/2023,90245578,"4,608.73",Gold Care Homes,SOCIAL SERVICES RESIDENTIAL,Adult Social Care & Health,Independent Placements,A56006
Royal Borough of Kingston,01/06/2023,90245579,"4,608.73",Gold Care Homes,SOCIAL SERVICES RESIDENTIAL,Adult Social Care & Health,Independent Placements,A56006
Royal Borough of Kingston,01/06/2023,90245582,"2,447.03",Gold Care Homes,SOCIAL SERVICES RESIDENTIAL,Adult Social Care & Health,Independent Placements,A56006
Royal Borough of Kingston,01/06/2023,90245583,"4,318.29",Gold Care Homes,SOCIAL SERVICES RESIDENTIAL,Adult Social Care & Health,Independent Placements,A56006
Royal Borough of Kingston,01/06/2023,90245584,"4,462.23",Gold Care Homes,SOCIAL SERVICES RESIDENTIAL,Adult Social Care & Health,Independent Placements,A56006
Royal Borough of Kingston,01/06/2023,90245585,"4,318.29",Gold Care Homes,SOCIAL SERVICES RESIDENTIAL,Adult Social Care & Health,Independent Placements,A56006
Royal Borough of Kingston,01/06/2023,90245621,"2,303.09",Gold Care Homes,SOCIAL SERVICES RESIDENTIAL,Adult Social Care & Health,Independent Placements,A56006
Royal Borough of Kingston,01/06/2023,90245738,"2,025.00",Gold Care Homes,SOCIAL SERVICES RESIDENTIAL,Adult Social Care & Health,Other Private Contractors - Third Party,A56080
Royal Borough of Kingston,01/06/2023,90245739,"2,025.00",Gold Care Homes,SOCIAL SERVICES RESIDENTIAL,Adult Social Care & Health,Other Private Contractors - Third Party,A56080
Royal Borough of Kingston,01/06/2023,90245740,"2,025.00",Gold Care Homes,SOCIAL SERVICES RESIDENTIAL,Adult Social Care & Health,Other Private Contractors - Third Party,A56080
Royal Borough of Kingston,01/06/2023,90245741,"2,025.00",Gold Care Homes,SOCIAL SERVICES RESIDENTIAL,Adult Social Care & Health,Other Private Contractors - Third Party,A56080
Royal Borough of Kingston,01/06/2023,90246865,"1,446.60",Gold Care Homes,SOCIAL SERVICES RESIDENTIAL,Adult Social Care & Health,Personal Budget - Third Party,A61019
Royal Borough of Kingston,01/06/2023,90246868,626.86,Gold Care Homes,SOCIAL SERVICES RESIDENTIAL,Adult Social Care & Health,Personal Budget - Third Party,A61019
Royal Borough of Kingston,01/06/2023,90246908,610.71,Gold Care Homes,SOCIAL SERVICES RESIDENTIAL,Adult Social Care & Health,Personal Budget - Third Party,A61019
Royal Borough of Kingston,22/05/2023,90240976,567.24,Goldsmith Personnel Ltd,SOCIAL SERVICES - OTHER,Adult Social Care & Health,Homecare - new framework,A56127
Royal Borough of Kingston,22/05/2023,90241558,504.21,Goldsmith Personnel Ltd,SOCIAL SERVICES - OTHER,Adult Social Care & Health,Homecare - new framework,A56127
Royal Borough of Kingston,29/05/2023,90243727,567.24,Goldsmith Personnel Ltd,SOCIAL SERVICES - OTHER,Adult Social Care & Health,Homecare - new framework,A56127
Royal Borough of Kingston,29/05/2023,90244220,504.21,Goldsmith Personnel Ltd,SOCIAL SERVICES - OTHER,Adult Social Care & Health,Homecare - new framework,A56127
Royal Borough of Kingston,05/06/2023,90244532,567.24,Goldsmith Personnel Ltd,SOCIAL SERVICES - OTHER,Adult Social Care & Health,Homecare - new framework,A56127
Royal Borough of Kingston,05/06/2023,90245061,504.21,Goldsmith Personnel Ltd,SOCIAL SERVICES - OTHER,Adult Social Care & Health,Homecare - new framework,A56127
Royal Borough of Kingston,12/06/2023,90246203,567.24,Goldsmith Personnel Ltd,SOCIAL SERVICES - OTHER,Adult Social Care & Health,Homecare - new framework,A56127
Royal Borough of Kingston,12/06/2023,90246848,504.21,Goldsmith Personnel Ltd,SOCIAL SERVICES - OTHER,Adult Social Care & Health,Homecare - new framework,A56127
Royal Borough of Kingston,01/05/2023,70048392,"1,612.00",GOLFRATE PROPERTY MANAGEMENT LIMITED,ACCOMMODATION BED & BREAKFAST,Place,Bed & Breakfast,A56000
Royal Borough of Kingston,01/05/2023,70048393,"1,658.50",GOLFRATE PROPERTY MANAGEMENT LIMITED,ACCOMMODATION BED & BREAKFAST,Place,Bed & Breakfast,A56000
Royal Borough of Kingston,30/04/2023,70048394,"1,605.00",GOLFRATE PROPERTY MANAGEMENT LIMITED,ACCOMMODATION BED & BREAKFAST,Place,Bed & Breakfast,A56000
Royal Borough of Kingston,30/04/2023,70048395,"1,560.00",GOLFRATE PROPERTY MANAGEMENT LIMITED,ACCOMMODATION BED & BREAKFAST,Place,Bed & Breakfast,A56000
Royal Borough of Kingston,06/06/2023,90242085,"234,458.44",GRAND AVENUE PRIMARY AND NURSERY SCHOOL,CENTRAL & LOCAL GOVERNMENT,Schools,Miscellaneous Expenses,A49000
Royal Borough of Kingston,08/06/2023,90243183,"7,194.00",GRAND AVENUE PRIMARY AND NURSERY SCHOOL,CENTRAL & LOCAL GOVERNMENT,Schools,Miscellaneous Expenses,A49000
Royal Borough of Kingston,09/06/2023,90243243,"33,330.24",GRAND AVENUE PRIMARY AND NURSERY SCHOOL,CENTRAL & LOCAL GOVERNMENT,Schools,Miscellaneous Expenses,A49000
Royal Borough of Kingston,29/06/2023,90247503,"2,878.18",GRAND AVENUE PRIMARY AND NURSERY SCHOOL,CENTRAL & LOCAL GOVERNMENT,Place,Payments to Contractors,C14000
Royal Borough of Kingston,09/06/2023,90243260,"19,044.48",GREEN LANE PRIMARY & NURSERY SCHOOL,ACADEMIC INSTNS - OTHER,Schools,Miscellaneous Expenses,A49000
Royal Borough of Kingston,01/06/2023,90245628,"4,086.47",Grove Care Partnership Limited,SOCIAL SERVICES RESIDENTIAL,Adult Social Care & Health,Independent Placements,A56006
Royal Borough of Kingston,01/06/2023,90245646,"1,917.57",Grove Care Partnership Limited,SOCIAL SERVICES RESIDENTIAL,Adult Social Care & Health,Independent Placements,A56006
Royal Borough of Kingston,01/06/2023,90245647,"1,855.71",Grove Care Partnership Limited,SOCIAL SERVICES RESIDENTIAL,Adult Social Care & Health,Independent Placements,A56006
Royal Borough of Kingston,01/06/2023,90245648,"10,507.97",Grove Care Partnership Limited,SOCIAL SERVICES RESIDENTIAL,Adult Social Care & Health,Independent Placements,A56006
Royal Borough of Kingston,01/06/2023,90245667,"15,418.11",Grove Care Partnership Limited,SOCIAL SERVICES RESIDENTIAL,Adult Social Care & Health,Independent Placements,A56006
Royal Borough of Kingston,01/06/2023,90245670,"10,217.83",Grove Care Partnership Limited,SOCIAL SERVICES RESIDENTIAL,Adult Social Care & Health,Independent Placements,A56006
Royal Borough of Kingston,01/06/2023,90245694,"15,263.27",Grove Care Partnership Limited,SOCIAL SERVICES RESIDENTIAL,Adult Social Care & Health,Independent Placements,A56006
Royal Borough of Kingston,01/06/2023,90245704,"11,910.73",Grove Care Partnership Limited,SOCIAL SERVICES RESIDENTIAL,Adult Social Care & Health,Independent Placements,A56006
Royal Borough of Kingston,01/06/2023,90245707,"9,783.90",Grove Care Partnership Limited,SOCIAL SERVICES RESIDENTIAL,Adult Social Care & Health,Independent Placements,A56006
Royal Borough of Kingston,01/06/2023,90245722,"7,878.26",Grove Care Partnership Limited,SOCIAL SERVICES RESIDENTIAL,Adult Social Care & Health,Independent Placements,A56006
Royal Borough of Kingston,01/06/2023,90245731,"11,720.57",Grove Care Partnership Limited,SOCIAL SERVICES RESIDENTIAL,Adult Social Care & Health,Independent Placements,A56006
Royal Borough of Kingston,01/06/2023,90245732,"11,711.27",Grove Care Partnership Limited,SOCIAL SERVICES RESIDENTIAL,Adult Social Care & Health,Independent Placements,A56006
Royal Borough of Kingston,27/06/2023,90247820,"1,245.00",REDACTED - PERSONAL DATA,PLS LANDLORDS,Place,PSL Payments To Landlords,A22031
Royal Borough of Kingston,30/04/2023,70046430,610.00,Gurkha Security Services Ltd,SUNDRY SUPPLIER - HOUSING,Place,Security Services,A44080
Royal Borough of Kingston,27/06/2023,90247514,"1,296.67",REDACTED - PERSONAL DATA,PLS LANDLORDS,Place,PSL Payments To Landlords,A22031
Royal Borough of Kingston,13/06/2023,90243494,550.00,REDACTED - PERSONAL DATA,GRANTS & EX GRATIA PAYMENTS,Adult Social Care & Health,"Grants, Contributions & Donations",A47005
Royal Borough of Kingston,06/06/2023,90240807,500.00,REDACTED - PERSONAL DATA,GRANTS & EX GRATIA PAYMENTS,Adult Social Care & Health,"Grants, Contributions & Donations",A47005
Royal Borough of Kingston,31/05/2023,70048105,"6,550.00",REDACTED - PERSONAL DATA,CHARITIES & VOLUNTARY ORGNS,Corporate & Communities,Consultancy Services - Other,A44065
Royal Borough of Kingston,01/06/2023,90245523,"4,452.86",HAMPTON CARE LIMITED,SOCIAL SERVICES RESIDENTIAL,Adult Social Care & Health,Independent Placements,A56006
Royal Borough of Kingston,27/06/2023,90247654,"1,550.00",Haycorn Limited,PLS LANDLORDS,Place,PSL Payments To Landlords,A22031
Royal Borough of Kingston,27/06/2023,90247932,"1,150.00",Haycorn Limited,PLS LANDLORDS,Place,PSL Payments To Landlords,A22031
Royal Borough of Kingston,27/06/2023,90247933,"1,150.00",Haycorn Limited,PLS LANDLORDS,Place,PSL Payments To Landlords,A22031
Royal Borough of Kingston,27/06/2023,90247934,"1,150.00",Haycorn Limited,PLS LANDLORDS,Place,PSL Payments To Landlords,A22031
Royal Borough of Kingston,01/06/2023,90243603,"-2,420.18",HAZELDENE UK LIMITED,OPERATIONAL EQUIPMENT/MATERIAL,Adult Social Care & Health,Independent Placements,A56006
Royal Borough of Kingston,01/06/2023,90243604,"-4,689.10",HAZELDENE UK LIMITED,OPERATIONAL EQUIPMENT/MATERIAL,Adult Social Care & Health,Independent Placements,A56006
Royal Borough of Kingston,01/06/2023,90243605,"-4,689.10",HAZELDENE UK LIMITED,OPERATIONAL EQUIPMENT/MATERIAL,Adult Social Care & Health,Independent Placements,A56006
Royal Borough of Kingston,01/06/2023,90243606,"-4,235.32",HAZELDENE UK LIMITED,OPERATIONAL EQUIPMENT/MATERIAL,Adult Social Care & Health,Independent Placements,A56006
Royal Borough of Kingston,01/06/2023,90243607,"-4,689.10",HAZELDENE UK LIMITED,OPERATIONAL EQUIPMENT/MATERIAL,Adult Social Care & Health,Independent Placements,A56006
Royal Borough of Kingston,01/06/2023,90243608,"-4,714.80",HAZELDENE UK LIMITED,OPERATIONAL EQUIPMENT/MATERIAL,Adult Social Care & Health,Independent Placements,A56006
Royal Borough of Kingston,01/06/2023,90243609,"-4,871.96",HAZELDENE UK LIMITED,OPERATIONAL EQUIPMENT/MATERIAL,Adult Social Care & Health,Independent Placements,A56006
Royal Borough of Kingston,01/06/2023,90243610,"-4,714.80",HAZELDENE UK LIMITED,OPERATIONAL EQUIPMENT/MATERIAL,Adult Social Care & Health,Independent Placements,A56006
Royal Borough of Kingston,01/06/2023,90243611,"4,349.90",HAZELDENE UK LIMITED,OPERATIONAL EQUIPMENT/MATERIAL,Adult Social Care & Health,Independent Placements,A56006
Royal Borough of Kingston,01/06/2023,90243612,"8,427.93",HAZELDENE UK LIMITED,OPERATIONAL EQUIPMENT/MATERIAL,Adult Social Care & Health,Independent Placements,A56006
Royal Borough of Kingston,01/06/2023,90243613,"8,427.93",HAZELDENE UK LIMITED,OPERATIONAL EQUIPMENT/MATERIAL,Adult Social Care & Health,Independent Placements,A56006
Royal Borough of Kingston,01/06/2023,90243614,"7,612.32",HAZELDENE UK LIMITED,OPERATIONAL EQUIPMENT/MATERIAL,Adult Social Care & Health,Independent Placements,A56006
Royal Borough of Kingston,01/06/2023,90243615,"8,427.93",HAZELDENE UK LIMITED,OPERATIONAL EQUIPMENT/MATERIAL,Adult Social Care & Health,Independent Placements,A56006
Royal Borough of Kingston,01/06/2023,90243616,"8,474.14",HAZELDENE UK LIMITED,OPERATIONAL EQUIPMENT/MATERIAL,Adult Social Care & Health,Independent Placements,A56006
Royal Borough of Kingston,01/06/2023,90243617,"8,756.61",HAZELDENE UK LIMITED,OPERATIONAL EQUIPMENT/MATERIAL,Adult Social Care & Health,Independent Placements,A56006
Royal Borough of Kingston,01/06/2023,90243618,"8,474.14",HAZELDENE UK LIMITED,OPERATIONAL EQUIPMENT/MATERIAL,Adult Social Care & Health,Independent Placements,A56006
Royal Borough of Kingston,01/06/2023,90243619,"8,756.61",HAZELDENE UK LIMITED,OPERATIONAL EQUIPMENT/MATERIAL,Adult Social Care & Health,Independent Placements,A56006
Royal Borough of Kingston,01/06/2023,90243620,"8,756.61",HAZELDENE UK LIMITED,OPERATIONAL EQUIPMENT/MATERIAL,Adult Social Care & Health,Independent Placements,A56006
Royal Borough of Kingston,01/06/2023,90243621,"8,474.14",HAZELDENE UK LIMITED,OPERATIONAL EQUIPMENT/MATERIAL,Adult Social Care & Health,Independent Placements,A56006
Royal Borough of Kingston,01/06/2023,90243622,"8,756.61",HAZELDENE UK LIMITED,OPERATIONAL EQUIPMENT/MATERIAL,Adult Social Care & Health,Independent Placements,A56006
Royal Borough of Kingston,01/06/2023,90243623,"8,474.14",HAZELDENE UK LIMITED,OPERATIONAL EQUIPMENT/MATERIAL,Adult Social Care & Health,Independent Placements,A56006
Royal Borough of Kingston,01/06/2023,90243624,"8,756.61",HAZELDENE UK LIMITED,OPERATIONAL EQUIPMENT/MATERIAL,Adult Social Care & Health,Independent Placements,A56006
Royal Borough of Kingston,01/06/2023,90243625,"8,756.61",HAZELDENE UK LIMITED,OPERATIONAL EQUIPMENT/MATERIAL,Adult Social Care & Health,Independent Placements,A56006
Royal Borough of Kingston,01/06/2023,90243626,"7,909.20",HAZELDENE UK LIMITED,OPERATIONAL EQUIPMENT/MATERIAL,Adult Social Care & Health,Independent Placements,A56006
